Council Name,Date,TransNo,Amount � (Excl VAT),Supplier name,Supplier Category,Expense Area,Expense Type,Expense Code
London Borough of Sutton,30/06/2023,20052806,"6,750.00",31ten Consulting Ltd,FINANCIAL / INSURANCE INSTNS,Resources,Professional Fees,A44066
London Borough of Sutton,05/07/2023,50373527,500.00,REDACTED - PERSONAL DATA,GRANTS & EX GRATIA PAYMENTS,Environment Housing and Neighbourhoods,"Grants, Contributions & Donations",A47005
London Borough of Sutton,01/04/2023,50381788,622.60,A R G Europe Limited,CONSTRUCTION INDUSTRY,HRA,Payments to Contractors,C14000
London Borough of Sutton,01/04/2023,50381789,"1,564.77",A R G Europe Limited,CONSTRUCTION INDUSTRY,HRA,Payments to Contractors,C14000
London Borough of Sutton,20/07/2023,50380665,"9,776.16",A Step Beyond Ltd,SOCIAL SERVICES - OTHER,People's Services,Supported Living,A56088
London Borough of Sutton,20/07/2023,50380665,"3,666.06",A Step Beyond Ltd,SOCIAL SERVICES - OTHER,People's Services,Supported Living,A56088
London Borough of Sutton,20/07/2023,50380665,643.29,A Step Beyond Ltd,SOCIAL SERVICES - OTHER,People's Services,Supported Living,A56088
London Borough of Sutton,20/07/2023,50380665,960.16,A Step Beyond Ltd,SOCIAL SERVICES - OTHER,People's Services,Supported Living,A56088
London Borough of Sutton,01/06/2023,50375051,"29,100.00",A Wilderness Way Ltd,CHILDREN'S SERVICES - FOSTERING & ADOPTION SERVICES,People's Services,Residential Care-Children,A56115
London Borough of Sutton,07/07/2023,50375423,"3,848.24",Abbey Care Centre,SOCIAL SERVICES RESIDENTIAL,People's Services,Nursing Care Short Term,A56026
London Borough of Sutton,07/07/2023,50375423,-750.40,Abbey Care Centre,SOCIAL SERVICES RESIDENTIAL,People's Services,Nursing Care - 3rd party top up payment,A56023
London Borough of Sutton,07/07/2023,50375423,"-1,492.80",Abbey Care Centre,SOCIAL SERVICES RESIDENTIAL,People's Services,Nursing Care - 3rd party top up payment,A56023
London Borough of Sutton,07/07/2023,50375522,"3,848.24",Abbey Care Centre,SOCIAL SERVICES RESIDENTIAL,People's Services,Nursing Care Short Term,A56026
London Borough of Sutton,07/07/2023,50375522,-750.40,Abbey Care Centre,SOCIAL SERVICES RESIDENTIAL,People's Services,Nursing Care - 3rd party top up payment,A56023
London Borough of Sutton,07/07/2023,50375578,"4,096.12",Abbey Care Centre,SOCIAL SERVICES RESIDENTIAL,People's Services,Nursing Care - Ext Provider,A56025
London Borough of Sutton,07/07/2023,50375578,-878.84,Abbey Care Centre,SOCIAL SERVICES RESIDENTIAL,People's Services,Nursing Care - 3rd party top up payment,A56023
London Borough of Sutton,07/07/2023,50375711,"4,096.12",Abbey Care Centre,SOCIAL SERVICES RESIDENTIAL,People's Services,Nursing Care - Ext Provider,A56025
London Borough of Sutton,07/07/2023,50375711,-878.84,Abbey Care Centre,SOCIAL SERVICES RESIDENTIAL,People's Services,Nursing Care - 3rd party top up payment,A56023
London Borough of Sutton,11/07/2023,50374266,"6,753.60",ABC Pre-School Beddington LLP,ACADEMIC INSTNS - OTHER,People's Services,Payment - Nursery Funding,A51056
London Borough of Sutton,11/07/2023,50374476,781.20,ABC Pre-School Beddington LLP,ACADEMIC INSTNS - OTHER,People's Services,Early Years Pupil Premium,A60031
London Borough of Sutton,11/07/2023,50374505,667.80,ABC Pre-School Beddington LLP,ACADEMIC INSTNS - OTHER,People's Services,Payment - Deprivation Pupil Premium,A51030
London Borough of Sutton,29/06/2023,20052765,"3,750.00",REDACTED - PERSONAL DATA,INSTALLATION OF ARTISTIC WORKS (NON-FUNCTIONAL),Health and Wellbeing,Professional Fees,A44066
London Borough of Sutton,10/07/2023,20053694,"5,926.51",Absolute Care Services Ltd,SOCIAL SERVICES DAY CARE,People's Services,Homecare Core Services,A56020
London Borough of Sutton,10/07/2023,20053696,"5,715.81",Absolute Care Services Ltd,SOCIAL SERVICES DAY CARE,People's Services,Homecare Core Services,A56020
London Borough of Sutton,10/07/2023,20053697,"6,794.87",Absolute Care Services Ltd,SOCIAL SERVICES DAY CARE,People's Services,Homecare Core Services,A56020
London Borough of Sutton,25/06/2023,50373116,689.50,Absolute Care Services Ltd,SOCIAL SERVICES DAY CARE,People's Services,Home Care Services,A56019
London Borough of Sutton,25/06/2023,50373117,16.08,Absolute Care Services Ltd,SOCIAL SERVICES DAY CARE,People's Services,Home Care Services,A56019
London Borough of Sutton,25/06/2023,50373117,506.52,Absolute Care Services Ltd,SOCIAL SERVICES DAY CARE,People's Services,Home Care Services,A56019
London Borough of Sutton,25/06/2023,50373129,522.60,Absolute Care Services Ltd,SOCIAL SERVICES DAY CARE,People's Services,Home Care Services,A56019
London Borough of Sutton,25/06/2023,50373151,620.62,Absolute Care Services Ltd,SOCIAL SERVICES DAY CARE,People's Services,Home Care Services,A56019
London Borough of Sutton,25/06/2023,50373161,118.20,Absolute Care Services Ltd,SOCIAL SERVICES DAY CARE,People's Services,Home Care Services,A56019
London Borough of Sutton,25/06/2023,50373161,896.56,Absolute Care Services Ltd,SOCIAL SERVICES DAY CARE,People's Services,Home Care Services,A56019
London Borough of Sutton,25/06/2023,50373248,163.03,Absolute Care Services Ltd,SOCIAL SERVICES DAY CARE,People's Services,Home Care Services,A56019
London Borough of Sutton,25/06/2023,50373248,427.97,Absolute Care Services Ltd,SOCIAL SERVICES DAY CARE,People's Services,Home Care Services,A56019
London Borough of Sutton,25/06/2023,50373267,45.01,Absolute Care Services Ltd,SOCIAL SERVICES DAY CARE,People's Services,Home Care Services,A56019
London Borough of Sutton,25/06/2023,50373267,772.61,Absolute Care Services Ltd,SOCIAL SERVICES DAY CARE,People's Services,Home Care Services,A56019
London Borough of Sutton,25/06/2023,50373275,105.61,Absolute Care Services Ltd,SOCIAL SERVICES DAY CARE,People's Services,Home Care Services,A56019
London Borough of Sutton,25/06/2023,50373275,457.19,Absolute Care Services Ltd,SOCIAL SERVICES DAY CARE,People's Services,Home Care Services,A56019
London Borough of Sutton,02/07/2023,50376315,105.61,Absolute Care Services Ltd,SOCIAL SERVICES DAY CARE,People's Services,Home Care Services,A56019
London Borough of Sutton,02/07/2023,50376315,457.19,Absolute Care Services Ltd,SOCIAL SERVICES DAY CARE,People's Services,Home Care Services,A56019
London Borough of Sutton,02/07/2023,50376321,522.60,Absolute Care Services Ltd,SOCIAL SERVICES DAY CARE,People's Services,Home Care Services,A56019
London Borough of Sutton,02/07/2023,50376345,16.08,Absolute Care Services Ltd,SOCIAL SERVICES DAY CARE,People's Services,Home Care Services,A56019
London Borough of Sutton,02/07/2023,50376345,506.52,Absolute Care Services Ltd,SOCIAL SERVICES DAY CARE,People's Services,Home Care Services,A56019
London Borough of Sutton,02/07/2023,50376424,620.62,Absolute Care Services Ltd,SOCIAL SERVICES DAY CARE,People's Services,Home Care Services,A56019
London Borough of Sutton,02/07/2023,50376445,43.92,Absolute Care Services Ltd,SOCIAL SERVICES DAY CARE,People's Services,Home Care Services,A56019
London Borough of Sutton,02/07/2023,50376445,754.00,Absolute Care Services Ltd,SOCIAL SERVICES DAY CARE,People's Services,Home Care Services,A56019
London Borough of Sutton,02/07/2023,50376451,674.92,Absolute Care Services Ltd,SOCIAL SERVICES DAY CARE,People's Services,Home Care Services,A56019
London Borough of Sutton,09/07/2023,50377876,105.61,Absolute Care Services Ltd,SOCIAL SERVICES DAY CARE,People's Services,Home Care Services,A56019
London Borough of Sutton,09/07/2023,50377876,457.19,Absolute Care Services Ltd,SOCIAL SERVICES DAY CARE,People's Services,Home Care Services,A56019
London Borough of Sutton,09/07/2023,50377885,620.62,Absolute Care Services Ltd,SOCIAL SERVICES DAY CARE,People's Services,Home Care Services,A56019
London Borough of Sutton,09/07/2023,50377899,506.52,Absolute Care Services Ltd,SOCIAL SERVICES DAY CARE,People's Services,Home Care Services,A56019
London Borough of Sutton,09/07/2023,50377899,16.08,Absolute Care Services Ltd,SOCIAL SERVICES DAY CARE,People's Services,Home Care Services,A56019
London Borough of Sutton,09/07/2023,50377980,46.09,Absolute Care Services Ltd,SOCIAL SERVICES DAY CARE,People's Services,Home Care Services,A56019
London Borough of Sutton,09/07/2023,50377980,791.23,Absolute Care Services Ltd,SOCIAL SERVICES DAY CARE,People's Services,Home Care Services,A56019
London Borough of Sutton,09/07/2023,50377999,699.35,Absolute Care Services Ltd,SOCIAL SERVICES DAY CARE,People's Services,Home Care Services,A56019
London Borough of Sutton,09/07/2023,50378000,16.08,Absolute Care Services Ltd,SOCIAL SERVICES DAY CARE,People's Services,Home Care Services,A56019
London Borough of Sutton,09/07/2023,50378000,506.52,Absolute Care Services Ltd,SOCIAL SERVICES DAY CARE,People's Services,Home Care Services,A56019
London Borough of Sutton,09/07/2023,50378002,530.64,Absolute Care Services Ltd,SOCIAL SERVICES DAY CARE,People's Services,Home Care Services,A56019
London Borough of Sutton,16/07/2023,50382327,689.50,Absolute Care Services Ltd,SOCIAL SERVICES DAY CARE,People's Services,Home Care Services,A56019
London Borough of Sutton,16/07/2023,50382328,16.08,Absolute Care Services Ltd,SOCIAL SERVICES DAY CARE,People's Services,Home Care Services,A56019
London Borough of Sutton,16/07/2023,50382328,506.52,Absolute Care Services Ltd,SOCIAL SERVICES DAY CARE,People's Services,Home Care Services,A56019
London Borough of Sutton,16/07/2023,50382403,163.03,Absolute Care Services Ltd,SOCIAL SERVICES DAY CARE,People's Services,Home Care Services,A56019
London Borough of Sutton,16/07/2023,50382403,427.97,Absolute Care Services Ltd,SOCIAL SERVICES DAY CARE,People's Services,Home Care Services,A56019
London Borough of Sutton,16/07/2023,50382412,530.64,Absolute Care Services Ltd,SOCIAL SERVICES DAY CARE,People's Services,Home Care Services,A56019
London Borough of Sutton,02/07/2023,50382413,599.17,Absolute Care Services Ltd,SOCIAL SERVICES DAY CARE,People's Services,Home Care Services,A56019
London Borough of Sutton,02/07/2023,50382413,124.43,Absolute Care Services Ltd,SOCIAL SERVICES DAY CARE,People's Services,Home Care Services,A56019
London Borough of Sutton,11/06/2023,50382422,570.84,Absolute Care Services Ltd,SOCIAL SERVICES DAY CARE,People's Services,Home Care Services,A56019
London Borough of Sutton,11/06/2023,50382422,160.80,Absolute Care Services Ltd,SOCIAL SERVICES DAY CARE,People's Services,Home Care Services,A56019
London Borough of Sutton,16/07/2023,50382433,620.62,Absolute Care Services Ltd,SOCIAL SERVICES DAY CARE,People's Services,Home Care Services,A56019
London Borough of Sutton,16/07/2023,50382436,506.52,Absolute Care Services Ltd,SOCIAL SERVICES DAY CARE,People's Services,Home Care Services,A56019
London Borough of Sutton,16/07/2023,50382436,16.08,Absolute Care Services Ltd,SOCIAL SERVICES DAY CARE,People's Services,Home Care Services,A56019
London Borough of Sutton,16/07/2023,50382478,45.01,Absolute Care Services Ltd,SOCIAL SERVICES DAY CARE,People's Services,Home Care Services,A56019
London Borough of Sutton,16/07/2023,50382478,772.61,Absolute Care Services Ltd,SOCIAL SERVICES DAY CARE,People's Services,Home Care Services,A56019
London Borough of Sutton,16/07/2023,50382507,105.61,Absolute Care Services Ltd,SOCIAL SERVICES DAY CARE,People's Services,Home Care Services,A56019
London Borough of Sutton,16/07/2023,50382507,457.19,Absolute Care Services Ltd,SOCIAL SERVICES DAY CARE,People's Services,Home Care Services,A56019
London Borough of Sutton,02/07/2023,50383110,530.64,Absolute Care Services Ltd,SOCIAL SERVICES DAY CARE,People's Services,Home Care Services,A56019
London Borough of Sutton,29/12/2022,50382136,"2,592.00",Academy21 Limited,CHILDREN'S SERVICES - SEN SERVICES,People's Services,Independent School Fees,A56002
London Borough of Sutton,27/04/2023,50382137,708.00,Academy21 Limited,CHILDREN'S SERVICES - SEN SERVICES,People's Services,Independent School Fees,A56002
London Borough of Sutton,28/07/2022,50382138,"3,240.00",Academy21 Limited,CHILDREN'S SERVICES - SEN SERVICES,People's Services,Independent School Fees,A56002
London Borough of Sutton,05/07/2023,20053078,"276,858.31",Access UK Limited,TAXI AND COACH HIRE,People's Services,Childrens Social Care Transport,A32009
London Borough of Sutton,12/07/2023,20053592,"198,810.24",Access UK Limited,TAXI AND COACH HIRE,People's Services,Childrens Social Care Transport,A32009
London Borough of Sutton,19/07/2023,20054067,"244,900.36",Access UK Limited,TAXI AND COACH HIRE,People's Services,Childrens Social Care Transport,A32009
London Borough of Sutton,26/07/2023,20054684,"103,553.47",Access UK Limited,TAXI AND COACH HIRE,People's Services,Childrens Social Care Transport,A32009
London Borough of Sutton,03/07/2023,50373714,"5,236.07",Accomplish Group Ltd,SOCIAL SERVICES RESIDENTIAL,People's Services,Supported Living,A56088
London Borough of Sutton,20/07/2023,50382319,"4,671.40",Accomplish Group Ltd,SOCIAL SERVICES RESIDENTIAL,People's Services,Supported Living,A56088
London Borough of Sutton,20/07/2023,50382320,"3,080.00",Accomplish Group Ltd,SOCIAL SERVICES RESIDENTIAL,People's Services,Supported Living,A56088
London Borough of Sutton,07/07/2023,50375129,"8,103.64",Achieve Together Limited,SOCIAL SERVICES RESIDENTIAL,People's Services,Residential Care - Ext Provider,A56114
London Borough of Sutton,07/07/2023,50375129,-402.80,Achieve Together Limited,SOCIAL SERVICES RESIDENTIAL,People's Services,Residential Care - Client Cont ( Net Paymt ),A56113
London Borough of Sutton,07/07/2023,50375182,"5,100.00",Achieve Together Limited,SOCIAL SERVICES RESIDENTIAL,People's Services,Residential Care - Ext Provider,A56114
London Borough of Sutton,07/07/2023,50375275,"4,682.44",Achieve Together Limited,SOCIAL SERVICES RESIDENTIAL,People's Services,Residential Care - Ext Provider,A56114
London Borough of Sutton,07/07/2023,50375275,-511.80,Achieve Together Limited,SOCIAL SERVICES RESIDENTIAL,People's Services,Residential Care - Client Cont ( Net Paymt ),A56113
London Borough of Sutton,07/07/2023,50375286,-438.80,Achieve Together Limited,SOCIAL SERVICES RESIDENTIAL,People's Services,Residential Care - Client Cont ( Net Paymt ),A56113
London Borough of Sutton,07/07/2023,50375286,"6,845.04",Achieve Together Limited,SOCIAL SERVICES RESIDENTIAL,People's Services,Residential Care - Ext Provider,A56114
London Borough of Sutton,07/07/2023,50375414,"5,810.56",Achieve Together Limited,SOCIAL SERVICES RESIDENTIAL,People's Services,Residential Care - Ext Provider,A56114
London Borough of Sutton,07/07/2023,50375418,"7,303.88",Achieve Together Limited,SOCIAL SERVICES RESIDENTIAL,People's Services,Residential Care - Ext Provider,A56114
London Borough of Sutton,07/07/2023,50375517,"-1,679.32",Achieve Together Limited,SOCIAL SERVICES RESIDENTIAL,People's Services,Residential Care - Client Cont ( Net Paymt ),A56113
London Borough of Sutton,07/07/2023,50375517,390.00,Achieve Together Limited,SOCIAL SERVICES RESIDENTIAL,People's Services,One to One Care,A56108
London Borough of Sutton,07/07/2023,50375517,"4,375.48",Achieve Together Limited,SOCIAL SERVICES RESIDENTIAL,People's Services,Residential Care - Ext Provider,A56114
London Borough of Sutton,07/07/2023,50375215,-583.10,ACHIEVE TOGETHER LTD,SOCIAL SERVICES RESIDENTIAL,People's Services,Residential Care - Client Cont ( Net Paymt ),A56113
London Borough of Sutton,07/07/2023,50375215,"5,620.60",ACHIEVE TOGETHER LTD,SOCIAL SERVICES RESIDENTIAL,People's Services,Residential Care - Ext Provider,A56114
London Borough of Sutton,07/07/2023,50375296,"11,047.88",ACHIEVE TOGETHER LTD,SOCIAL SERVICES RESIDENTIAL,People's Services,Residential Care - Ext Provider,A56114
London Borough of Sutton,07/07/2023,50375311,"4,653.76",ACHIEVE TOGETHER LTD,SOCIAL SERVICES RESIDENTIAL,People's Services,Residential Care - Ext Provider,A56114
London Borough of Sutton,20/07/2023,50380625,"1,061.44",ACHIEVE TOGETHER LTD,SOCIAL SERVICES RESIDENTIAL,People's Services,Supported Living,A56088
London Borough of Sutton,20/07/2023,50380625,"1,061.44",ACHIEVE TOGETHER LTD,SOCIAL SERVICES RESIDENTIAL,People's Services,Supported Living,A56088
London Borough of Sutton,20/07/2023,50380625,888.11,ACHIEVE TOGETHER LTD,SOCIAL SERVICES RESIDENTIAL,People's Services,Supported Living,A56088
London Borough of Sutton,20/07/2023,50380626,"2,653.60",ACHIEVE TOGETHER LTD,SOCIAL SERVICES RESIDENTIAL,People's Services,Supported Living,A56088
London Borough of Sutton,20/07/2023,50380678,"2,388.24",ACHIEVE TOGETHER LTD,SOCIAL SERVICES RESIDENTIAL,People's Services,Supported Living,A56088
London Borough of Sutton,20/07/2023,50380678,619.42,ACHIEVE TOGETHER LTD,SOCIAL SERVICES RESIDENTIAL,People's Services,Supported Living,A56088
London Borough of Sutton,20/07/2023,50380678,641.52,ACHIEVE TOGETHER LTD,SOCIAL SERVICES RESIDENTIAL,People's Services,Supported Living,A56088
London Borough of Sutton,20/07/2023,50380700,"2,940.17",ACHIEVE TOGETHER LTD,SOCIAL SERVICES RESIDENTIAL,People's Services,Supported Living,A56088
London Borough of Sutton,20/07/2023,50380700,"3,184.32",ACHIEVE TOGETHER LTD,SOCIAL SERVICES RESIDENTIAL,People's Services,Supported Living,A56088
London Borough of Sutton,09/04/2023,50376674,"1,560.00",Achieving For Children Limited,SOCIAL SERVICES - OTHER,People's Services,Special Educational Needs,A51015
London Borough of Sutton,12/04/2023,50376675,"2,535.00",Achieving For Children Limited,SOCIAL SERVICES - OTHER,People's Services,Special Educational Needs,A51015
London Borough of Sutton,12/04/2023,50376676,"4,982.00",Achieving For Children Limited,SOCIAL SERVICES - OTHER,People's Services,Special Educational Needs,A51015
London Borough of Sutton,01/06/2023,50375030,"16,242.90",Acorn Homes UK Ltd,CHILDREN'S SERVICES - FOSTERING & ADOPTION SERVICES,People's Services,Residential Care-Children,A56115
London Borough of Sutton,07/07/2023,50375181,"4,231.40",Acorn Lodge,SOCIAL SERVICES RESIDENTIAL,People's Services,Residential Care - Ext Provider,A56114
London Borough of Sutton,07/07/2023,50375302,"5,844.00",Acorn Residential Home,SOCIAL SERVICES RESIDENTIAL,People's Services,Residential Care - Ext Provider,A56114
London Borough of Sutton,07/07/2023,50375179,"8,918.80",Active Prospects,SOCIAL SERVICES DAY CARE,People's Services,Residential Care - Ext Provider,A56114
London Borough of Sutton,07/07/2023,50375179,-438.80,Active Prospects,SOCIAL SERVICES DAY CARE,People's Services,Residential Care - Client Cont ( Net Paymt ),A56113
London Borough of Sutton,07/07/2023,50375243,"6,441.84",Active Prospects,SOCIAL SERVICES DAY CARE,People's Services,Residential Care - Ext Provider,A56114
London Borough of Sutton,05/07/2023,50373539,500.00,REDACTED - PERSONAL DATA,GRANTS & EX GRATIA PAYMENTS,Environment Housing and Neighbourhoods,"Grants, Contributions & Donations",A47005
London Borough of Sutton,07/07/2023,50375184,"1,458.00",Admiral Healthcare Ltd.,SOCIAL SERVICES RESIDENTIAL,People's Services,Residential Care - Ext Provider,A56114
London Borough of Sutton,07/07/2023,50375235,"2,142.86",Admiral Healthcare Ltd.,SOCIAL SERVICES RESIDENTIAL,People's Services,Residential Care - Ext Provider,A56114
London Borough of Sutton,28/06/2023,50375013,"3,595.50",Affinity Fostering Services Ltd,CHILDREN'S SERVICES - FOSTERING & ADOPTION SERVICES,People's Services,Foster Parents Support,A44110
London Borough of Sutton,28/06/2023,50375014,"3,413.70",Affinity Fostering Services Ltd,CHILDREN'S SERVICES - FOSTERING & ADOPTION SERVICES,People's Services,Foster Parents Support,A44110
London Borough of Sutton,28/06/2023,50375055,"3,381.30",Affinity Fostering Services Ltd,CHILDREN'S SERVICES - FOSTERING & ADOPTION SERVICES,People's Services,Foster Parents Support,A44110
London Borough of Sutton,28/06/2023,50375056,"3,210.30",Affinity Fostering Services Ltd,CHILDREN'S SERVICES - FOSTERING & ADOPTION SERVICES,People's Services,Foster Parents Support,A44110
London Borough of Sutton,28/06/2023,20052698,"2,500.00",African and Caribbean Heritage,CHARITIES & VOLUNTARY ORGNS,Health and Wellbeing,Professional Fees,A44066
London Borough of Sutton,20/07/2023,50380692,"2,024.21",Agincare Enable Limited,SOCIAL SERVICES RESIDENTIAL,People's Services,One to One Care,A56108
London Borough of Sutton,20/07/2023,50380692,"2,024.21",Agincare Enable Limited,SOCIAL SERVICES RESIDENTIAL,People's Services,Supported Living,A56088
London Borough of Sutton,20/07/2023,50380692,455.70,Agincare Enable Limited,SOCIAL SERVICES RESIDENTIAL,People's Services,Supported Living,A56088
London Borough of Sutton,07/07/2023,50375261,"7,793.40",Leighton House Ltd,SOCIAL SERVICES RESIDENTIAL,People's Services,Residential Care - Ext Provider,A56114
London Borough of Sutton,07/07/2023,50375312,"8,716.00",Aitch Care Homes,SOCIAL SERVICES RESIDENTIAL,People's Services,Residential Care - Ext Provider,A56114
London Borough of Sutton,19/07/2023,20054551,"4,000.00",Ajuby International Ltd,SUNDRY SUPPLIER - FINANCE,Resources,Translating & Interpreter Services,A44050
London Borough of Sutton,28/02/2023,20052507,650.00,Alderton Associates Ltd,TEMP STAFF & CONSULTANCY,HRA,Payments to Contractors,C14000
London Borough of Sutton,06/02/2023,20052508,"3,300.00",Alderton Associates Ltd,TEMP STAFF & CONSULTANCY,HRA,Payments to Contractors,C14000
London Borough of Sutton,28/07/2023,20052928,997.10,REDACTED - PERSONAL DATA,GRANTS & EX GRATIA PAYMENTS,Environment Housing and Neighbourhoods,Temporary Protection - Homeless Persons,A62028
London Borough of Sutton,28/07/2023,20052929,997.10,REDACTED - PERSONAL DATA,GRANTS & EX GRATIA PAYMENTS,Environment Housing and Neighbourhoods,Temporary Protection - Homeless Persons,A62028
London Borough of Sutton,20/07/2023,20054322,"1,000.00",All Saints Benhilton C Of E,GRANTS & EX GRATIA PAYMENTS,Health and Wellbeing,Provider Contract Payments,A44290
London Borough of Sutton,11/07/2023,50374554,"168,131.48",All Saints Benhilton C Of E,GRANTS & EX GRATIA PAYMENTS,People's Services,Payments to Schools,A51013
London Borough of Sutton,11/07/2023,50374625,"30,068.00",All Saints Benhilton C Of E,GRANTS & EX GRATIA PAYMENTS,People's Services,Payment - Universal Infant Free School Meals,A51025
London Borough of Sutton,11/07/2023,50374640,"43,604.00",All Saints Benhilton C Of E,GRANTS & EX GRATIA PAYMENTS,People's Services,Payment - Universal Infant Free School Meals,A51025
London Borough of Sutton,11/07/2023,50374660,"2,030.00",All Saints Benhilton C Of E,GRANTS & EX GRATIA PAYMENTS,People's Services,Payment - Covid 19 Recovery Premium,A51039
London Borough of Sutton,11/07/2023,50374698,"18,915.00",All Saints Benhilton C Of E,GRANTS & EX GRATIA PAYMENTS,People's Services,Payment - Deprivation Pupil Premium,A51030
London Borough of Sutton,11/07/2023,50374720,"2,530.00",All Saints Benhilton C Of E,GRANTS & EX GRATIA PAYMENTS,People's Services,Payment - Post-LAC Pupil Premium,A51032
London Borough of Sutton,11/07/2023,50374729,"12,920.85",All Saints Benhilton C Of E,GRANTS & EX GRATIA PAYMENTS,People's Services,Place Funding,A56110
London Borough of Sutton,06/07/2023,50376704,"1,920.00",All Saints Benhilton C Of E,GRANTS & EX GRATIA PAYMENTS,People's Services,Top-up Funding,A51016
London Borough of Sutton,11/07/2023,50374730,"13,427.55",All Saints Carshalton Primary School,SCHOOL FUNDS,People's Services,Place Funding,A56110
London Borough of Sutton,07/07/2023,50375211,"4,621.64",Allied Care (Mhs) Ltd,SOCIAL SERVICES - OTHER,People's Services,Residential Care - Ext Provider,A56114
London Borough of Sutton,28/02/2023,20054341,288.87,Allpay Ltd,OFFICE SERVICES,People's Services,Client Activities,A56028
London Borough of Sutton,28/02/2023,20054341,306.93,Allpay Ltd,OFFICE SERVICES,People's Services,Client Activities,A56028
London Borough of Sutton,28/02/2023,20054341,56.12,Allpay Ltd,OFFICE SERVICES,People's Services,Client Activities,A56028
London Borough of Sutton,01/07/2023,20052991,"1,265.34",Allstar Business Solutions,FUEL AND VEHICLE SUPPLIES,Environment Housing and Neighbourhoods,Vehicles -  Fuel,A30015
London Borough of Sutton,07/07/2023,50375399,"6,609.52",Allswell Care Services Ltd,SOCIAL SERVICES RESIDENTIAL,People's Services,Residential Care - Ext Provider,A56114
London Borough of Sutton,07/07/2023,50375618,"5,397.60",Allswell Care Services Ltd,SOCIAL SERVICES RESIDENTIAL,People's Services,Residential Care - Ext Provider,A56114
London Borough of Sutton,07/07/2023,50375656,"5,397.60",Allswell Care Services Ltd,SOCIAL SERVICES RESIDENTIAL,People's Services,Residential Care - Ext Provider,A56114
London Borough of Sutton,14/07/2023,50378410,622.40,Alpenbest Limited,SOCIAL SERVICES DAY CARE,People's Services,Home Care Services,A56019
London Borough of Sutton,14/07/2023,50378411,"3,183.52",Alpenbest Limited,SOCIAL SERVICES DAY CARE,People's Services,Home Care Services,A56019
London Borough of Sutton,14/07/2023,50378414,953.28,Alpenbest Limited,SOCIAL SERVICES DAY CARE,People's Services,Home Care Services,A56019
London Borough of Sutton,14/07/2023,50378415,"1,491.19",Alpenbest Limited,SOCIAL SERVICES DAY CARE,People's Services,Home Care Services,A56019
London Borough of Sutton,14/07/2023,50378416,"1,591.76",Alpenbest Limited,SOCIAL SERVICES DAY CARE,People's Services,Home Care Services,A56019
London Borough of Sutton,14/07/2023,50378417,852.64,Alpenbest Limited,SOCIAL SERVICES DAY CARE,People's Services,Home Care Services,A56019
London Borough of Sutton,14/07/2023,50378419,"1,659.47",Alpenbest Limited,SOCIAL SERVICES DAY CARE,People's Services,Home Care Services,A56019
London Borough of Sutton,14/07/2023,50378420,"1,805.40",Alpenbest Limited,SOCIAL SERVICES DAY CARE,People's Services,Home Care Services,A56019
London Borough of Sutton,14/07/2023,50378446,"1,748.28",Alpenbest Limited,SOCIAL SERVICES DAY CARE,People's Services,Home Care Services,A56019
London Borough of Sutton,14/07/2023,50378447,"3,183.52",Alpenbest Limited,SOCIAL SERVICES DAY CARE,People's Services,Home Care Services,A56019
London Borough of Sutton,14/07/2023,50378448,739.12,Alpenbest Limited,SOCIAL SERVICES DAY CARE,People's Services,Home Care Services,A56019
London Borough of Sutton,14/07/2023,50378450,"1,222.20",Alpenbest Limited,SOCIAL SERVICES DAY CARE,People's Services,Home Care Services,A56019
London Borough of Sutton,14/07/2023,50378452,629.41,Alpenbest Limited,SOCIAL SERVICES DAY CARE,People's Services,Home Care Services,A56019
London Borough of Sutton,14/07/2023,50378498,928.36,Alpenbest Limited,SOCIAL SERVICES DAY CARE,People's Services,Home Care Services,A56019
London Borough of Sutton,14/07/2023,50378499,"1,591.76",Alpenbest Limited,SOCIAL SERVICES DAY CARE,People's Services,Home Care Services,A56019
London Borough of Sutton,14/07/2023,50378500,"1,022.47",Alpenbest Limited,SOCIAL SERVICES DAY CARE,People's Services,Home Care Services,A56019
London Borough of Sutton,14/07/2023,50378501,863.35,Alpenbest Limited,SOCIAL SERVICES DAY CARE,People's Services,Home Care Services,A56019
London Borough of Sutton,14/07/2023,50378502,"1,458.78",Alpenbest Limited,SOCIAL SERVICES DAY CARE,People's Services,Home Care Services,A56019
London Borough of Sutton,14/07/2023,50378504,"1,705.36",Alpenbest Limited,SOCIAL SERVICES DAY CARE,People's Services,Home Care Services,A56019
London Borough of Sutton,14/07/2023,50378505,852.64,Alpenbest Limited,SOCIAL SERVICES DAY CARE,People's Services,Home Care Services,A56019
London Borough of Sutton,14/07/2023,50378507,"1,672.56",Alpenbest Limited,SOCIAL SERVICES DAY CARE,People's Services,Home Care Services,A56019
London Borough of Sutton,14/07/2023,50378511,852.64,Alpenbest Limited,SOCIAL SERVICES DAY CARE,People's Services,Home Care Services,A56019
London Borough of Sutton,14/07/2023,50378512,998.12,Alpenbest Limited,SOCIAL SERVICES DAY CARE,People's Services,Home Care Services,A56019
London Borough of Sutton,14/07/2023,50378513,"1,578.81",Alpenbest Limited,SOCIAL SERVICES DAY CARE,People's Services,Home Care Services,A56019
London Borough of Sutton,14/07/2023,50378514,882.17,Alpenbest Limited,SOCIAL SERVICES DAY CARE,People's Services,Home Care Services,A56019
London Borough of Sutton,14/07/2023,50378515,"3,003.52",Alpenbest Limited,SOCIAL SERVICES DAY CARE,People's Services,Home Care Services,A56019
London Borough of Sutton,14/07/2023,50378515,739.12,Alpenbest Limited,SOCIAL SERVICES DAY CARE,People's Services,Home Care Services,A56019
London Borough of Sutton,14/07/2023,50378522,830.99,Alpenbest Limited,SOCIAL SERVICES DAY CARE,People's Services,Home Care Services,A56019
London Borough of Sutton,14/07/2023,50378524,724.16,Alpenbest Limited,SOCIAL SERVICES DAY CARE,People's Services,Home Care Services,A56019
London Borough of Sutton,14/07/2023,50378525,"2,074.92",Alpenbest Limited,SOCIAL SERVICES DAY CARE,People's Services,Home Care Services,A56019
London Borough of Sutton,14/07/2023,50378525,"2,505.70",Alpenbest Limited,SOCIAL SERVICES DAY CARE,People's Services,Home Care Services,A56019
London Borough of Sutton,16/06/2023,50380557,819.28,Alpenbest Limited,SOCIAL SERVICES DAY CARE,People's Services,Home Care Services,A56019
London Borough of Sutton,16/06/2023,50380558,"1,512.87",Alpenbest Limited,SOCIAL SERVICES DAY CARE,People's Services,Home Care Services,A56019
London Borough of Sutton,16/06/2023,50380559,"1,636.01",Alpenbest Limited,SOCIAL SERVICES DAY CARE,People's Services,Home Care Services,A56019
London Borough of Sutton,16/06/2023,50380563,843.18,Alpenbest Limited,SOCIAL SERVICES DAY CARE,People's Services,Home Care Services,A56019
London Borough of Sutton,16/06/2023,50380564,"1,625.01",Alpenbest Limited,SOCIAL SERVICES DAY CARE,People's Services,Home Care Services,A56019
London Borough of Sutton,16/06/2023,50381495,"1,771.98",Alpenbest Limited,SOCIAL SERVICES DAY CARE,People's Services,Home Care Services,A56019
London Borough of Sutton,16/06/2023,50381496,860.11,Alpenbest Limited,SOCIAL SERVICES DAY CARE,People's Services,Home Care Services,A56019
London Borough of Sutton,16/06/2023,50381497,"5,324.82",Alpenbest Limited,SOCIAL SERVICES DAY CARE,People's Services,Home Care Services,A56019
London Borough of Sutton,16/06/2023,50381541,795.88,Alpenbest Limited,SOCIAL SERVICES DAY CARE,People's Services,Home Care Services,A56019
London Borough of Sutton,14/07/2023,50381542,"3,183.52",Alpenbest Limited,SOCIAL SERVICES DAY CARE,People's Services,Home Care Services,A56019
London Borough of Sutton,14/07/2023,50382276,"1,141.02",Alpenbest Limited,SOCIAL SERVICES DAY CARE,People's Services,Home Care Services,A56019
London Borough of Sutton,14/07/2023,50382292,"5,259.84",Alpenbest Limited,SOCIAL SERVICES DAY CARE,People's Services,Home Care Services,A56019
London Borough of Sutton,16/06/2023,50382307,"1,968.07",Alpenbest Limited,SOCIAL SERVICES DAY CARE,People's Services,Home Care Services,A56019
London Borough of Sutton,14/07/2023,50382308,"1,958.37",Alpenbest Limited,SOCIAL SERVICES DAY CARE,People's Services,Home Care Services,A56019
London Borough of Sutton,14/07/2023,50382309,825.00,Alpenbest Limited,SOCIAL SERVICES DAY CARE,People's Services,Home Care Services,A56019
London Borough of Sutton,14/07/2023,50382325,"2,996.28",Alpenbest Limited,SOCIAL SERVICES DAY CARE,People's Services,Home Care Services,A56019
London Borough of Sutton,11/07/2023,50374333,691.44,REDACTED - PERSONAL DATA,GRANTS & EX GRATIA PAYMENTS,People's Services,Payment - Nursery Funding,A51056
London Borough of Sutton,11/07/2023,50374368,"1,009.80",REDACTED - PERSONAL DATA,GRANTS & EX GRATIA PAYMENTS,People's Services,Payment - Nursery Funding,A51056
London Borough of Sutton,11/07/2023,50374384,673.20,REDACTED - PERSONAL DATA,GRANTS & EX GRATIA PAYMENTS,People's Services,Payment - Nursery Funding,A51056
London Borough of Sutton,01/06/2023,50375078,"4,350.00",Anchor Foster Care Services Ltd,CHILDREN'S SERVICES - FOSTERING & ADOPTION SERVICES,People's Services,Foster Parents Support,A44110
London Borough of Sutton,07/07/2023,50375189,"2,908.20",Anchor Trust ,SOCIAL SERVICES RESIDENTIAL,People's Services,Residential Care - Ext Provider,A56114
London Borough of Sutton,05/07/2023,50373540,500.00,REDACTED - PERSONAL DATA,GRANTS & EX GRATIA PAYMENTS,Environment Housing and Neighbourhoods,"Grants, Contributions & Donations",A47005
London Borough of Sutton,11/07/2023,50374350,"1,262.25",REDACTED - PERSONAL DATA,GRANTS & EX GRATIA PAYMENTS,People's Services,Payment - Nursery Funding,A51056
London Borough of Sutton,04/07/2023,50375106,"3,364.28",Ansacare Fostering Agency Ltd,CHILDREN'S SERVICES - FOSTERING & ADOPTION SERVICES,People's Services,Foster Parents Support,A44110
London Borough of Sutton,04/07/2023,50375121,"3,364.28",Ansacare Fostering Agency Ltd,CHILDREN'S SERVICES - FOSTERING & ADOPTION SERVICES,People's Services,Foster Parents Support,A44110
London Borough of Sutton,28/06/2023,20052825,"2,460.00",Aon UK Limited,FINANCIAL / INSURANCE INSTNS,Resources,General Insurance (Excl Premises & Transport),A44260
London Borough of Sutton,30/06/2023,20053116,"6,705.00",Apex Housing Solutions Ltd,SOCIAL SERVICES DAY CARE,Environment Housing and Neighbourhoods,Bed & Breakfast,A56000
London Borough of Sutton,14/07/2023,20053793,"30,000.00",APL Construction Services Ltd,CONSTRUCTION INDUSTRY,HRA,Council Dwellings - Construction & Renovation,C10002
London Borough of Sutton,14/07/2023,20053794,"97,406.35",APL Construction Services Ltd,CONSTRUCTION INDUSTRY,HRA,Council Dwellings - Construction & Renovation,C10002
London Borough of Sutton,01/06/2023,50375079,"6,364.20",Ascent Fostering Agency Ltd,CHILDREN'S SERVICE - OTHER,People's Services,Foster Parents Support,A44110
London Borough of Sutton,01/06/2023,50375126,"6,364.20",Ascent Fostering Agency Ltd,CHILDREN'S SERVICE - OTHER,People's Services,Foster Parents Support,A44110
London Borough of Sutton,06/06/2023,50381596,"1,065.84",Ashlong House Ltd,SOCIAL SERVICES RESIDENTIAL,People's Services,Supported Living,A56088
London Borough of Sutton,06/06/2023,50381597,"1,312.36",Ashlong House Ltd,SOCIAL SERVICES RESIDENTIAL,People's Services,Supported Living,A56088
London Borough of Sutton,26/06/2023,50381598,"1,312.36",Ashlong House Ltd,SOCIAL SERVICES RESIDENTIAL,People's Services,Supported Living,A56088
London Borough of Sutton,17/07/2023,50381600,"1,312.36",Ashlong House Ltd,SOCIAL SERVICES RESIDENTIAL,People's Services,Supported Living,A56088
London Borough of Sutton,07/07/2023,50375245,"3,821.24",Ashton Care Homes Ltd.,SOCIAL SERVICES RESIDENTIAL,People's Services,Nursing Care - Ext Provider,A56025
London Borough of Sutton,07/07/2023,50375245,-836.76,Ashton Care Homes Ltd.,SOCIAL SERVICES RESIDENTIAL,People's Services,Nursing Care - 3rd party top up payment,A56023
London Borough of Sutton,07/07/2023,50375321,"3,980.00",Ashurst Lodge Healthcare Ltd,CHILDREN'S SERVICES - RESIDENTIAL,People's Services,Residential Care - Ext Provider,A56114
London Borough of Sutton,07/07/2023,50375321,"-1,990.00",Ashurst Lodge Healthcare Ltd,CHILDREN'S SERVICES - RESIDENTIAL,People's Services,Nursing Care - 3rd party top up payment,A56023
London Borough of Sutton,07/07/2023,50375210,"4,144.68",Aspen Place,SOCIAL SERVICES DAY CARE,People's Services,Nursing Care - Ext Provider,A56025
London Borough of Sutton,07/07/2023,50375153,"5,699.00",Aspens Charities,SOCIAL SERVICES RESIDENTIAL,People's Services,Residential Care - Ext Provider,A56114
London Borough of Sutton,30/06/2023,50372407,"2,400.30",Aspirations Care Ltd,SOCIAL SERVICES DAY CARE,People's Services,Home Care Services,A56019
London Borough of Sutton,30/06/2023,50372407,"7,119.00",Aspirations Care Ltd,SOCIAL SERVICES DAY CARE,People's Services,Home Care Services,A56019
London Borough of Sutton,22/03/2023,20054024,470.00,Associated Security Group Ltd,BUILDING MNTCE - SERVICES,Health and Wellbeing,Security / Surveillance Equipment Maintenance,A20009
London Borough of Sutton,05/07/2023,50375077,"23,528.57",Athena Housing and Support Ltd,CHILDREN'S SERVICES - RESIDENTIAL,People's Services,Residential Care-Children,A56115
London Borough of Sutton,11/07/2023,50374269,964.80,Aunty Connies Childcare,ACADEMIC INSTNS - OTHER,People's Services,Payment - Nursery Funding,A51056
London Borough of Sutton,07/07/2023,50375133,"6,400.00",Autism & Aspergers Care Services,SOCIAL SERVICES RESIDENTIAL,People's Services,Residential Care - Ext Provider,A56114
London Borough of Sutton,06/07/2023,50373471,560.00,Avenue Primary Acadamy,SCHOOL FUNDS,People's Services,Payments to Schools,A51013
London Borough of Sutton,11/07/2023,50374606,"2,408.40",Avenue Primary Acadamy,SCHOOL FUNDS,People's Services,Pupil Growth,A51014
London Borough of Sutton,11/07/2023,50374607,"9,633.40",Avenue Primary Acadamy,SCHOOL FUNDS,People's Services,Pupil Growth,A51014
London Borough of Sutton,11/07/2023,50374731,"11,642.40",Avenue Primary Acadamy,SCHOOL FUNDS,People's Services,Place Funding,A56110
London Borough of Sutton,28/04/2023,50382164,479.85,Avenue Primary Acadamy,SCHOOL FUNDS,People's Services,Equipment,A61013
London Borough of Sutton,20/07/2023,50380602,"14,136.00",Ayai Care Limited,SOCIAL SERVICES DAY CARE,People's Services,Supported Living,A56088
London Borough of Sutton,20/07/2023,50380670,"13,604.57",Ayai Care Limited,SOCIAL SERVICES DAY CARE,People's Services,Supported Living,A56088
London Borough of Sutton,28/06/2023,50375012,267.85,Back on Track Housing Ltd,SOCIAL SERVICES - OTHER,People's Services,Approved Lodgings,A61000
London Borough of Sutton,28/06/2023,50375012,"6,000.00",Back on Track Housing Ltd,SOCIAL SERVICES - OTHER,People's Services,Approved Lodgings,A61000
London Borough of Sutton,28/06/2023,50375089,"4,896.25",Back on Track Housing Ltd,SOCIAL SERVICES - OTHER,People's Services,Accommodation - Supported Living,A62001
London Borough of Sutton,28/06/2023,50375093,267.85,Back on Track Housing Ltd,SOCIAL SERVICES - OTHER,People's Services,Approved Lodgings,A61000
London Borough of Sutton,28/06/2023,50375093,"7,285.72",Back on Track Housing Ltd,SOCIAL SERVICES - OTHER,People's Services,Approved Lodgings,A61000
London Borough of Sutton,28/06/2023,50375114,267.85,Back on Track Housing Ltd,SOCIAL SERVICES - OTHER,People's Services,Approved Lodgings,A61000
London Borough of Sutton,28/06/2023,50375114,"6,000.00",Back on Track Housing Ltd,SOCIAL SERVICES - OTHER,People's Services,Approved Lodgings,A61000
London Borough of Sutton,11/07/2023,50374732,"13,759.20",Bandon Hill Primary School (Academy),SCHOOL FUNDS,People's Services,Place Funding,A56110
London Borough of Sutton,07/07/2023,50375158,"4,096.12",Barchester Healthcare Homes Ltd,SOCIAL SERVICES RESIDENTIAL,People's Services,Nursing Care - Ext Provider,A56025
London Borough of Sutton,07/07/2023,50375158,-878.84,Barchester Healthcare Homes Ltd,SOCIAL SERVICES RESIDENTIAL,People's Services,Nursing Care - 3rd party top up payment,A56023
London Borough of Sutton,06/07/2023,20053455,"7,075.00",Beddington Infants School,SCHOOL FUNDS,People's Services,Payments to Contractors,C14000
London Borough of Sutton,13/07/2023,20053887,"41,719.10",Beddington Infants School,SCHOOL FUNDS,People's Services,Payments to Contractors,C14000
London Borough of Sutton,19/07/2023,20054267,"18,320.80",Beddington Infants School,SCHOOL FUNDS,People's Services,Payments to Contractors,C14000
London Borough of Sutton,07/07/2023,50374201,"45,000.00",Beddington Infants School,SCHOOL FUNDS,People's Services,Payment - school forward funding,A51059
London Borough of Sutton,11/07/2023,50374548,"108,196.24",Beddington Infants School,SCHOOL FUNDS,People's Services,Payments to Schools,A51013
London Borough of Sutton,11/07/2023,50374620,"31,232.00",Beddington Infants School,SCHOOL FUNDS,People's Services,Payment - Universal Infant Free School Meals,A51025
London Borough of Sutton,11/07/2023,50374637,"45,707.00",Beddington Infants School,SCHOOL FUNDS,People's Services,Payment - Universal Infant Free School Meals,A51025
London Borough of Sutton,11/07/2023,50374654,"1,232.50",Beddington Infants School,SCHOOL FUNDS,People's Services,Payment - Covid 19 Recovery Premium,A51039
London Borough of Sutton,11/07/2023,50374692,"11,276.25",Beddington Infants School,SCHOOL FUNDS,People's Services,Payment - Deprivation Pupil Premium,A51030
London Borough of Sutton,11/07/2023,50374715,"1,897.50",Beddington Infants School,SCHOOL FUNDS,People's Services,Payment - Post-LAC Pupil Premium,A51032
London Borough of Sutton,11/07/2023,50374734,"8,467.20",Beddington Infants School,SCHOOL FUNDS,People's Services,Place Funding,A56110
London Borough of Sutton,11/07/2023,50374735,"14,023.80",Beddington Park Primary (Academy) ,SCHOOL FUNDS,People's Services,Place Funding,A56110
London Borough of Sutton,11/07/2023,50375933,892.80,Beddington Park Primary (Academy) ,SCHOOL FUNDS,People's Services,Early Years Pupil Premium,A60031
London Borough of Sutton,11/07/2023,50375955,763.20,Beddington Park Primary (Academy) ,SCHOOL FUNDS,People's Services,Other payments to schools,A51023
London Borough of Sutton,20/07/2023,50380704,"6,620.71",Beechcroft Care Limited,SOCIAL SERVICES RESIDENTIAL,People's Services,Supported Living,A56088
London Borough of Sutton,20/07/2023,50380704,813.75,Beechcroft Care Limited,SOCIAL SERVICES RESIDENTIAL,People's Services,One to One Care,A56108
London Borough of Sutton,23/06/2023,20052482,"1,298.92",Beeches Tree Care,AGRICULTURAL & ESTATE SERVICES,Environment Housing and Neighbourhoods,Tree Works,A56042
London Borough of Sutton,29/06/2023,20052789,"1,260.00",Beeches Tree Care,AGRICULTURAL & ESTATE SERVICES,Environment Housing and Neighbourhoods,Purchases and Repairs Fixtures & Fittings,A25005
London Borough of Sutton,03/07/2023,20052856,"1,148.65",Beeches Tree Care,AGRICULTURAL & ESTATE SERVICES,Environment Housing and Neighbourhoods,Tree Works,A56042
London Borough of Sutton,03/07/2023,20052981,"2,396.80",Beeches Tree Care,AGRICULTURAL & ESTATE SERVICES,Environment Housing and Neighbourhoods,Tree Works,A56042
London Borough of Sutton,03/07/2023,20052982,"3,328.00",Beeches Tree Care,AGRICULTURAL & ESTATE SERVICES,Environment Housing and Neighbourhoods,Tree Works,A56042
London Borough of Sutton,04/07/2023,20052983,"8,310.16",Beeches Tree Care,AGRICULTURAL & ESTATE SERVICES,Environment Housing and Neighbourhoods,Maintenance of trees,A28003
London Borough of Sutton,13/07/2023,20053796,"14,234.86",Beeches Tree Care,AGRICULTURAL & ESTATE SERVICES,Environment Housing and Neighbourhoods,Highway Trees - Maintenance,A28005
London Borough of Sutton,17/07/2023,20053942,"1,505.73",Beeches Tree Care,AGRICULTURAL & ESTATE SERVICES,Environment Housing and Neighbourhoods,Purchases and Repairs Fixtures & Fittings,A25005
London Borough of Sutton,11/07/2023,50374272,"6,025.14",Belmont Village Playgroup,GRANTS & EX GRATIA PAYMENTS,People's Services,Payment - Nursery Funding,A51056
London Borough of Sutton,11/07/2023,50374273,"2,311.92",Belmont Village Playgroup,GRANTS & EX GRATIA PAYMENTS,People's Services,Payment - Nursery Funding,A51056
London Borough of Sutton,07/07/2023,50375284,"-3,890.68",Bespoke Care Support Ltd,SOCIAL SERVICES - OTHER,People's Services,Nursing Care - 3rd party top up payment,A56023
London Borough of Sutton,07/07/2023,50375287,"-2,000.00",Bespoke Care Support Ltd,SOCIAL SERVICES - OTHER,People's Services,Nursing Care - 3rd party top up payment,A56023
London Borough of Sutton,20/07/2023,50380699,"8,615.08",Bespoke Care Support Ltd,SOCIAL SERVICES - OTHER,People's Services,Supported Living,A56088
London Borough of Sutton,20/07/2023,50380702,"3,985.71",Bespoke Care Support Ltd,SOCIAL SERVICES - OTHER,People's Services,Supported Living,A56088
London Borough of Sutton,20/07/2023,50380712,"4,428.57",Bespoke Care Support Ltd,SOCIAL SERVICES - OTHER,People's Services,Supported Living,A56088
London Borough of Sutton,25/06/2023,50372888,542.50,Best at Home Domiciliary Care Services Ltd,SOCIAL SERVICES DAY CARE,People's Services,Home Care Services,A56019
London Borough of Sutton,25/06/2023,50372902,150.00,Best at Home Domiciliary Care Services Ltd,SOCIAL SERVICES DAY CARE,People's Services,Home Care Services,A56019
London Borough of Sutton,25/06/2023,50372902,827.97,Best at Home Domiciliary Care Services Ltd,SOCIAL SERVICES DAY CARE,People's Services,Home Care Services,A56019
London Borough of Sutton,25/06/2023,50372907,"3,156.00",Best at Home Domiciliary Care Services Ltd,SOCIAL SERVICES DAY CARE,People's Services,Home Care Services,A56019
London Borough of Sutton,25/06/2023,50372909,901.97,Best at Home Domiciliary Care Services Ltd,SOCIAL SERVICES DAY CARE,People's Services,Home Care Services,A56019
London Borough of Sutton,25/06/2023,50372918,827.97,Best at Home Domiciliary Care Services Ltd,SOCIAL SERVICES DAY CARE,People's Services,Home Care Services,A56019
London Borough of Sutton,25/06/2023,50372922,"3,156.00",Best at Home Domiciliary Care Services Ltd,SOCIAL SERVICES DAY CARE,People's Services,Home Care Services,A56019
London Borough of Sutton,25/06/2023,50372936,863.00,Best at Home Domiciliary Care Services Ltd,SOCIAL SERVICES DAY CARE,People's Services,Home Care Services,A56019
London Borough of Sutton,25/06/2023,50373072,981.94,Best at Home Domiciliary Care Services Ltd,SOCIAL SERVICES DAY CARE,People's Services,Home Care Services,A56019
London Borough of Sutton,21/05/2023,50375775,509.48,Best at Home Domiciliary Care Services Ltd,SOCIAL SERVICES DAY CARE,People's Services,Home Care Services,A56019
London Borough of Sutton,28/05/2023,50375776,539.98,Best at Home Domiciliary Care Services Ltd,SOCIAL SERVICES DAY CARE,People's Services,Home Care Services,A56019
London Borough of Sutton,04/06/2023,50375777,566.48,Best at Home Domiciliary Care Services Ltd,SOCIAL SERVICES DAY CARE,People's Services,Home Care Services,A56019
London Borough of Sutton,18/06/2023,50375815,598.00,Best at Home Domiciliary Care Services Ltd,SOCIAL SERVICES DAY CARE,People's Services,Home Care Services,A56019
London Borough of Sutton,02/07/2023,50376142,981.94,Best at Home Domiciliary Care Services Ltd,SOCIAL SERVICES DAY CARE,People's Services,Home Care Services,A56019
London Borough of Sutton,02/07/2023,50376160,863.00,Best at Home Domiciliary Care Services Ltd,SOCIAL SERVICES DAY CARE,People's Services,Home Care Services,A56019
London Borough of Sutton,02/07/2023,50376183,150.00,Best at Home Domiciliary Care Services Ltd,SOCIAL SERVICES DAY CARE,People's Services,Home Care Services,A56019
London Borough of Sutton,02/07/2023,50376183,827.97,Best at Home Domiciliary Care Services Ltd,SOCIAL SERVICES DAY CARE,People's Services,Home Care Services,A56019
London Borough of Sutton,02/07/2023,50376190,"3,156.00",Best at Home Domiciliary Care Services Ltd,SOCIAL SERVICES DAY CARE,People's Services,Home Care Services,A56019
London Borough of Sutton,02/07/2023,50376197,"3,156.00",Best at Home Domiciliary Care Services Ltd,SOCIAL SERVICES DAY CARE,People's Services,Home Care Services,A56019
London Borough of Sutton,02/07/2023,50376204,901.97,Best at Home Domiciliary Care Services Ltd,SOCIAL SERVICES DAY CARE,People's Services,Home Care Services,A56019
London Borough of Sutton,09/07/2023,50377662,"3,156.00",Best at Home Domiciliary Care Services Ltd,SOCIAL SERVICES DAY CARE,People's Services,Home Care Services,A56019
London Borough of Sutton,09/07/2023,50377674,"3,156.00",Best at Home Domiciliary Care Services Ltd,SOCIAL SERVICES DAY CARE,People's Services,Home Care Services,A56019
London Borough of Sutton,09/07/2023,50377682,901.97,Best at Home Domiciliary Care Services Ltd,SOCIAL SERVICES DAY CARE,People's Services,Home Care Services,A56019
London Borough of Sutton,09/07/2023,50377701,981.94,Best at Home Domiciliary Care Services Ltd,SOCIAL SERVICES DAY CARE,People's Services,Home Care Services,A56019
London Borough of Sutton,09/07/2023,50377721,542.50,Best at Home Domiciliary Care Services Ltd,SOCIAL SERVICES DAY CARE,People's Services,Home Care Services,A56019
London Borough of Sutton,09/07/2023,50377757,863.00,Best at Home Domiciliary Care Services Ltd,SOCIAL SERVICES DAY CARE,People's Services,Home Care Services,A56019
London Borough of Sutton,09/07/2023,50377809,150.00,Best at Home Domiciliary Care Services Ltd,SOCIAL SERVICES DAY CARE,People's Services,Home Care Services,A56019
London Borough of Sutton,09/07/2023,50377809,827.97,Best at Home Domiciliary Care Services Ltd,SOCIAL SERVICES DAY CARE,People's Services,Home Care Services,A56019
London Borough of Sutton,16/07/2023,50382214,981.94,Best at Home Domiciliary Care Services Ltd,SOCIAL SERVICES DAY CARE,People's Services,Home Care Services,A56019
London Borough of Sutton,16/07/2023,50382241,150.00,Best at Home Domiciliary Care Services Ltd,SOCIAL SERVICES DAY CARE,People's Services,Home Care Services,A56019
London Borough of Sutton,16/07/2023,50382241,705.97,Best at Home Domiciliary Care Services Ltd,SOCIAL SERVICES DAY CARE,People's Services,Home Care Services,A56019
London Borough of Sutton,16/07/2023,50382246,"3,156.00",Best at Home Domiciliary Care Services Ltd,SOCIAL SERVICES DAY CARE,People's Services,Home Care Services,A56019
London Borough of Sutton,16/07/2023,50382253,"3,156.00",Best at Home Domiciliary Care Services Ltd,SOCIAL SERVICES DAY CARE,People's Services,Home Care Services,A56019
London Borough of Sutton,16/07/2023,50382259,901.97,Best at Home Domiciliary Care Services Ltd,SOCIAL SERVICES DAY CARE,People's Services,Home Care Services,A56019
London Borough of Sutton,16/07/2023,50382310,528.50,Best at Home Domiciliary Care Services Ltd,SOCIAL SERVICES DAY CARE,People's Services,Home Care Services,A56019
London Borough of Sutton,16/07/2023,50382313,863.00,Best at Home Domiciliary Care Services Ltd,SOCIAL SERVICES DAY CARE,People's Services,Home Care Services,A56019
London Borough of Sutton,30/06/2023,20053156,"10,138.00",Bestcourt UK Ltd,ACCOMMODATION BED & BREAKFAST,Environment Housing and Neighbourhoods,Bed & Breakfast,A56000
London Borough of Sutton,20/07/2023,50380647,"4,650.00",BETTER LIFE SUPPORTED LIVING LIMITED,SOCIAL SERVICES RESIDENTIAL,People's Services,One to One Care,A56108
London Borough of Sutton,28/06/2023,20053175,"4,329.20",Bevan Brittan LLP,LEGAL & PROFESSIONAL SERVICES,Development Growth and Regeneration,External Legal Fees,C20008
London Borough of Sutton,01/05/2023,50376710,"21,347.66",Beyond Autism,CHILDREN'S SERVICES - RESIDENTIAL,People's Services,Independent School Fees,A56002
London Borough of Sutton,01/05/2023,50376711,"21,987.94",Beyond Autism,CHILDREN'S SERVICES - RESIDENTIAL,People's Services,Independent School Fees,A56002
London Borough of Sutton,01/05/2023,50376712,"21,347.66",Beyond Autism,CHILDREN'S SERVICES - RESIDENTIAL,People's Services,Independent School Fees,A56002
London Borough of Sutton,01/05/2023,50376717,840.00,Beyond Autism,CHILDREN'S SERVICES - RESIDENTIAL,People's Services,Independent School Fees,A56002
London Borough of Sutton,01/05/2023,50376719,"21,347.66",Beyond Autism,CHILDREN'S SERVICES - RESIDENTIAL,People's Services,Independent School Fees,A56002
London Borough of Sutton,01/05/2023,50376720,"21,347.66",Beyond Autism,CHILDREN'S SERVICES - RESIDENTIAL,People's Services,Independent School Fees,A56002
London Borough of Sutton,01/05/2023,50376721,"21,347.66",Beyond Autism,CHILDREN'S SERVICES - RESIDENTIAL,People's Services,Independent School Fees,A56002
London Borough of Sutton,31/05/2023,20053829,"8,753.00",Bioregional Development Group,LEGAL & PROFESSIONAL SERVICES,Environment Housing and Neighbourhoods,Community Initiatives,A44288
London Borough of Sutton,11/07/2023,50374450,"6,479.55",Bizzy Bees Day Nursery,GRANTS & EX GRATIA PAYMENTS,People's Services,Payment - Nursery Funding,A51056
London Borough of Sutton,21/06/2023,20052341,"13,702.50",Bloom Procurement Services Ltd,TEMP STAFF & CONSULTANCY,Resources,Professional Fees,A44066
London Borough of Sutton,05/07/2023,20053528,"4,410.00",Bloom Procurement Services Ltd,TEMP STAFF & CONSULTANCY,Development Growth and Regeneration,External Fees and Consultants,C20000
London Borough of Sutton,07/07/2023,20053588,"12,000.00",Bloom Procurement Services Ltd,TEMP STAFF & CONSULTANCY,Resources,Professional Fees,A44066
London Borough of Sutton,11/04/2023,20050636,"5,844.39",Bolinda UK Ltd,BOOKS PUBLICATIONS STATIONERY,Health and Wellbeing,Books,A43050
London Borough of Sutton,30/06/2023,20054232,"22,956.72",Bottomline Technologies Ltd,OFFICE SERVICES,Resources,Fees,A44040
London Borough of Sutton,28/07/2023,20052780,"3,025.50",Box Twenty Consulting Engineers Ltd,TEMP STAFF & CONSULTANCY,HRA,External Fees and Consultants,C20000
London Borough of Sutton,07/07/2023,50375194,"2,400.00",Brama Care Ltd,SOCIAL SERVICES-HOME CARE,People's Services,Nursing Care - Ext Provider,A56025
London Borough of Sutton,07/07/2023,50375329,-750.40,Bridge House Care Centre,SOCIAL SERVICES RESIDENTIAL,People's Services,Nursing Care - 3rd party top up payment,A56023
London Borough of Sutton,07/07/2023,50375329,"3,734.88",Bridge House Care Centre,SOCIAL SERVICES RESIDENTIAL,People's Services,Nursing Care Short Term,A56026
London Borough of Sutton,07/07/2023,50375355,-345.26,Bridge House Care Centre,SOCIAL SERVICES RESIDENTIAL,People's Services,Nursing Care - 3rd party top up payment,A56023
London Borough of Sutton,07/07/2023,50375355,"1,791.43",Bridge House Care Centre,SOCIAL SERVICES RESIDENTIAL,People's Services,Nursing Care - Ext Provider,A56025
London Borough of Sutton,07/07/2023,50375362,"4,096.12",Bridge House Care Centre,SOCIAL SERVICES RESIDENTIAL,People's Services,Nursing Care - Ext Provider,A56025
London Borough of Sutton,07/07/2023,50375362,-878.84,Bridge House Care Centre,SOCIAL SERVICES RESIDENTIAL,People's Services,Nursing Care - 3rd party top up payment,A56023
London Borough of Sutton,07/07/2023,50375380,-313.87,Bridge House Care Centre,SOCIAL SERVICES RESIDENTIAL,People's Services,Nursing Care - 3rd party top up payment,A56023
London Borough of Sutton,07/07/2023,50375380,"1,462.90",Bridge House Care Centre,SOCIAL SERVICES RESIDENTIAL,People's Services,Respite Care,A56116
London Borough of Sutton,07/07/2023,50375403,"4,096.12",Bridge House Care Centre,SOCIAL SERVICES RESIDENTIAL,People's Services,Nursing Care - Ext Provider,A56025
London Borough of Sutton,07/07/2023,50375403,-878.84,Bridge House Care Centre,SOCIAL SERVICES RESIDENTIAL,People's Services,Nursing Care - 3rd party top up payment,A56023
London Borough of Sutton,07/07/2023,50375405,"4,096.12",Bridge House Care Centre,SOCIAL SERVICES RESIDENTIAL,People's Services,Nursing Care - Ext Provider,A56025
London Borough of Sutton,07/07/2023,50375405,-878.84,Bridge House Care Centre,SOCIAL SERVICES RESIDENTIAL,People's Services,Nursing Care - 3rd party top up payment,A56023
London Borough of Sutton,07/07/2023,50375421,-878.84,Bridge House Care Centre,SOCIAL SERVICES RESIDENTIAL,People's Services,Nursing Care - 3rd party top up payment,A56023
London Borough of Sutton,07/07/2023,50375421,"5,278.84",Bridge House Care Centre,SOCIAL SERVICES RESIDENTIAL,People's Services,Respite Care,A56116
London Borough of Sutton,07/07/2023,50375422,-878.84,Bridge House Care Centre,SOCIAL SERVICES RESIDENTIAL,People's Services,Nursing Care - 3rd party top up payment,A56023
London Borough of Sutton,07/07/2023,50375422,"4,096.12",Bridge House Care Centre,SOCIAL SERVICES RESIDENTIAL,People's Services,Nursing Care Short Term,A56026
London Borough of Sutton,07/07/2023,50375473,"4,096.12",Bridge House Care Centre,SOCIAL SERVICES RESIDENTIAL,People's Services,Nursing Care - Ext Provider,A56025
London Borough of Sutton,07/07/2023,50375474,-878.84,Bridge House Care Centre,SOCIAL SERVICES RESIDENTIAL,People's Services,Nursing Care - 3rd party top up payment,A56023
London Borough of Sutton,07/07/2023,50375477,-878.84,Bridge House Care Centre,SOCIAL SERVICES RESIDENTIAL,People's Services,Nursing Care - 3rd party top up payment,A56023
London Borough of Sutton,07/07/2023,50375483,"4,096.12",Bridge House Care Centre,SOCIAL SERVICES RESIDENTIAL,People's Services,Nursing Care - Ext Provider,A56025
London Borough of Sutton,07/07/2023,50375483,-878.84,Bridge House Care Centre,SOCIAL SERVICES RESIDENTIAL,People's Services,Nursing Care - 3rd party top up payment,A56023
London Borough of Sutton,07/07/2023,50375530,"4,978.76",Bridge House Care Centre,SOCIAL SERVICES RESIDENTIAL,People's Services,Nursing Care - Ext Provider,A56025
London Borough of Sutton,07/07/2023,50375530,-836.76,Bridge House Care Centre,SOCIAL SERVICES RESIDENTIAL,People's Services,Nursing Care - 3rd party top up payment,A56023
London Borough of Sutton,07/07/2023,50375536,"1,316.61",Bridge House Care Centre,SOCIAL SERVICES RESIDENTIAL,People's Services,Nursing Care Short Term,A56026
London Borough of Sutton,07/07/2023,50375536,-282.48,Bridge House Care Centre,SOCIAL SERVICES RESIDENTIAL,People's Services,Nursing Care - 3rd party top up payment,A56023
London Borough of Sutton,07/07/2023,50375545,"4,096.12",Bridge House Care Centre,SOCIAL SERVICES RESIDENTIAL,People's Services,Nursing Care - Ext Provider,A56025
London Borough of Sutton,07/07/2023,50375545,-878.84,Bridge House Care Centre,SOCIAL SERVICES RESIDENTIAL,People's Services,Nursing Care - 3rd party top up payment,A56023
London Borough of Sutton,07/07/2023,50375570,"4,096.12",Bridge House Care Centre,SOCIAL SERVICES RESIDENTIAL,People's Services,Nursing Care - Ext Provider,A56025
London Borough of Sutton,07/07/2023,50375570,-878.84,Bridge House Care Centre,SOCIAL SERVICES RESIDENTIAL,People's Services,Nursing Care - 3rd party top up payment,A56023
London Borough of Sutton,07/07/2023,50375589,-878.84,Bridge House Care Centre,SOCIAL SERVICES RESIDENTIAL,People's Services,Nursing Care - 3rd party top up payment,A56023
London Borough of Sutton,07/07/2023,50375589,"4,096.12",Bridge House Care Centre,SOCIAL SERVICES RESIDENTIAL,People's Services,Nursing Care - Ext Provider,A56025
London Borough of Sutton,07/07/2023,50375599,"4,096.12",Bridge House Care Centre,SOCIAL SERVICES RESIDENTIAL,People's Services,Nursing Care - Ext Provider,A56025
London Borough of Sutton,07/07/2023,50375636,"3,821.24",Bridge House Care Centre,SOCIAL SERVICES RESIDENTIAL,People's Services,Nursing Care Short Term,A56026
London Borough of Sutton,07/07/2023,50375636,-836.76,Bridge House Care Centre,SOCIAL SERVICES RESIDENTIAL,People's Services,Nursing Care - 3rd party top up payment,A56023
London Borough of Sutton,07/07/2023,50375662,"4,096.12",Bridge House Care Centre,SOCIAL SERVICES RESIDENTIAL,People's Services,Nursing Care - Ext Provider,A56025
London Borough of Sutton,07/07/2023,50375662,-878.84,Bridge House Care Centre,SOCIAL SERVICES RESIDENTIAL,People's Services,Nursing Care - 3rd party top up payment,A56023
London Borough of Sutton,07/07/2023,50375709,"4,096.12",Bridge House Care Centre,SOCIAL SERVICES RESIDENTIAL,People's Services,Nursing Care - Ext Provider,A56025
London Borough of Sutton,07/07/2023,50375709,-878.84,Bridge House Care Centre,SOCIAL SERVICES RESIDENTIAL,People's Services,Nursing Care - 3rd party top up payment,A56023
London Borough of Sutton,30/06/2023,20052769,"3,900.00",Bridgestock Housing Services,CHILDREN'S SERVICES - RESIDENTIAL,People's Services,Approved Lodgings,A61000
London Borough of Sutton,30/06/2023,20052770,"5,377.93",Bridgestock Housing Services,CHILDREN'S SERVICES - RESIDENTIAL,People's Services,Approved Lodgings,A61000
London Borough of Sutton,11/07/2023,50374414,504.90,REDACTED - PERSONAL DATA,TEMP STAFF & CONSULTANCY,People's Services,Payment - Nursery Funding,A51056
London Borough of Sutton,01/06/2023,50375020,"3,385.71",Bridging Gaps Limited,CHILDREN'S SERVICES - FOSTERING & ADOPTION SERVICES,People's Services,Foster Parents Support,A44110
London Borough of Sutton,01/06/2023,50375021,"3,385.71",Bridging Gaps Limited,CHILDREN'S SERVICES - FOSTERING & ADOPTION SERVICES,People's Services,Foster Parents Support,A44110
London Borough of Sutton,25/05/2023,50375005,"3,910.71",Bridging the Gap,CHILDREN'S SERVICE - OTHER,People's Services,Approved Lodgings,A61000
London Borough of Sutton,01/06/2023,50375025,"3,564.90",Brighter Futures Foster Care Ltd,CHILDREN'S SERVICES - FOSTERING & ADOPTION SERVICES,People's Services,Foster Parents Support,A44110
London Borough of Sutton,01/06/2023,50375115,"3,372.60",Brighter Futures Foster Care Ltd,CHILDREN'S SERVICES - FOSTERING & ADOPTION SERVICES,People's Services,Foster Parents Support,A44110
London Borough of Sutton,20/06/2023,20053167,"1,281.43",British Gas,UTILITIES,Resources,Gas,A21003
London Borough of Sutton,27/06/2023,20053516,718.39,British Gas,UTILITIES,HRA,Electricity,A21000
London Borough of Sutton,04/07/2023,20053966,"1,783.44",British Gas,UTILITIES,Resources,Electricity,A21000
London Borough of Sutton,07/07/2023,50375147,-772.64,British Home & Hospital For Incurables,SOCIAL SERVICES RESIDENTIAL,People's Services,Nursing Care - Client Cont ( Net paymt ),A56024
London Borough of Sutton,07/07/2023,50375147,"2,591.80",British Home & Hospital For Incurables,SOCIAL SERVICES RESIDENTIAL,People's Services,Nursing Care - Ext Provider,A56025
London Borough of Sutton,06/07/2023,50376658,"1,833.29",Brunel SEN Multi Academy Trust,CHILDREN'S SERVICES - SEN SERVICES,People's Services,Top-up Funding,A51016
London Borough of Sutton,11/07/2023,50374288,"17,527.20",Bumpsa Daisies Nurserys,GRANTS & EX GRATIA PAYMENTS,People's Services,Payment - Nursery Funding,A51056
London Borough of Sutton,11/07/2023,50374289,"4,765.80",Bumpsa Daisies Nurserys,GRANTS & EX GRATIA PAYMENTS,People's Services,Payment - Nursery Funding,A51056
London Borough of Sutton,12/07/2023,50378927,"1,267.89",Bumpsa Daisies Nurserys,GRANTS & EX GRATIA PAYMENTS,People's Services,Top-up individual funding,A60033
London Borough of Sutton,07/07/2023,50375330,"8,091.16",Bupa Care Services,SOCIAL SERVICES RESIDENTIAL,People's Services,Nursing Care Short Term,A56026
London Borough of Sutton,07/07/2023,50375330,"-1,436.76",Bupa Care Services,SOCIAL SERVICES RESIDENTIAL,People's Services,Nursing Care - 3rd party top up payment,A56023
London Borough of Sutton,07/07/2023,50375364,-878.84,Bupa Care Services,SOCIAL SERVICES RESIDENTIAL,People's Services,Nursing Care - 3rd party top up payment,A56023
London Borough of Sutton,07/07/2023,50375378,"3,821.24",Bupa Care Services,SOCIAL SERVICES RESIDENTIAL,People's Services,Nursing Care Short Term,A56026
London Borough of Sutton,07/07/2023,50375378,-836.76,Bupa Care Services,SOCIAL SERVICES RESIDENTIAL,People's Services,Nursing Care - 3rd party top up payment,A56023
London Borough of Sutton,07/07/2023,50375427,"4,096.12",Bupa Care Services,SOCIAL SERVICES RESIDENTIAL,People's Services,Nursing Care - Ext Provider,A56025
London Borough of Sutton,07/07/2023,50375507,"1,394.76",Bupa Care Services,SOCIAL SERVICES RESIDENTIAL,People's Services,Respite Care,A56116
London Borough of Sutton,07/07/2023,50375507,-282.48,Bupa Care Services,SOCIAL SERVICES RESIDENTIAL,People's Services,Nursing Care - 3rd party top up payment,A56023
London Borough of Sutton,07/07/2023,50375596,"4,096.12",Bupa Care Services,SOCIAL SERVICES RESIDENTIAL,People's Services,Nursing Care - Ext Provider,A56025
London Borough of Sutton,07/07/2023,50375620,"4,339.24",Bupa Care Services,SOCIAL SERVICES RESIDENTIAL,People's Services,Nursing Care - Ext Provider,A56025
London Borough of Sutton,07/07/2023,50375620,-878.84,Bupa Care Services,SOCIAL SERVICES RESIDENTIAL,People's Services,Nursing Care - 3rd party top up payment,A56023
London Borough of Sutton,07/07/2023,50375664,"4,339.24",Bupa Care Services,SOCIAL SERVICES RESIDENTIAL,People's Services,Respite Care,A56116
London Borough of Sutton,07/07/2023,50375664,-878.84,Bupa Care Services,SOCIAL SERVICES RESIDENTIAL,People's Services,Nursing Care - 3rd party top up payment,A56023
London Borough of Sutton,07/07/2023,50375679,"7,084.60",Bupa Care Services,SOCIAL SERVICES RESIDENTIAL,People's Services,Nursing Care Short Term,A56026
London Borough of Sutton,07/07/2023,50375679,-836.76,Bupa Care Services,SOCIAL SERVICES RESIDENTIAL,People's Services,Nursing Care - 3rd party top up payment,A56023
London Borough of Sutton,07/07/2023,50375715,"4,096.12",Bupa Care Services,SOCIAL SERVICES RESIDENTIAL,People's Services,Nursing Care Short Term,A56026
London Borough of Sutton,07/07/2023,50375715,-878.84,Bupa Care Services,SOCIAL SERVICES RESIDENTIAL,People's Services,Nursing Care - 3rd party top up payment,A56023
London Borough of Sutton,07/07/2023,50375881,"6,200.73",Bupa Care Services,SOCIAL SERVICES RESIDENTIAL,People's Services,Nursing Care - 3rd party top up payment,A56023
London Borough of Sutton,07/07/2023,50375882,"36,773.73",Bupa Care Services,SOCIAL SERVICES RESIDENTIAL,People's Services,Nursing Care - Ext Provider,A56025
London Borough of Sutton,07/07/2023,50375882,"-36,773.73",Bupa Care Services,SOCIAL SERVICES RESIDENTIAL,People's Services,Nursing Care Short Term,A56026
London Borough of Sutton,07/07/2023,50375882,"-6,200.73",Bupa Care Services,SOCIAL SERVICES RESIDENTIAL,People's Services,Nursing Care - 3rd party top up payment,A56023
London Borough of Sutton,11/07/2023,50374294,"18,974.40",Busy Bees Day Nurseries Ltd,ACADEMIC INSTNS - OTHER,People's Services,Payment - Nursery Funding,A51056
London Borough of Sutton,11/07/2023,50374295,"1,825.20",Busy Bees Day Nurseries Ltd,ACADEMIC INSTNS - OTHER,People's Services,Payment - Nursery Funding,A51056
London Borough of Sutton,11/07/2023,50374292,"20,743.20",Busy Bees Day Nurseries Ltd,ACADEMIC INSTNS - OTHER,People's Services,Payment - Nursery Funding,A51056
London Borough of Sutton,07/07/2023,50375217,"8,118.48",Butterfly's Care Homes Ltd,SOCIAL SERVICES RESIDENTIAL,People's Services,Residential Care - Ext Provider,A56114
London Borough of Sutton,01/07/2023,50375018,"2,879.70",By The Bridge Ltd,CHILDREN'S SERVICES - FOSTERING & ADOPTION SERVICES,People's Services,Foster Parents Support,A44110
London Borough of Sutton,01/07/2023,50375019,"2,879.70",By The Bridge Ltd,CHILDREN'S SERVICES - FOSTERING & ADOPTION SERVICES,People's Services,Foster Parents Support,A44110
London Borough of Sutton,01/07/2023,50375101,"4,516.50",By The Bridge Ltd,CHILDREN'S SERVICES - FOSTERING & ADOPTION SERVICES,People's Services,Foster Parents Support,A44110
London Borough of Sutton,30/06/2023,20052821,"1,936.25",Cablesheer (Asbestos) Ltd,CONSTRUCTION INDUSTRY,HRA,Payments to Contractors,C14000
London Borough of Sutton,22/05/2023,50375015,"23,588.40",Calcot Services for Children Ltd,CHILDREN'S SERVICES - FOSTERING & ADOPTION SERVICES,People's Services,Residential Care-Children,A56115
London Borough of Sutton,29/06/2023,20052735,"1,593.00",Calfordseaden LLP,LEGAL & PROFESSIONAL SERVICES,HRA,External Fees and Consultants,C20000
London Borough of Sutton,30/06/2023,20052786,"3,127.35",Calfordseaden LLP,LEGAL & PROFESSIONAL SERVICES,HRA,External Fees and Consultants,C20000
London Borough of Sutton,25/05/2023,50375016,"19,457.10",Cambian Childcare Ltd,CHILDREN'S SERVICES - FOSTERING & ADOPTION SERVICES,People's Services,Residential Care-Children,A56115
London Borough of Sutton,25/07/2023,50382163,"4,207.14",Cambian Childcare Ltd,CHILDREN'S SERVICES - FOSTERING & ADOPTION SERVICES,People's Services,Independent School Fees,A56002
London Borough of Sutton,28/06/2023,20052911,518.60,Canon (UK) Ltd,REPROGRAPHICS & PHOTOGRAPHY,Resources,Printing,A43010
London Borough of Sutton,07/07/2023,50375186,"4,060.72",Canterbury Oast Trust,SOCIAL SERVICES RESIDENTIAL,People's Services,Residential Care - Ext Provider,A56114
London Borough of Sutton,07/07/2023,50375186,204.72,Canterbury Oast Trust,SOCIAL SERVICES RESIDENTIAL,People's Services,One to One Care,A56108
London Borough of Sutton,07/07/2023,50375186,"-1,182.68",Canterbury Oast Trust,SOCIAL SERVICES RESIDENTIAL,People's Services,Residential Care - Client Cont ( Net Paymt ),A56113
London Borough of Sutton,30/06/2023,50372413,"1,000.00",Caprani Care Limited,SOCIAL SERVICES RESIDENTIAL,People's Services,Day Care Services,A56021
London Borough of Sutton,30/06/2023,50372427,"2,180.02",Caprani Care Limited,SOCIAL SERVICES RESIDENTIAL,People's Services,Supported Living,A56088
London Borough of Sutton,30/06/2023,50372427,"2,904.00",Caprani Care Limited,SOCIAL SERVICES RESIDENTIAL,People's Services,One to One Care,A56108
London Borough of Sutton,30/06/2023,50372427,991.98,Caprani Care Limited,SOCIAL SERVICES RESIDENTIAL,People's Services,Supported Living,A56088
London Borough of Sutton,30/06/2023,50375061,"5,784.60",Capstone Foster Care (South East) Ltd,CHILDREN'S SERVICES - FOSTERING & ADOPTION SERVICES,People's Services,Foster Parents Support,A44110
London Borough of Sutton,30/06/2023,50375094,"5,927.70",Capstone Foster Care (South East) Ltd,CHILDREN'S SERVICES - FOSTERING & ADOPTION SERVICES,People's Services,Foster Parents Support,A44110
London Borough of Sutton,30/06/2023,50372423,"3,783.60",Care Advocates Ltd,MANAGEMENT & TRAINING SERVICES,People's Services,Supported Living,A56088
London Borough of Sutton,30/06/2023,50372423,"2,880.00",Care Advocates Ltd,MANAGEMENT & TRAINING SERVICES,People's Services,Supported Living,A56088
London Borough of Sutton,30/06/2023,50372423,"2,490.30",Care Advocates Ltd,MANAGEMENT & TRAINING SERVICES,People's Services,Supported Living,A56088
London Borough of Sutton,30/06/2023,50372424,"-3,517.80",Care Advocates Ltd,MANAGEMENT & TRAINING SERVICES,People's Services,Supported Living,A56088
London Borough of Sutton,30/06/2023,50372424,"6,336.00",Care Advocates Ltd,MANAGEMENT & TRAINING SERVICES,People's Services,Supported Living,A56088
London Borough of Sutton,30/06/2023,50372424,"2,490.30",Care Advocates Ltd,MANAGEMENT & TRAINING SERVICES,People's Services,Supported Living,A56088
London Borough of Sutton,30/06/2023,50372426,"1,742.62",Care Advocates Ltd,MANAGEMENT & TRAINING SERVICES,People's Services,Supported Living,A56088
London Borough of Sutton,30/06/2023,50372426,"2,386.28",Care Advocates Ltd,MANAGEMENT & TRAINING SERVICES,People's Services,Supported Living,A56088
London Borough of Sutton,30/06/2023,50372426,"2,490.30",Care Advocates Ltd,MANAGEMENT & TRAINING SERVICES,People's Services,Supported Living,A56088
London Borough of Sutton,30/06/2023,50372428,"2,576.95",Care Advocates Ltd,MANAGEMENT & TRAINING SERVICES,People's Services,Supported Living,A56088
London Borough of Sutton,30/06/2023,50372428,"1,504.20",Care Advocates Ltd,MANAGEMENT & TRAINING SERVICES,People's Services,Supported Living,A56088
London Borough of Sutton,30/06/2023,50372428,"1,202.45",Care Advocates Ltd,MANAGEMENT & TRAINING SERVICES,People's Services,Supported Living,A56088
London Borough of Sutton,07/07/2023,50375196,"3,400.00",Care Assist Ltd.,SOCIAL SERVICES RESIDENTIAL,People's Services,Residential Care - Ext Provider,A56114
London Borough of Sutton,07/07/2023,50375196,"-1,700.00",Care Assist Ltd.,SOCIAL SERVICES RESIDENTIAL,People's Services,Nursing Care - 3rd party top up payment,A56023
London Borough of Sutton,07/07/2023,50375285,"3,320.32",Care Concern Group,SOCIAL SERVICES RESIDENTIAL,People's Services,Residential Care - Ext Provider,A56114
London Borough of Sutton,20/07/2023,50380689,"2,070.36",Care Connexions UK Limited,SOCIAL SERVICES RESIDENTIAL,People's Services,One to One Care,A56108
London Borough of Sutton,07/07/2023,50375187,"3,768.36",Care Direct Uk Ltd,SOCIAL SERVICES RESIDENTIAL,People's Services,Residential Care - Ext Provider,A56114
London Borough of Sutton,30/06/2023,50375109,"43,230.00",Care Hubz Ltd,CHILDREN'S SERVICE - OTHER,People's Services,Residential Care-Children,A56115
London Borough of Sutton,04/06/2023,50372797,533.05,Care More Ltd,SOCIAL SERVICES RESIDENTIAL,People's Services,Home Care Services,A56019
London Borough of Sutton,04/06/2023,50372809,893.54,Care More Ltd,SOCIAL SERVICES RESIDENTIAL,People's Services,Home Care Services,A56019
London Borough of Sutton,04/06/2023,50372819,364.02,Care More Ltd,SOCIAL SERVICES RESIDENTIAL,People's Services,Home Care Services,A56019
London Borough of Sutton,04/06/2023,50372819,204.75,Care More Ltd,SOCIAL SERVICES RESIDENTIAL,People's Services,Home Care Services,A56019
London Borough of Sutton,04/06/2023,50372821,962.61,Care More Ltd,SOCIAL SERVICES RESIDENTIAL,People's Services,Home Care Services,A56019
London Borough of Sutton,04/06/2023,50372834,917.07,Care More Ltd,SOCIAL SERVICES RESIDENTIAL,People's Services,Home Care Services,A56019
London Borough of Sutton,04/06/2023,50372841,728.00,Care More Ltd,SOCIAL SERVICES RESIDENTIAL,People's Services,Home Care Services,A56019
London Borough of Sutton,04/06/2023,50372841,136.50,Care More Ltd,SOCIAL SERVICES RESIDENTIAL,People's Services,Home Care Services,A56019
London Borough of Sutton,04/06/2023,50372844,773.54,Care More Ltd,SOCIAL SERVICES RESIDENTIAL,People's Services,Home Care Services,A56019
London Borough of Sutton,04/06/2023,50372847,904.07,Care More Ltd,SOCIAL SERVICES RESIDENTIAL,People's Services,Home Care Services,A56019
London Borough of Sutton,04/06/2023,50372847,33.00,Care More Ltd,SOCIAL SERVICES RESIDENTIAL,People's Services,Home Care Services,A56019
London Borough of Sutton,04/06/2023,50372850,728.00,Care More Ltd,SOCIAL SERVICES RESIDENTIAL,People's Services,Home Care Services,A56019
London Borough of Sutton,21/05/2023,50373724,819.07,Care More Ltd,SOCIAL SERVICES RESIDENTIAL,People's Services,Home Care Services,A56019
London Borough of Sutton,28/05/2023,50373725,819.07,Care More Ltd,SOCIAL SERVICES RESIDENTIAL,People's Services,Home Care Services,A56019
London Borough of Sutton,28/05/2023,50373750,26.00,Care More Ltd,SOCIAL SERVICES RESIDENTIAL,People's Services,Home Care Services,A56019
London Borough of Sutton,28/05/2023,50373750,691.07,Care More Ltd,SOCIAL SERVICES RESIDENTIAL,People's Services,Home Care Services,A56019
London Borough of Sutton,18/06/2023,50373751,26.00,Care More Ltd,SOCIAL SERVICES RESIDENTIAL,People's Services,Home Care Services,A56019
London Borough of Sutton,18/06/2023,50373751,691.07,Care More Ltd,SOCIAL SERVICES RESIDENTIAL,People's Services,Home Care Services,A56019
London Borough of Sutton,25/06/2023,50373752,13.00,Care More Ltd,SOCIAL SERVICES RESIDENTIAL,People's Services,Home Care Services,A56019
London Borough of Sutton,25/06/2023,50373752,704.07,Care More Ltd,SOCIAL SERVICES RESIDENTIAL,People's Services,Home Care Services,A56019
London Borough of Sutton,04/06/2023,50373753,26.00,Care More Ltd,SOCIAL SERVICES RESIDENTIAL,People's Services,Home Care Services,A56019
London Borough of Sutton,04/06/2023,50373753,691.07,Care More Ltd,SOCIAL SERVICES RESIDENTIAL,People's Services,Home Care Services,A56019
London Borough of Sutton,18/06/2023,50373776,565.50,Care More Ltd,SOCIAL SERVICES RESIDENTIAL,People's Services,Home Care Services,A56019
London Borough of Sutton,18/06/2023,50373776,78.00,Care More Ltd,SOCIAL SERVICES RESIDENTIAL,People's Services,Home Care Services,A56019
London Borough of Sutton,23/04/2023,50375784,773.50,Care More Ltd,SOCIAL SERVICES RESIDENTIAL,People's Services,Home Care Services,A56019
London Borough of Sutton,03/04/2023,50375785,773.50,Care More Ltd,SOCIAL SERVICES RESIDENTIAL,People's Services,Home Care Services,A56019
London Borough of Sutton,02/05/2023,50375786,773.50,Care More Ltd,SOCIAL SERVICES RESIDENTIAL,People's Services,Home Care Services,A56019
London Borough of Sutton,08/02/2023,50375802,"1,607.00",Care More Ltd,SOCIAL SERVICES RESIDENTIAL,People's Services,Home Care Services,A56019
London Borough of Sutton,02/07/2023,50377664,962.61,Care More Ltd,SOCIAL SERVICES RESIDENTIAL,People's Services,Home Care Services,A56019
London Borough of Sutton,09/07/2023,50377665,962.61,Care More Ltd,SOCIAL SERVICES RESIDENTIAL,People's Services,Home Care Services,A56019
London Borough of Sutton,02/07/2023,50377697,773.54,Care More Ltd,SOCIAL SERVICES RESIDENTIAL,People's Services,Home Care Services,A56019
London Borough of Sutton,09/07/2023,50377698,773.54,Care More Ltd,SOCIAL SERVICES RESIDENTIAL,People's Services,Home Care Services,A56019
London Borough of Sutton,02/07/2023,50377699,728.00,Care More Ltd,SOCIAL SERVICES RESIDENTIAL,People's Services,Home Care Services,A56019
London Borough of Sutton,09/07/2023,50377700,728.00,Care More Ltd,SOCIAL SERVICES RESIDENTIAL,People's Services,Home Care Services,A56019
London Borough of Sutton,02/07/2023,50377703,917.07,Care More Ltd,SOCIAL SERVICES RESIDENTIAL,People's Services,Home Care Services,A56019
London Borough of Sutton,02/07/2023,50377703,33.00,Care More Ltd,SOCIAL SERVICES RESIDENTIAL,People's Services,Home Care Services,A56019
London Borough of Sutton,09/07/2023,50377704,917.07,Care More Ltd,SOCIAL SERVICES RESIDENTIAL,People's Services,Home Care Services,A56019
London Borough of Sutton,09/07/2023,50377704,20.00,Care More Ltd,SOCIAL SERVICES RESIDENTIAL,People's Services,Home Care Services,A56019
London Borough of Sutton,02/07/2023,50377739,893.54,Care More Ltd,SOCIAL SERVICES RESIDENTIAL,People's Services,Home Care Services,A56019
London Borough of Sutton,09/07/2023,50377740,893.54,Care More Ltd,SOCIAL SERVICES RESIDENTIAL,People's Services,Home Care Services,A56019
London Borough of Sutton,02/07/2023,50377744,917.07,Care More Ltd,SOCIAL SERVICES RESIDENTIAL,People's Services,Home Care Services,A56019
London Borough of Sutton,09/07/2023,50377745,917.07,Care More Ltd,SOCIAL SERVICES RESIDENTIAL,People's Services,Home Care Services,A56019
London Borough of Sutton,02/07/2023,50377749,273.00,Care More Ltd,SOCIAL SERVICES RESIDENTIAL,People's Services,Home Care Services,A56019
London Borough of Sutton,02/07/2023,50377749,"1,022.00",Care More Ltd,SOCIAL SERVICES RESIDENTIAL,People's Services,Home Care Services,A56019
London Borough of Sutton,09/07/2023,50377750,273.00,Care More Ltd,SOCIAL SERVICES RESIDENTIAL,People's Services,Home Care Services,A56019
London Borough of Sutton,09/07/2023,50377750,"1,022.00",Care More Ltd,SOCIAL SERVICES RESIDENTIAL,People's Services,Home Care Services,A56019
London Borough of Sutton,02/07/2023,50377751,728.00,Care More Ltd,SOCIAL SERVICES RESIDENTIAL,People's Services,Home Care Services,A56019
London Borough of Sutton,02/07/2023,50377751,136.50,Care More Ltd,SOCIAL SERVICES RESIDENTIAL,People's Services,Home Care Services,A56019
London Borough of Sutton,09/07/2023,50377752,728.00,Care More Ltd,SOCIAL SERVICES RESIDENTIAL,People's Services,Home Care Services,A56019
London Borough of Sutton,09/07/2023,50377752,136.50,Care More Ltd,SOCIAL SERVICES RESIDENTIAL,People's Services,Home Care Services,A56019
London Borough of Sutton,02/07/2023,50377761,773.54,Care More Ltd,SOCIAL SERVICES RESIDENTIAL,People's Services,Home Care Services,A56019
London Borough of Sutton,09/07/2023,50377762,773.54,Care More Ltd,SOCIAL SERVICES RESIDENTIAL,People's Services,Home Care Services,A56019
London Borough of Sutton,16/07/2023,50382704,273.00,Care More Ltd,SOCIAL SERVICES RESIDENTIAL,People's Services,Home Care Services,A56019
London Borough of Sutton,16/07/2023,50382704,"1,022.00",Care More Ltd,SOCIAL SERVICES RESIDENTIAL,People's Services,Home Care Services,A56019
London Borough of Sutton,23/07/2023,50382705,273.00,Care More Ltd,SOCIAL SERVICES RESIDENTIAL,People's Services,Home Care Services,A56019
London Borough of Sutton,23/07/2023,50382705,"1,022.00",Care More Ltd,SOCIAL SERVICES RESIDENTIAL,People's Services,Home Care Services,A56019
London Borough of Sutton,16/07/2023,50382707,728.00,Care More Ltd,SOCIAL SERVICES RESIDENTIAL,People's Services,Home Care Services,A56019
London Borough of Sutton,16/07/2023,50382707,136.50,Care More Ltd,SOCIAL SERVICES RESIDENTIAL,People's Services,Home Care Services,A56019
London Borough of Sutton,23/07/2023,50382708,728.00,Care More Ltd,SOCIAL SERVICES RESIDENTIAL,People's Services,Home Care Services,A56019
London Borough of Sutton,23/07/2023,50382708,136.50,Care More Ltd,SOCIAL SERVICES RESIDENTIAL,People's Services,Home Care Services,A56019
London Borough of Sutton,16/07/2023,50382736,773.54,Care More Ltd,SOCIAL SERVICES RESIDENTIAL,People's Services,Home Care Services,A56019
London Borough of Sutton,23/07/2023,50382737,773.54,Care More Ltd,SOCIAL SERVICES RESIDENTIAL,People's Services,Home Care Services,A56019
London Borough of Sutton,16/07/2023,50382746,728.00,Care More Ltd,SOCIAL SERVICES RESIDENTIAL,People's Services,Home Care Services,A56019
London Borough of Sutton,23/07/2023,50382747,728.00,Care More Ltd,SOCIAL SERVICES RESIDENTIAL,People's Services,Home Care Services,A56019
London Borough of Sutton,16/07/2023,50382751,917.07,Care More Ltd,SOCIAL SERVICES RESIDENTIAL,People's Services,Home Care Services,A56019
London Borough of Sutton,16/07/2023,50382751,20.00,Care More Ltd,SOCIAL SERVICES RESIDENTIAL,People's Services,Home Care Services,A56019
London Borough of Sutton,23/07/2023,50382752,917.07,Care More Ltd,SOCIAL SERVICES RESIDENTIAL,People's Services,Home Care Services,A56019
London Borough of Sutton,23/07/2023,50382752,20.00,Care More Ltd,SOCIAL SERVICES RESIDENTIAL,People's Services,Home Care Services,A56019
London Borough of Sutton,16/07/2023,50382780,773.54,Care More Ltd,SOCIAL SERVICES RESIDENTIAL,People's Services,Home Care Services,A56019
London Borough of Sutton,23/07/2023,50382781,773.54,Care More Ltd,SOCIAL SERVICES RESIDENTIAL,People's Services,Home Care Services,A56019
London Borough of Sutton,16/07/2023,50382884,26.00,Care More Ltd,SOCIAL SERVICES RESIDENTIAL,People's Services,Home Care Services,A56019
London Borough of Sutton,16/07/2023,50382884,691.07,Care More Ltd,SOCIAL SERVICES RESIDENTIAL,People's Services,Home Care Services,A56019
London Borough of Sutton,23/07/2023,50382885,13.00,Care More Ltd,SOCIAL SERVICES RESIDENTIAL,People's Services,Home Care Services,A56019
London Borough of Sutton,23/07/2023,50382885,704.07,Care More Ltd,SOCIAL SERVICES RESIDENTIAL,People's Services,Home Care Services,A56019
London Borough of Sutton,16/07/2023,50382916,833.54,Care More Ltd,SOCIAL SERVICES RESIDENTIAL,People's Services,Home Care Services,A56019
London Borough of Sutton,23/07/2023,50382917,833.54,Care More Ltd,SOCIAL SERVICES RESIDENTIAL,People's Services,Home Care Services,A56019
London Borough of Sutton,16/07/2023,50382966,917.07,Care More Ltd,SOCIAL SERVICES RESIDENTIAL,People's Services,Home Care Services,A56019
London Borough of Sutton,23/07/2023,50382967,917.07,Care More Ltd,SOCIAL SERVICES RESIDENTIAL,People's Services,Home Care Services,A56019
London Borough of Sutton,16/07/2023,50382970,962.61,Care More Ltd,SOCIAL SERVICES RESIDENTIAL,People's Services,Home Care Services,A56019
London Borough of Sutton,23/07/2023,50382971,962.61,Care More Ltd,SOCIAL SERVICES RESIDENTIAL,People's Services,Home Care Services,A56019
London Borough of Sutton,07/07/2023,50375130,"4,772.96",Care UK Homecare Ltd,SOCIAL SERVICES RESIDENTIAL,People's Services,Residential Care - Ext Provider,A56114
London Borough of Sutton,07/07/2023,50375130,-563.20,Care UK Homecare Ltd,SOCIAL SERVICES RESIDENTIAL,People's Services,Residential Care - Client Cont ( Net Paymt ),A56113
London Borough of Sutton,07/07/2023,50375241,"4,400.00",Care UK Homecare Ltd,SOCIAL SERVICES RESIDENTIAL,People's Services,Residential Care - Ext Provider,A56114
London Borough of Sutton,07/07/2023,50375372,"4,096.12",Care UK Homecare Ltd,SOCIAL SERVICES RESIDENTIAL,People's Services,Nursing Care - Ext Provider,A56025
London Borough of Sutton,07/07/2023,50375372,-878.84,Care UK Homecare Ltd,SOCIAL SERVICES RESIDENTIAL,People's Services,Nursing Care - 3rd party top up payment,A56023
London Borough of Sutton,07/07/2023,50375401,"4,560.00",Care UK Homecare Ltd,SOCIAL SERVICES RESIDENTIAL,People's Services,Nursing Care - Ext Provider,A56025
London Borough of Sutton,07/07/2023,50375402,-836.76,Care UK Homecare Ltd,SOCIAL SERVICES RESIDENTIAL,People's Services,Nursing Care - 3rd party top up payment,A56023
London Borough of Sutton,07/07/2023,50375433,"-2,619.15",Care UK Homecare Ltd,SOCIAL SERVICES RESIDENTIAL,People's Services,Nursing Care - Ext Provider,A56025
London Borough of Sutton,07/07/2023,50375433,358.61,Care UK Homecare Ltd,SOCIAL SERVICES RESIDENTIAL,People's Services,Nursing Care - 3rd party top up payment,A56023
London Borough of Sutton,07/07/2023,50375546,-836.76,Care UK Homecare Ltd,SOCIAL SERVICES RESIDENTIAL,People's Services,Nursing Care - 3rd party top up payment,A56023
London Borough of Sutton,07/07/2023,50375546,"4,560.00",Care UK Homecare Ltd,SOCIAL SERVICES RESIDENTIAL,People's Services,Nursing Care Short Term,A56026
London Borough of Sutton,17/07/2023,50381565,410.56,Care Unlimited Domcare Ltd,SOCIAL SERVICES DAY CARE,People's Services,Supported Living,A56088
London Borough of Sutton,17/07/2023,50381565,"3,595.20",Care Unlimited Domcare Ltd,SOCIAL SERVICES DAY CARE,People's Services,Supported Living,A56088
London Borough of Sutton,17/07/2023,50381565,"1,056.88",Care Unlimited Domcare Ltd,SOCIAL SERVICES DAY CARE,People's Services,Supported Living,A56088
London Borough of Sutton,17/07/2023,50381566,410.56,Care Unlimited Domcare Ltd,SOCIAL SERVICES DAY CARE,People's Services,Supported Living,A56088
London Borough of Sutton,17/07/2023,50381566,"3,595.20",Care Unlimited Domcare Ltd,SOCIAL SERVICES DAY CARE,People's Services,Supported Living,A56088
London Borough of Sutton,17/07/2023,50381566,"1,056.88",Care Unlimited Domcare Ltd,SOCIAL SERVICES DAY CARE,People's Services,Supported Living,A56088
London Borough of Sutton,17/07/2023,50381567,410.56,Care Unlimited Domcare Ltd,SOCIAL SERVICES DAY CARE,People's Services,Supported Living,A56088
London Borough of Sutton,17/07/2023,50381567,"3,595.20",Care Unlimited Domcare Ltd,SOCIAL SERVICES DAY CARE,People's Services,Supported Living,A56088
London Borough of Sutton,17/07/2023,50381567,"1,056.88",Care Unlimited Domcare Ltd,SOCIAL SERVICES DAY CARE,People's Services,Supported Living,A56088
London Borough of Sutton,05/07/2023,50375791,"3,864.00",Care4Care Services Ltd,SOCIAL SERVICES DAY CARE,People's Services,Home Care Services,A56019
London Borough of Sutton,05/07/2023,50375800,870.00,Care4Care Services Ltd,SOCIAL SERVICES DAY CARE,People's Services,Home Care Services,A56019
London Borough of Sutton,05/07/2023,50375807,870.00,Care4Care Services Ltd,SOCIAL SERVICES DAY CARE,People's Services,Home Care Services,A56019
London Borough of Sutton,05/07/2023,50375809,"1,823.20",Care4Care Services Ltd,SOCIAL SERVICES DAY CARE,People's Services,Home Care Services,A56019
London Borough of Sutton,05/07/2023,50375810,"3,379.40",Care4Care Services Ltd,SOCIAL SERVICES DAY CARE,People's Services,Home Care Services,A56019
London Borough of Sutton,05/07/2023,50375811,"1,557.30",Care4Care Services Ltd,SOCIAL SERVICES DAY CARE,People's Services,Home Care Services,A56019
London Borough of Sutton,05/07/2023,50375816,"1,275.00",Care4Care Services Ltd,SOCIAL SERVICES DAY CARE,People's Services,Home Care Services,A56019
London Borough of Sutton,05/07/2023,50375816,447.50,Care4Care Services Ltd,SOCIAL SERVICES DAY CARE,People's Services,Home Care Services,A56019
London Borough of Sutton,05/07/2023,50375819,"1,047.00",Care4Care Services Ltd,SOCIAL SERVICES DAY CARE,People's Services,Home Care Services,A56019
London Borough of Sutton,05/07/2023,50375820,810.00,Care4Care Services Ltd,SOCIAL SERVICES DAY CARE,People's Services,Home Care Services,A56019
London Borough of Sutton,05/07/2023,50378353,"3,539.60",Care4Care Services Ltd,SOCIAL SERVICES DAY CARE,People's Services,Home Care Services,A56019
London Borough of Sutton,19/07/2023,50380565,"1,138.20",Care4Care Services Ltd,SOCIAL SERVICES DAY CARE,People's Services,Home Care Services,A56019
London Borough of Sutton,07/07/2023,50375175,"6,600.00",CAREBASE (CLARE) LTD,SOCIAL SERVICES RESIDENTIAL,People's Services,Nursing Care - Ext Provider,A56025
London Borough of Sutton,28/02/2023,20053253,"13,361.03",Careium UK Limited,ACCOMMODATION - OTHER,HRA,Supporting People - Alarm Services,A61023
London Borough of Sutton,31/05/2023,20053695,"14,792.57",Careium UK Limited,ACCOMMODATION - OTHER,HRA,Supporting People - Alarm Services,A61023
London Borough of Sutton,30/04/2023,20054213,"29,626.27",Careium UK Limited,ACCOMMODATION - OTHER,People's Services,Other Agencies - Third Party,A57000
London Borough of Sutton,30/04/2023,20054214,"5,954.31",Careium UK Limited,ACCOMMODATION - OTHER,People's Services,Other Agencies - Third Party,A57000
London Borough of Sutton,30/04/2023,20054215,"17,119.04",Careium UK Limited,ACCOMMODATION - OTHER,People's Services,Equipment,A61013
London Borough of Sutton,31/03/2023,20054331,"16,245.92",Careium UK Limited,ACCOMMODATION - OTHER,People's Services,Equipment,A61013
London Borough of Sutton,30/04/2023,20054332,"14,315.39",Careium UK Limited,ACCOMMODATION - OTHER,HRA,Supporting People - Alarm Services,A61023
London Borough of Sutton,31/01/2023,20054333,"18,358.50",Careium UK Limited,ACCOMMODATION - OTHER,People's Services,Equipment,A61013
London Borough of Sutton,28/02/2023,20054334,"15,351.76",Careium UK Limited,ACCOMMODATION - OTHER,People's Services,Equipment,A61013
London Borough of Sutton,31/03/2023,20054336,"14,792.57",Careium UK Limited,ACCOMMODATION - OTHER,HRA,Supporting People - Alarm Services,A61023
London Borough of Sutton,26/09/2022,20054476,-673.70,Careium UK Limited,ACCOMMODATION - OTHER,People's Services,Other Agencies - Third Party,A57000
London Borough of Sutton,26/09/2022,20054477,-705.62,Careium UK Limited,ACCOMMODATION - OTHER,People's Services,Other Agencies - Third Party,A57000
London Borough of Sutton,26/09/2022,20054553,"-15,433.83",Careium UK Limited,ACCOMMODATION - OTHER,People's Services,Other Agencies - Third Party,A57000
London Borough of Sutton,25/06/2023,50376405,562.25,Caremark (Sutton),SOCIAL SERVICES DAY CARE,People's Services,Home Care Services,A56019
London Borough of Sutton,25/06/2023,50376414,803.37,Caremark (Sutton),SOCIAL SERVICES DAY CARE,People's Services,Home Care Services,A56019
London Borough of Sutton,25/06/2023,50376414,43.00,Caremark (Sutton),SOCIAL SERVICES DAY CARE,People's Services,Home Care Services,A56019
London Borough of Sutton,25/06/2023,50376419,"1,875.50",Caremark (Sutton),SOCIAL SERVICES DAY CARE,People's Services,Home Care Services,A56019
London Borough of Sutton,25/06/2023,50376425,500.41,Caremark (Sutton),SOCIAL SERVICES DAY CARE,People's Services,Home Care Services,A56019
London Borough of Sutton,25/06/2023,50376438,636.26,Caremark (Sutton),SOCIAL SERVICES DAY CARE,People's Services,Home Care Services,A56019
London Borough of Sutton,25/06/2023,50376446,991.50,Caremark (Sutton),SOCIAL SERVICES DAY CARE,People's Services,Home Care Services,A56019
London Borough of Sutton,25/06/2023,50376453,"1,032.37",Caremark (Sutton),SOCIAL SERVICES DAY CARE,People's Services,Home Care Services,A56019
London Borough of Sutton,25/06/2023,50376518,658.77,Caremark (Sutton),SOCIAL SERVICES DAY CARE,People's Services,Home Care Services,A56019
London Borough of Sutton,25/06/2023,50376523,618.00,Caremark (Sutton),SOCIAL SERVICES DAY CARE,People's Services,Home Care Services,A56019
London Borough of Sutton,25/06/2023,50376523,309.00,Caremark (Sutton),SOCIAL SERVICES DAY CARE,People's Services,Home Care Services,A56019
London Borough of Sutton,25/06/2023,50376526,617.97,Caremark (Sutton),SOCIAL SERVICES DAY CARE,People's Services,Home Care Services,A56019
London Borough of Sutton,25/06/2023,50376528,803.40,Caremark (Sutton),SOCIAL SERVICES DAY CARE,People's Services,Home Care Services,A56019
London Borough of Sutton,10/07/2023,50376707,750.00,Caremark (Sutton),SOCIAL SERVICES DAY CARE,People's Services,Miscellaneous Expenses,A49000
London Borough of Sutton,02/07/2023,50376966,803.37,Caremark (Sutton),SOCIAL SERVICES DAY CARE,People's Services,Home Care Services,A56019
London Borough of Sutton,02/07/2023,50376966,43.00,Caremark (Sutton),SOCIAL SERVICES DAY CARE,People's Services,Home Care Services,A56019
London Borough of Sutton,02/07/2023,50376971,618.00,Caremark (Sutton),SOCIAL SERVICES DAY CARE,People's Services,Home Care Services,A56019
London Borough of Sutton,02/07/2023,50376971,309.00,Caremark (Sutton),SOCIAL SERVICES DAY CARE,People's Services,Home Care Services,A56019
London Borough of Sutton,02/07/2023,50376979,"1,897.00",Caremark (Sutton),SOCIAL SERVICES DAY CARE,People's Services,Home Care Services,A56019
London Borough of Sutton,02/07/2023,50376985,500.41,Caremark (Sutton),SOCIAL SERVICES DAY CARE,People's Services,Home Care Services,A56019
London Borough of Sutton,02/07/2023,50376998,64.50,Caremark (Sutton),SOCIAL SERVICES DAY CARE,People's Services,Home Care Services,A56019
London Borough of Sutton,02/07/2023,50376998,803.37,Caremark (Sutton),SOCIAL SERVICES DAY CARE,People's Services,Home Care Services,A56019
London Borough of Sutton,02/07/2023,50377022,623.36,Caremark (Sutton),SOCIAL SERVICES DAY CARE,People's Services,Home Care Services,A56019
London Borough of Sutton,02/07/2023,50377033,991.50,Caremark (Sutton),SOCIAL SERVICES DAY CARE,People's Services,Home Care Services,A56019
London Borough of Sutton,02/07/2023,50377082,537.87,Caremark (Sutton),SOCIAL SERVICES DAY CARE,People's Services,Home Care Services,A56019
London Borough of Sutton,02/07/2023,50377122,938.37,Caremark (Sutton),SOCIAL SERVICES DAY CARE,People's Services,Home Care Services,A56019
London Borough of Sutton,02/07/2023,50377126,540.75,Caremark (Sutton),SOCIAL SERVICES DAY CARE,People's Services,Home Care Services,A56019
London Borough of Sutton,09/07/2023,50378748,562.25,Caremark (Sutton),SOCIAL SERVICES DAY CARE,People's Services,Home Care Services,A56019
London Borough of Sutton,09/07/2023,50378756,"1,897.00",Caremark (Sutton),SOCIAL SERVICES DAY CARE,People's Services,Home Care Services,A56019
London Borough of Sutton,09/07/2023,50378797,500.41,Caremark (Sutton),SOCIAL SERVICES DAY CARE,People's Services,Home Care Services,A56019
London Borough of Sutton,09/07/2023,50378813,623.36,Caremark (Sutton),SOCIAL SERVICES DAY CARE,People's Services,Home Care Services,A56019
London Borough of Sutton,09/07/2023,50378825,531.87,Caremark (Sutton),SOCIAL SERVICES DAY CARE,People's Services,Home Care Services,A56019
London Borough of Sutton,09/07/2023,50378837,991.47,Caremark (Sutton),SOCIAL SERVICES DAY CARE,People's Services,Home Care Services,A56019
London Borough of Sutton,09/07/2023,50378853,938.37,Caremark (Sutton),SOCIAL SERVICES DAY CARE,People's Services,Home Care Services,A56019
London Borough of Sutton,09/07/2023,50378857,803.37,Caremark (Sutton),SOCIAL SERVICES DAY CARE,People's Services,Home Care Services,A56019
London Borough of Sutton,09/07/2023,50378857,43.00,Caremark (Sutton),SOCIAL SERVICES DAY CARE,People's Services,Home Care Services,A56019
London Borough of Sutton,09/07/2023,50378859,64.50,Caremark (Sutton),SOCIAL SERVICES DAY CARE,People's Services,Home Care Services,A56019
London Borough of Sutton,09/07/2023,50378859,839.39,Caremark (Sutton),SOCIAL SERVICES DAY CARE,People's Services,Home Care Services,A56019
London Borough of Sutton,09/07/2023,50378860,618.00,Caremark (Sutton),SOCIAL SERVICES DAY CARE,People's Services,Home Care Services,A56019
London Borough of Sutton,09/07/2023,50378860,309.00,Caremark (Sutton),SOCIAL SERVICES DAY CARE,People's Services,Home Care Services,A56019
London Borough of Sutton,09/07/2023,50378863,803.37,Caremark (Sutton),SOCIAL SERVICES DAY CARE,People's Services,Home Care Services,A56019
London Borough of Sutton,16/07/2023,50382510,938.37,Caremark (Sutton),SOCIAL SERVICES DAY CARE,People's Services,Home Care Services,A56019
London Borough of Sutton,16/07/2023,50382511,64.50,Caremark (Sutton),SOCIAL SERVICES DAY CARE,People's Services,Home Care Services,A56019
London Borough of Sutton,16/07/2023,50382511,865.21,Caremark (Sutton),SOCIAL SERVICES DAY CARE,People's Services,Home Care Services,A56019
London Borough of Sutton,11/06/2023,50382512,545.40,Caremark (Sutton),SOCIAL SERVICES DAY CARE,People's Services,Home Care Services,A56019
London Borough of Sutton,16/07/2023,50382525,"1,478.95",Caremark (Sutton),SOCIAL SERVICES DAY CARE,People's Services,Home Care Services,A56019
London Borough of Sutton,25/06/2023,50382526,"1,658.95",Caremark (Sutton),SOCIAL SERVICES DAY CARE,People's Services,Home Care Services,A56019
London Borough of Sutton,09/07/2023,50382527,"1,658.95",Caremark (Sutton),SOCIAL SERVICES DAY CARE,People's Services,Home Care Services,A56019
London Borough of Sutton,16/07/2023,50382573,531.87,Caremark (Sutton),SOCIAL SERVICES DAY CARE,People's Services,Home Care Services,A56019
London Borough of Sutton,16/07/2023,50382585,803.37,Caremark (Sutton),SOCIAL SERVICES DAY CARE,People's Services,Home Care Services,A56019
London Borough of Sutton,16/07/2023,50382585,43.00,Caremark (Sutton),SOCIAL SERVICES DAY CARE,People's Services,Home Care Services,A56019
London Borough of Sutton,16/07/2023,50382588,618.00,Caremark (Sutton),SOCIAL SERVICES DAY CARE,People's Services,Home Care Services,A56019
London Borough of Sutton,16/07/2023,50382588,309.00,Caremark (Sutton),SOCIAL SERVICES DAY CARE,People's Services,Home Care Services,A56019
London Borough of Sutton,16/07/2023,50382593,803.37,Caremark (Sutton),SOCIAL SERVICES DAY CARE,People's Services,Home Care Services,A56019
London Borough of Sutton,15/01/2023,50382617,"1,009.00",Caremark (Sutton),SOCIAL SERVICES DAY CARE,People's Services,Home Care Services,A56019
London Borough of Sutton,16/07/2023,50382620,500.41,Caremark (Sutton),SOCIAL SERVICES DAY CARE,People's Services,Home Care Services,A56019
London Borough of Sutton,16/07/2023,50382626,623.36,Caremark (Sutton),SOCIAL SERVICES DAY CARE,People's Services,Home Care Services,A56019
London Borough of Sutton,16/07/2023,50382632,991.47,Caremark (Sutton),SOCIAL SERVICES DAY CARE,People's Services,Home Care Services,A56019
London Borough of Sutton,16/07/2023,50382641,540.75,Caremark (Sutton),SOCIAL SERVICES DAY CARE,People's Services,Home Care Services,A56019
London Borough of Sutton,16/07/2023,50382645,"1,897.00",Caremark (Sutton),SOCIAL SERVICES DAY CARE,People's Services,Home Care Services,A56019
London Borough of Sutton,11/06/2023,50383094,"1,658.95",Caremark (Sutton),SOCIAL SERVICES DAY CARE,People's Services,Home Care Services,A56019
London Borough of Sutton,02/07/2023,50383095,"1,658.95",Caremark (Sutton),SOCIAL SERVICES DAY CARE,People's Services,Home Care Services,A56019
London Borough of Sutton,18/06/2023,50383096,"1,658.95",Caremark (Sutton),SOCIAL SERVICES DAY CARE,People's Services,Home Care Services,A56019
London Borough of Sutton,25/06/2023,50383099,507.38,Caremark (Sutton),SOCIAL SERVICES DAY CARE,People's Services,Home Care Services,A56019
London Borough of Sutton,18/06/2023,50383107,520.20,Caremark (Sutton),SOCIAL SERVICES DAY CARE,People's Services,Home Care Services,A56019
London Borough of Sutton,16/07/2023,50383108,599.50,Caremark (Sutton),SOCIAL SERVICES DAY CARE,People's Services,Home Care Services,A56019
London Borough of Sutton,31/07/2023,20053079,"7,727.86",Caremore Group Ltd,CHILDREN'S SERVICES - FOSTERING & ADOPTION SERVICES,People's Services,Approved Lodgings,A61000
London Borough of Sutton,31/07/2023,20053080,"7,478.57",Caremore Group Ltd,CHILDREN'S SERVICES - FOSTERING & ADOPTION SERVICES,People's Services,Approved Lodgings,A61000
London Borough of Sutton,03/07/2023,50375087,"9,675.01",Caremore Group Ltd,CHILDREN'S SERVICES - FOSTERING & ADOPTION SERVICES,People's Services,Approved Lodgings,A61000
London Borough of Sutton,03/07/2023,50375088,"9,997.50",Caremore Group Ltd,CHILDREN'S SERVICES - FOSTERING & ADOPTION SERVICES,People's Services,Approved Lodgings,A61000
London Borough of Sutton,07/07/2023,50375139,-833.85,Caretech Community Services Ltd,SOCIAL SERVICES RESIDENTIAL,People's Services,Residential Care - Client Cont ( Net Paymt ),A56113
London Borough of Sutton,07/07/2023,50375139,"6,030.96",Caretech Community Services Ltd,SOCIAL SERVICES RESIDENTIAL,People's Services,Residential Care - Ext Provider,A56114
London Borough of Sutton,07/07/2023,50375251,"-12,478.63",Caretech Community Services Ltd,SOCIAL SERVICES RESIDENTIAL,People's Services,Residential Care - Client Cont ( Net Paymt ),A56113
London Borough of Sutton,07/07/2023,50375251,"5,879.88",Caretech Community Services Ltd,SOCIAL SERVICES RESIDENTIAL,People's Services,Residential Care - Ext Provider,A56114
London Borough of Sutton,07/07/2023,50375289,"5,621.56",Caretech Community Services Ltd,SOCIAL SERVICES RESIDENTIAL,People's Services,Residential Care - Ext Provider,A56114
London Borough of Sutton,11/07/2023,50374580,"4,076.70",Carew Academy,CHILDREN'S SERVICES - RESIDENTIAL,People's Services,Payment - Teachers Pay Grant,A51026
London Borough of Sutton,11/07/2023,50374586,"11,296.86",Carew Academy,CHILDREN'S SERVICES - RESIDENTIAL,People's Services,Payment - Teachers Pension Grant,A51027
London Borough of Sutton,25/06/2023,50375071,267.85,Caridon Young Living Ltd,CHILDREN'S SERVICES - RESIDENTIAL,People's Services,Approved Lodgings,A61000
London Borough of Sutton,25/06/2023,50375071,"19,821.44",Caridon Young Living Ltd,CHILDREN'S SERVICES - RESIDENTIAL,People's Services,Approved Lodgings,A61000
London Borough of Sutton,20/07/2023,50380644,792.71,Care  Support Partners Ltd,SOCIAL SERVICES RESIDENTIAL,People's Services,Supported Living,A56088
London Borough of Sutton,20/07/2023,50380644,634.17,Care  Support Partners Ltd,SOCIAL SERVICES RESIDENTIAL,People's Services,Supported Living,A56088
London Borough of Sutton,20/07/2023,50380644,"2,147.86",Care  Support Partners Ltd,SOCIAL SERVICES RESIDENTIAL,People's Services,Supported Living,A56088
London Borough of Sutton,07/07/2023,50375361,"6,127.44",Carlene House,SOCIAL SERVICES RESIDENTIAL,People's Services,Residential Care - Ext Provider,A56114
London Borough of Sutton,07/07/2023,50375417,"6,127.44",Carlene House,SOCIAL SERVICES RESIDENTIAL,People's Services,Residential Care - Ext Provider,A56114
London Borough of Sutton,07/07/2023,50375428,"6,127.44",Carlene House,SOCIAL SERVICES RESIDENTIAL,People's Services,Residential Care - Ext Provider,A56114
London Borough of Sutton,07/07/2023,50375487,"6,127.44",Carlene House,SOCIAL SERVICES RESIDENTIAL,People's Services,Residential Care - Ext Provider,A56114
London Borough of Sutton,07/07/2023,50375491,"6,127.44",Carlene House,SOCIAL SERVICES RESIDENTIAL,People's Services,Residential Care - Ext Provider,A56114
London Borough of Sutton,07/07/2023,50375646,"6,127.44",Carlene House,SOCIAL SERVICES RESIDENTIAL,People's Services,Residential Care - Ext Provider,A56114
London Borough of Sutton,07/07/2023,50375652,"6,127.44",Carlene House,SOCIAL SERVICES RESIDENTIAL,People's Services,Residential Care - Ext Provider,A56114
London Borough of Sutton,05/07/2023,50375787,"1,335.60",Carlene House,SOCIAL SERVICES RESIDENTIAL,People's Services,Home Care Services,A56019
London Borough of Sutton,05/07/2023,50375788,"1,187.20",Carlene House,SOCIAL SERVICES RESIDENTIAL,People's Services,Home Care Services,A56019
London Borough of Sutton,05/07/2023,50375789,"1,409.80",Carlene House,SOCIAL SERVICES RESIDENTIAL,People's Services,Home Care Services,A56019
London Borough of Sutton,05/07/2023,50375812,964.60,Carlene House,SOCIAL SERVICES RESIDENTIAL,People's Services,Home Care Services,A56019
London Borough of Sutton,05/07/2023,50375814,"3,524.52",Carlene House,SOCIAL SERVICES RESIDENTIAL,People's Services,Home Care Services,A56019
London Borough of Sutton,05/07/2023,50375865,"2,029.12",Carlene House,SOCIAL SERVICES RESIDENTIAL,People's Services,Supported Living,A56088
London Borough of Sutton,05/07/2023,50375865,"1,510.61",Carlene House,SOCIAL SERVICES RESIDENTIAL,People's Services,Supported Living,A56088
London Borough of Sutton,05/07/2023,50375865,812.87,Carlene House,SOCIAL SERVICES RESIDENTIAL,People's Services,Supported Living,A56088
London Borough of Sutton,05/07/2023,50375868,"1,013.56",Carlene House,SOCIAL SERVICES RESIDENTIAL,People's Services,Supported Living,A56088
London Borough of Sutton,05/07/2023,50375868,"1,510.61",Carlene House,SOCIAL SERVICES RESIDENTIAL,People's Services,Supported Living,A56088
London Borough of Sutton,05/07/2023,50375868,812.87,Carlene House,SOCIAL SERVICES RESIDENTIAL,People's Services,Supported Living,A56088
London Borough of Sutton,07/06/2023,50378370,"1,484.00",Carlene House,SOCIAL SERVICES RESIDENTIAL,People's Services,Home Care Services,A56019
London Borough of Sutton,20/06/2023,50380560,"1,762.25",Carlene House,SOCIAL SERVICES RESIDENTIAL,People's Services,Home Care Services,A56019
London Borough of Sutton,05/07/2023,50380561,"1,409.80",Carlene House,SOCIAL SERVICES RESIDENTIAL,People's Services,Home Care Services,A56019
London Borough of Sutton,20/06/2023,50380584,"1,544.02",Carlene House,SOCIAL SERVICES RESIDENTIAL,People's Services,Supported Living,A56088
London Borough of Sutton,20/06/2023,50380584,"2,057.37",Carlene House,SOCIAL SERVICES RESIDENTIAL,People's Services,Supported Living,A56088
London Borough of Sutton,20/06/2023,50380584,"1,280.09",Carlene House,SOCIAL SERVICES RESIDENTIAL,People's Services,Supported Living,A56088
London Borough of Sutton,05/07/2023,50380585,"1,259.63",Carlene House,SOCIAL SERVICES RESIDENTIAL,People's Services,Supported Living,A56088
London Borough of Sutton,05/07/2023,50380585,"1,557.50",Carlene House,SOCIAL SERVICES RESIDENTIAL,People's Services,Supported Living,A56088
London Borough of Sutton,05/07/2023,50380585,812.87,Carlene House,SOCIAL SERVICES RESIDENTIAL,People's Services,Supported Living,A56088
London Borough of Sutton,27/07/2023,50381809,791.01,REDACTED - PERSONAL DATA,GRANTS & EX GRATIA PAYMENTS,People's Services,Payment - Nursery Funding,A51056
London Borough of Sutton,11/07/2023,50374365,757.35,REDACTED - PERSONAL DATA,GRANTS & EX GRATIA PAYMENTS,People's Services,Payment - Nursery Funding,A51056
London Borough of Sutton,11/07/2023,50374285,"1,767.15",REDACTED - PERSONAL DATA,GRANTS & EX GRATIA PAYMENTS,People's Services,Payment - Nursery Funding,A51056
London Borough of Sutton,26/07/2023,20054665,"35,000.00",Carshalton Boys Sports College (Academy),SCHOOL FUNDS,People's Services,Payments to Contractors,C14000
London Borough of Sutton,11/07/2023,50374601,"4,816.60",Carshalton Boys Sports College (Academy),SCHOOL FUNDS,People's Services,Pupil Growth,A51014
London Borough of Sutton,29/06/2023,50372393,"27,784.86",Catch 22 Charity Limited,CHILDREN'S SERVICES - RESIDENTIAL,People's Services,Residential Care-Children,A56115
London Borough of Sutton,29/06/2023,50372395,"27,784.86",Catch 22 Charity Limited,CHILDREN'S SERVICES - RESIDENTIAL,People's Services,Residential Care-Children,A56115
London Borough of Sutton,29/06/2023,50372397,"27,784.86",Catch 22 Charity Limited,CHILDREN'S SERVICES - RESIDENTIAL,People's Services,Residential Care-Children,A56115
London Borough of Sutton,06/07/2023,50375099,"26,888.57",Catch 22 Charity Limited,CHILDREN'S SERVICES - RESIDENTIAL,People's Services,Residential Care-Children,A56115
London Borough of Sutton,06/07/2023,50375100,"26,888.57",Catch 22 Charity Limited,CHILDREN'S SERVICES - RESIDENTIAL,People's Services,Residential Care-Children,A56115
London Borough of Sutton,06/07/2023,50375102,"26,888.57",Catch 22 Charity Limited,CHILDREN'S SERVICES - RESIDENTIAL,People's Services,Residential Care-Children,A56115
London Borough of Sutton,12/07/2023,20053863,"3,924.00",CATER LINK LIMITED,SUNDRY SUPPLIER - FINANCE,Resources,Equipment And Materials Repairs & Maintenance,A40051
London Borough of Sutton,27/07/2023,50381808,836.16,REDACTED - PERSONAL DATA,GRANTS & EX GRATIA PAYMENTS,People's Services,Payment - Nursery Funding,A51056
London Borough of Sutton,01/06/2023,20050441,"8,128.70",CBRE Ltd,TEMP STAFF & CONSULTANCY,Resources,Building Rents,A22005
London Borough of Sutton,01/06/2023,20053142,"25,885.60",CBRE Ltd,TEMP STAFF & CONSULTANCY,Resources,Building Rents,A22005
London Borough of Sutton,20/07/2023,50380705,"2,242.23",Centred (Scotland),SOCIAL SERVICES RESIDENTIAL,People's Services,Supported Living,A56088
London Borough of Sutton,12/07/2023,20054539,"5,030.00",Certus Security LLP,CONSTRUCTION INDUSTRY,HRA,Payments to Contractors,C14000
London Borough of Sutton,11/07/2023,50374299,"8,608.54",Cheam Baptist Church Pre-School,ACADEMIC INSTNS - OTHER,People's Services,Payment - Nursery Funding,A51056
London Borough of Sutton,11/07/2023,50374300,"1,804.92",Cheam Baptist Church Pre-School,ACADEMIC INSTNS - OTHER,People's Services,Payment - Nursery Funding,A51056
London Borough of Sutton,11/07/2023,50374737,"24,343.20",Cheam Common Infants School -ACADEMY,SCHOOL FUNDS,People's Services,Place Funding,A56110
London Borough of Sutton,11/07/2023,50375935,781.20,Cheam Common Infants School -ACADEMY,SCHOOL FUNDS,People's Services,Early Years Pupil Premium,A60031
London Borough of Sutton,11/07/2023,50375957,667.80,Cheam Common Infants School -ACADEMY,SCHOOL FUNDS,People's Services,Other payments to schools,A51023
London Borough of Sutton,28/07/2023,50383127,"2,035.00",Cheam Common Infants School -ACADEMY,SCHOOL FUNDS,Non-Service Cost Centres,Recharge-Teaching Staff,A10600
London Borough of Sutton,11/07/2023,50374596,"1,506.56",Cheam Common Junior Academy,SCHOOL FUNDS,People's Services,Payment - Cluster Lead SENCO,A51035
London Borough of Sutton,06/07/2023,50376660,"1,534.20",Cheam Common Junior Academy,SCHOOL FUNDS,People's Services,Top-up Funding,A51016
London Borough of Sutton,11/07/2023,50374595,"2,643.43",Cheam High School (Academy),SCHOOL FUNDS,People's Services,Payment - Cluster Lead SENCO,A51035
London Borough of Sutton,11/07/2023,50374603,"3,211.20",Cheam High School (Academy),SCHOOL FUNDS,People's Services,Pupil Growth,A51014
London Borough of Sutton,11/07/2023,50374739,"13,174.20",Cheam Park Farm Primary School,SCHOOL FUNDS,People's Services,Place Funding,A56110
London Borough of Sutton,11/07/2023,50375903,"1,000.00",Cheam Park Farm Primary School,SCHOOL FUNDS,People's Services,Predictable Needs funding,A56125
London Borough of Sutton,06/07/2023,50376662,758.55,Cheam Park Farm Primary School,SCHOOL FUNDS,People's Services,Top-up Funding,A51016
London Borough of Sutton,28/07/2023,50383124,"1,000.00",Cheam Park Farm Primary School,SCHOOL FUNDS,Non-Service Cost Centres,Recharge-Teaching Staff,A10600
London Borough of Sutton,28/07/2023,50383125,905.14,Cheam Park Farm Primary School,SCHOOL FUNDS,Non-Service Cost Centres,Recharge-Teaching Staff,A10600
London Borough of Sutton,28/07/2023,50383126,"2,960.00",Cheam Park Farm Primary School,SCHOOL FUNDS,Non-Service Cost Centres,Recharge-Teaching Staff,A10600
London Borough of Sutton,07/07/2023,50375324,-878.84,Chegworth Nursing Home Bayswift Ltd,SOCIAL SERVICES RESIDENTIAL,People's Services,Nursing Care - 3rd party top up payment,A56023
London Borough of Sutton,07/07/2023,50375324,"4,096.12",Chegworth Nursing Home Bayswift Ltd,SOCIAL SERVICES RESIDENTIAL,People's Services,Nursing Care - Ext Provider,A56025
London Borough of Sutton,07/07/2023,50375331,"-1,726.29",Chegworth Nursing Home Bayswift Ltd,SOCIAL SERVICES RESIDENTIAL,People's Services,Nursing Care - 3rd party top up payment,A56023
London Borough of Sutton,07/07/2023,50375331,"8,045.95",Chegworth Nursing Home Bayswift Ltd,SOCIAL SERVICES RESIDENTIAL,People's Services,Nursing Care Short Term,A56026
London Borough of Sutton,07/07/2023,50375334,"4,150.40",Chegworth Nursing Home Bayswift Ltd,SOCIAL SERVICES RESIDENTIAL,People's Services,Nursing Care - Ext Provider,A56025
London Borough of Sutton,07/07/2023,50375341,"4,096.12",Chegworth Nursing Home Bayswift Ltd,SOCIAL SERVICES RESIDENTIAL,People's Services,Nursing Care - Ext Provider,A56025
London Borough of Sutton,07/07/2023,50375341,-878.84,Chegworth Nursing Home Bayswift Ltd,SOCIAL SERVICES RESIDENTIAL,People's Services,Nursing Care - 3rd party top up payment,A56023
London Borough of Sutton,07/07/2023,50375347,-836.76,Chegworth Nursing Home Bayswift Ltd,SOCIAL SERVICES RESIDENTIAL,People's Services,Nursing Care - 3rd party top up payment,A56023
London Borough of Sutton,07/07/2023,50375347,"3,821.24",Chegworth Nursing Home Bayswift Ltd,SOCIAL SERVICES RESIDENTIAL,People's Services,Nursing Care Short Term,A56026
London Borough of Sutton,07/07/2023,50375351,-282.48,Chegworth Nursing Home Bayswift Ltd,SOCIAL SERVICES RESIDENTIAL,People's Services,Nursing Care - 3rd party top up payment,A56023
London Borough of Sutton,07/07/2023,50375351,"1,316.61",Chegworth Nursing Home Bayswift Ltd,SOCIAL SERVICES RESIDENTIAL,People's Services,Respite Care,A56116
London Borough of Sutton,07/07/2023,50375370,-750.40,Chegworth Nursing Home Bayswift Ltd,SOCIAL SERVICES RESIDENTIAL,People's Services,Nursing Care - 3rd party top up payment,A56023
London Borough of Sutton,07/07/2023,50375370,"3,734.88",Chegworth Nursing Home Bayswift Ltd,SOCIAL SERVICES RESIDENTIAL,People's Services,Nursing Care Short Term,A56026
London Borough of Sutton,07/07/2023,50375395,"4,149.92",Chegworth Nursing Home Bayswift Ltd,SOCIAL SERVICES RESIDENTIAL,People's Services,Nursing Care - Ext Provider,A56025
London Borough of Sutton,07/07/2023,50375395,-750.40,Chegworth Nursing Home Bayswift Ltd,SOCIAL SERVICES RESIDENTIAL,People's Services,Nursing Care - 3rd party top up payment,A56023
London Borough of Sutton,07/07/2023,50375435,"4,096.12",Chegworth Nursing Home Bayswift Ltd,SOCIAL SERVICES RESIDENTIAL,People's Services,Nursing Care - Ext Provider,A56025
London Borough of Sutton,07/07/2023,50375435,-878.84,Chegworth Nursing Home Bayswift Ltd,SOCIAL SERVICES RESIDENTIAL,People's Services,Nursing Care - 3rd party top up payment,A56023
London Borough of Sutton,07/07/2023,50375452,-662.24,Chegworth Nursing Home Bayswift Ltd,SOCIAL SERVICES RESIDENTIAL,People's Services,Nursing Care - 3rd party top up payment,A56023
London Borough of Sutton,07/07/2023,50375452,"4,955.56",Chegworth Nursing Home Bayswift Ltd,SOCIAL SERVICES RESIDENTIAL,People's Services,Nursing Care Short Term,A56026
London Borough of Sutton,07/07/2023,50375478,"4,096.12",Chegworth Nursing Home Bayswift Ltd,SOCIAL SERVICES RESIDENTIAL,People's Services,Nursing Care - Ext Provider,A56025
London Borough of Sutton,07/07/2023,50375478,-878.84,Chegworth Nursing Home Bayswift Ltd,SOCIAL SERVICES RESIDENTIAL,People's Services,Nursing Care - 3rd party top up payment,A56023
London Borough of Sutton,07/07/2023,50375508,-836.76,Chegworth Nursing Home Bayswift Ltd,SOCIAL SERVICES RESIDENTIAL,People's Services,Nursing Care - 3rd party top up payment,A56023
London Borough of Sutton,07/07/2023,50375508,"3,821.24",Chegworth Nursing Home Bayswift Ltd,SOCIAL SERVICES RESIDENTIAL,People's Services,Nursing Care Short Term,A56026
London Borough of Sutton,07/07/2023,50375523,"4,096.12",Chegworth Nursing Home Bayswift Ltd,SOCIAL SERVICES RESIDENTIAL,People's Services,Nursing Care - Ext Provider,A56025
London Borough of Sutton,07/07/2023,50375523,-878.84,Chegworth Nursing Home Bayswift Ltd,SOCIAL SERVICES RESIDENTIAL,People's Services,Nursing Care - 3rd party top up payment,A56023
London Borough of Sutton,07/07/2023,50375540,"2,905.28",Chegworth Nursing Home Bayswift Ltd,SOCIAL SERVICES RESIDENTIAL,People's Services,Nursing Care Short Term,A56026
London Borough of Sutton,07/07/2023,50375543,"3,771.43",Chegworth Nursing Home Bayswift Ltd,SOCIAL SERVICES RESIDENTIAL,People's Services,Nursing Care - Ext Provider,A56025
London Borough of Sutton,07/07/2023,50375543,-753.29,Chegworth Nursing Home Bayswift Ltd,SOCIAL SERVICES RESIDENTIAL,People's Services,Nursing Care - 3rd party top up payment,A56023
London Borough of Sutton,07/07/2023,50375569,-878.84,Chegworth Nursing Home Bayswift Ltd,SOCIAL SERVICES RESIDENTIAL,People's Services,Nursing Care - 3rd party top up payment,A56023
London Borough of Sutton,07/07/2023,50375569,"4,096.12",Chegworth Nursing Home Bayswift Ltd,SOCIAL SERVICES RESIDENTIAL,People's Services,Nursing Care Short Term,A56026
London Borough of Sutton,07/07/2023,50375598,-750.40,Chegworth Nursing Home Bayswift Ltd,SOCIAL SERVICES RESIDENTIAL,People's Services,Nursing Care - 3rd party top up payment,A56023
London Borough of Sutton,07/07/2023,50375598,"3,734.88",Chegworth Nursing Home Bayswift Ltd,SOCIAL SERVICES RESIDENTIAL,People's Services,Nursing Care Short Term,A56026
London Borough of Sutton,07/07/2023,50375608,"4,096.12",Chegworth Nursing Home Bayswift Ltd,SOCIAL SERVICES RESIDENTIAL,People's Services,Nursing Care - Ext Provider,A56025
London Borough of Sutton,07/07/2023,50375608,-878.84,Chegworth Nursing Home Bayswift Ltd,SOCIAL SERVICES RESIDENTIAL,People's Services,Nursing Care - 3rd party top up payment,A56023
London Borough of Sutton,07/07/2023,50375623,"4,096.12",Chegworth Nursing Home Bayswift Ltd,SOCIAL SERVICES RESIDENTIAL,People's Services,Nursing Care - Ext Provider,A56025
London Borough of Sutton,07/07/2023,50375623,-878.84,Chegworth Nursing Home Bayswift Ltd,SOCIAL SERVICES RESIDENTIAL,People's Services,Nursing Care - 3rd party top up payment,A56023
London Borough of Sutton,07/07/2023,50375645,"29,258.00",Chegworth Nursing Home Bayswift Ltd,SOCIAL SERVICES RESIDENTIAL,People's Services,Nursing Care - Ext Provider,A56025
London Borough of Sutton,07/07/2023,50375645,"-6,277.43",Chegworth Nursing Home Bayswift Ltd,SOCIAL SERVICES RESIDENTIAL,People's Services,Nursing Care - 3rd party top up payment,A56023
London Borough of Sutton,07/07/2023,50375666,"4,412.00",Chegworth Nursing Home Bayswift Ltd,SOCIAL SERVICES RESIDENTIAL,People's Services,Nursing Care - Ext Provider,A56025
London Borough of Sutton,07/07/2023,50375666,-315.88,Chegworth Nursing Home Bayswift Ltd,SOCIAL SERVICES RESIDENTIAL,People's Services,Nursing Care - 3rd party top up payment,A56023
London Borough of Sutton,07/07/2023,50375666,-878.84,Chegworth Nursing Home Bayswift Ltd,SOCIAL SERVICES RESIDENTIAL,People's Services,Nursing Care - 3rd party top up payment,A56023
London Borough of Sutton,07/07/2023,50375692,-878.84,Chegworth Nursing Home Bayswift Ltd,SOCIAL SERVICES RESIDENTIAL,People's Services,Nursing Care - 3rd party top up payment,A56023
London Borough of Sutton,07/07/2023,50375692,"4,096.12",Chegworth Nursing Home Bayswift Ltd,SOCIAL SERVICES RESIDENTIAL,People's Services,Nursing Care - Ext Provider,A56025
London Borough of Sutton,07/07/2023,50375698,"2,486.93",Chegworth Nursing Home Bayswift Ltd,SOCIAL SERVICES RESIDENTIAL,People's Services,Nursing Care - Ext Provider,A56025
London Borough of Sutton,07/07/2023,50375698,-533.58,Chegworth Nursing Home Bayswift Ltd,SOCIAL SERVICES RESIDENTIAL,People's Services,Nursing Care - 3rd party top up payment,A56023
London Borough of Sutton,07/07/2023,50375703,"3,821.24",Chegworth Nursing Home Bayswift Ltd,SOCIAL SERVICES RESIDENTIAL,People's Services,Nursing Care Short Term,A56026
London Borough of Sutton,07/07/2023,50375703,-836.76,Chegworth Nursing Home Bayswift Ltd,SOCIAL SERVICES RESIDENTIAL,People's Services,Nursing Care - 3rd party top up payment,A56023
London Borough of Sutton,07/07/2023,50375162,-460.04,Cherry Lodge,SOCIAL SERVICES RESIDENTIAL,People's Services,Residential Care - Client Cont ( Net Paymt ),A56113
London Borough of Sutton,07/07/2023,50375162,"5,159.40",Cherry Lodge,SOCIAL SERVICES RESIDENTIAL,People's Services,Residential Care - Ext Provider,A56114
London Borough of Sutton,07/07/2023,50375202,"4,443.40",Cherry Lodge,SOCIAL SERVICES RESIDENTIAL,People's Services,Residential Care - Ext Provider,A56114
London Borough of Sutton,07/07/2023,50375214,"4,096.12",CHHG Ltd,SOCIAL SERVICES RESIDENTIAL,People's Services,Nursing Care - Ext Provider,A56025
London Borough of Sutton,07/07/2023,50375214,-878.84,CHHG Ltd,SOCIAL SERVICES RESIDENTIAL,People's Services,Nursing Care - 3rd party top up payment,A56023
London Borough of Sutton,07/07/2023,50375224,"3,223.57",CHHG Ltd,SOCIAL SERVICES RESIDENTIAL,People's Services,Respite Care,A56116
London Borough of Sutton,07/07/2023,50375224,-687.34,CHHG Ltd,SOCIAL SERVICES RESIDENTIAL,People's Services,Nursing Care - 3rd party top up payment,A56023
London Borough of Sutton,28/06/2023,20052924,"2,654.00",Children's Trust,CHILDREN'S SERVICES - DAY CARE,People's Services,Respite Care,A56116
London Borough of Sutton,08/06/2023,50375080,"13,647.60",Children's Trust,CHILDREN'S SERVICES - DAY CARE,People's Services,Residential Care-Children,A56115
London Borough of Sutton,06/07/2023,50376695,"6,795.82",Children's Trust,CHILDREN'S SERVICES - DAY CARE,People's Services,Independent School Fees,A56002
London Borough of Sutton,06/07/2023,50376696,"6,869.60",Children's Trust,CHILDREN'S SERVICES - DAY CARE,People's Services,Independent School Fees,A56002
London Borough of Sutton,06/07/2023,50376697,"6,900.60",Children's Trust,CHILDREN'S SERVICES - DAY CARE,People's Services,Independent School Fees,A56002
London Borough of Sutton,11/07/2023,50374302,"15,147.00",Chiltern Day Nursery,ACADEMIC INSTNS - OTHER,People's Services,Payment - Nursery Funding,A51056
London Borough of Sutton,07/07/2023,50375413,"8,682.92",Choice Care Group (Surrey) Ltd,SOCIAL SERVICES RESIDENTIAL,People's Services,Residential Care - Ext Provider,A56114
London Borough of Sutton,07/07/2023,50375499,"7,512.24",Choice Care Group (Surrey) Ltd,SOCIAL SERVICES RESIDENTIAL,People's Services,Residential Care - Ext Provider,A56114
London Borough of Sutton,07/07/2023,50375515,"8,863.92",Choice Care Group (Surrey) Ltd,SOCIAL SERVICES RESIDENTIAL,People's Services,Residential Care - Ext Provider,A56114
London Borough of Sutton,07/07/2023,50375632,"7,809.32",Choice Care Group (Surrey) Ltd,SOCIAL SERVICES RESIDENTIAL,People's Services,Residential Care - Ext Provider,A56114
London Borough of Sutton,07/07/2023,50375657,"12,600.00",Choice Care Group (Surrey) Ltd,SOCIAL SERVICES RESIDENTIAL,People's Services,Residential Care - Ext Provider,A56114
London Borough of Sutton,28/04/2023,20048842,"36,250.02",Choice Support,GRANTS & EX GRATIA PAYMENTS,People's Services,Training/Workshops Non Staff,A44160
London Borough of Sutton,03/07/2023,50374199,858.73,Choice Support,GRANTS & EX GRATIA PAYMENTS,People's Services,Supported Living,A56088
London Borough of Sutton,03/07/2023,50374199,"5,024.87",Choice Support,GRANTS & EX GRATIA PAYMENTS,People's Services,Supported Living,A56088
London Borough of Sutton,07/07/2023,50375313,"5,716.12",Choice Support,GRANTS & EX GRATIA PAYMENTS,People's Services,Residential Care - Ext Provider,A56114
London Borough of Sutton,20/07/2023,50380604,"4,441.15",Choice Support,GRANTS & EX GRATIA PAYMENTS,People's Services,Supported Living,A56088
London Borough of Sutton,20/07/2023,50380613,"2,438.99",Choice Support,GRANTS & EX GRATIA PAYMENTS,People's Services,Supported Living,A56088
London Borough of Sutton,20/07/2023,50380613,494.18,Choice Support,GRANTS & EX GRATIA PAYMENTS,People's Services,Supported Living,A56088
London Borough of Sutton,20/07/2023,50380613,"1,714.57",Choice Support,GRANTS & EX GRATIA PAYMENTS,People's Services,Supported Living,A56088
London Borough of Sutton,20/07/2023,50380613,672.74,Choice Support,GRANTS & EX GRATIA PAYMENTS,People's Services,Supported Living,A56088
London Borough of Sutton,20/07/2023,50380615,613.49,Choice Support,GRANTS & EX GRATIA PAYMENTS,People's Services,Supported Living,A56088
London Borough of Sutton,20/07/2023,50380616,"4,545.66",Choice Support,GRANTS & EX GRATIA PAYMENTS,People's Services,Supported Living,A56088
London Borough of Sutton,20/07/2023,50380616,"1,127.78",Choice Support,GRANTS & EX GRATIA PAYMENTS,People's Services,Supported Living,A56088
London Borough of Sutton,20/07/2023,50380617,"8,729.60",Choice Support,GRANTS & EX GRATIA PAYMENTS,People's Services,Supported Living,A56088
London Borough of Sutton,20/07/2023,50380617,"1,973.37",Choice Support,GRANTS & EX GRATIA PAYMENTS,People's Services,Supported Living,A56088
London Borough of Sutton,20/07/2023,50380619,"1,219.58",Choice Support,GRANTS & EX GRATIA PAYMENTS,People's Services,Supported Living,A56088
London Borough of Sutton,20/07/2023,50380619,"5,506.53",Choice Support,GRANTS & EX GRATIA PAYMENTS,People's Services,Supported Living,A56088
London Borough of Sutton,20/07/2023,50380619,"1,127.78",Choice Support,GRANTS & EX GRATIA PAYMENTS,People's Services,Supported Living,A56088
London Borough of Sutton,20/07/2023,50380620,"3,567.48",Choice Support,GRANTS & EX GRATIA PAYMENTS,People's Services,Supported Living,A56088
London Borough of Sutton,20/07/2023,50380622,"1,219.58",Choice Support,GRANTS & EX GRATIA PAYMENTS,People's Services,Supported Living,A56088
London Borough of Sutton,20/07/2023,50380622,"3,215.23",Choice Support,GRANTS & EX GRATIA PAYMENTS,People's Services,Supported Living,A56088
London Borough of Sutton,20/07/2023,50380622,"1,127.78",Choice Support,GRANTS & EX GRATIA PAYMENTS,People's Services,Supported Living,A56088
London Borough of Sutton,20/07/2023,50380623,"-17,939.69",Choice Support,GRANTS & EX GRATIA PAYMENTS,People's Services,Supported Living,A56088
London Borough of Sutton,20/07/2023,50380623,"-41,314.90",Choice Support,GRANTS & EX GRATIA PAYMENTS,People's Services,Supported Living,A56088
London Borough of Sutton,20/07/2023,50380623,"-16,589.28",Choice Support,GRANTS & EX GRATIA PAYMENTS,People's Services,Supported Living,A56088
London Borough of Sutton,20/07/2023,50380631,545.60,Choice Support,GRANTS & EX GRATIA PAYMENTS,People's Services,Supported Living,A56088
London Borough of Sutton,20/07/2023,50380631,529.17,Choice Support,GRANTS & EX GRATIA PAYMENTS,People's Services,Supported Living,A56088
London Borough of Sutton,20/07/2023,50380631,"2,104.46",Choice Support,GRANTS & EX GRATIA PAYMENTS,People's Services,Supported Living,A56088
London Borough of Sutton,20/07/2023,50380638,"1,219.58",Choice Support,GRANTS & EX GRATIA PAYMENTS,People's Services,Supported Living,A56088
London Borough of Sutton,20/07/2023,50380638,"5,395.64",Choice Support,GRANTS & EX GRATIA PAYMENTS,People's Services,Supported Living,A56088
London Borough of Sutton,20/07/2023,50380638,"1,127.78",Choice Support,GRANTS & EX GRATIA PAYMENTS,People's Services,Supported Living,A56088
London Borough of Sutton,20/07/2023,50380640,"1,219.58",Choice Support,GRANTS & EX GRATIA PAYMENTS,People's Services,Supported Living,A56088
London Borough of Sutton,20/07/2023,50380640,"3,326.08",Choice Support,GRANTS & EX GRATIA PAYMENTS,People's Services,Supported Living,A56088
London Borough of Sutton,20/07/2023,50380640,"1,127.78",Choice Support,GRANTS & EX GRATIA PAYMENTS,People's Services,Supported Living,A56088
London Borough of Sutton,20/07/2023,50380648,311.77,Choice Support,GRANTS & EX GRATIA PAYMENTS,People's Services,Supported Living,A56088
London Borough of Sutton,20/07/2023,50380648,529.17,Choice Support,GRANTS & EX GRATIA PAYMENTS,People's Services,Supported Living,A56088
London Borough of Sutton,20/07/2023,50380648,"2,104.46",Choice Support,GRANTS & EX GRATIA PAYMENTS,People's Services,Supported Living,A56088
London Borough of Sutton,20/07/2023,50380649,613.49,Choice Support,GRANTS & EX GRATIA PAYMENTS,People's Services,Supported Living,A56088
London Borough of Sutton,20/07/2023,50380649,"5,063.05",Choice Support,GRANTS & EX GRATIA PAYMENTS,People's Services,Supported Living,A56088
London Borough of Sutton,20/07/2023,50380649,"1,127.78",Choice Support,GRANTS & EX GRATIA PAYMENTS,People's Services,Supported Living,A56088
London Borough of Sutton,20/07/2023,50380651,"6,301.06",Choice Support,GRANTS & EX GRATIA PAYMENTS,People's Services,Supported Living,A56088
London Borough of Sutton,20/07/2023,50380651,"1,127.78",Choice Support,GRANTS & EX GRATIA PAYMENTS,People's Services,Supported Living,A56088
London Borough of Sutton,20/07/2023,50380652,613.49,Choice Support,GRANTS & EX GRATIA PAYMENTS,People's Services,Supported Living,A56088
London Borough of Sutton,20/07/2023,50380660,"1,219.58",Choice Support,GRANTS & EX GRATIA PAYMENTS,People's Services,Supported Living,A56088
London Borough of Sutton,20/07/2023,50380660,"3,252.17",Choice Support,GRANTS & EX GRATIA PAYMENTS,People's Services,Supported Living,A56088
London Borough of Sutton,20/07/2023,50380660,"1,127.78",Choice Support,GRANTS & EX GRATIA PAYMENTS,People's Services,Supported Living,A56088
London Borough of Sutton,20/07/2023,50380663,"2,402.59",Choice Support,GRANTS & EX GRATIA PAYMENTS,People's Services,Supported Living,A56088
London Borough of Sutton,20/07/2023,50380663,502.91,Choice Support,GRANTS & EX GRATIA PAYMENTS,People's Services,Supported Living,A56088
London Borough of Sutton,20/07/2023,50380663,"1,687.64",Choice Support,GRANTS & EX GRATIA PAYMENTS,People's Services,Supported Living,A56088
London Borough of Sutton,20/07/2023,50380663,672.74,Choice Support,GRANTS & EX GRATIA PAYMENTS,People's Services,Supported Living,A56088
London Borough of Sutton,20/07/2023,50380664,494.18,Choice Support,GRANTS & EX GRATIA PAYMENTS,People's Services,Supported Living,A56088
London Borough of Sutton,20/07/2023,50380664,"4,004.31",Choice Support,GRANTS & EX GRATIA PAYMENTS,People's Services,Supported Living,A56088
London Borough of Sutton,20/07/2023,50380664,122.32,Choice Support,GRANTS & EX GRATIA PAYMENTS,People's Services,Supported Living,A56088
London Borough of Sutton,20/07/2023,50380667,"5,494.97",Choice Support,GRANTS & EX GRATIA PAYMENTS,People's Services,Supported Living,A56088
London Borough of Sutton,20/07/2023,50380667,"1,973.37",Choice Support,GRANTS & EX GRATIA PAYMENTS,People's Services,Supported Living,A56088
London Borough of Sutton,20/07/2023,50380668,613.49,Choice Support,GRANTS & EX GRATIA PAYMENTS,People's Services,Supported Living,A56088
London Borough of Sutton,20/07/2023,50380668,"5,063.05",Choice Support,GRANTS & EX GRATIA PAYMENTS,People's Services,Supported Living,A56088
London Borough of Sutton,20/07/2023,50380668,"1,127.78",Choice Support,GRANTS & EX GRATIA PAYMENTS,People's Services,Supported Living,A56088
London Borough of Sutton,20/07/2023,50380669,613.49,Choice Support,GRANTS & EX GRATIA PAYMENTS,People's Services,Supported Living,A56088
London Borough of Sutton,20/07/2023,50380669,"4,804.34",Choice Support,GRANTS & EX GRATIA PAYMENTS,People's Services,Supported Living,A56088
London Borough of Sutton,20/07/2023,50380669,"1,127.78",Choice Support,GRANTS & EX GRATIA PAYMENTS,People's Services,Supported Living,A56088
London Borough of Sutton,20/07/2023,50380679,"2,256.98",Choice Support,GRANTS & EX GRATIA PAYMENTS,People's Services,Supported Living,A56088
London Borough of Sutton,20/07/2023,50380679,494.18,Choice Support,GRANTS & EX GRATIA PAYMENTS,People's Services,Supported Living,A56088
London Borough of Sutton,20/07/2023,50380679,"1,456.11",Choice Support,GRANTS & EX GRATIA PAYMENTS,People's Services,Supported Living,A56088
London Borough of Sutton,20/07/2023,50380679,122.32,Choice Support,GRANTS & EX GRATIA PAYMENTS,People's Services,Supported Living,A56088
London Borough of Sutton,20/07/2023,50380680,"2,147.77",Choice Support,GRANTS & EX GRATIA PAYMENTS,People's Services,Supported Living,A56088
London Borough of Sutton,20/07/2023,50380680,494.18,Choice Support,GRANTS & EX GRATIA PAYMENTS,People's Services,Supported Living,A56088
London Borough of Sutton,20/07/2023,50380680,"1,659.96",Choice Support,GRANTS & EX GRATIA PAYMENTS,People's Services,Supported Living,A56088
London Borough of Sutton,20/07/2023,50380680,672.74,Choice Support,GRANTS & EX GRATIA PAYMENTS,People's Services,Supported Living,A56088
London Borough of Sutton,20/07/2023,50380681,"3,831.78",Choice Support,GRANTS & EX GRATIA PAYMENTS,People's Services,Supported Living,A56088
London Borough of Sutton,20/07/2023,50380681,494.18,Choice Support,GRANTS & EX GRATIA PAYMENTS,People's Services,Supported Living,A56088
London Borough of Sutton,20/07/2023,50380681,"1,448.85",Choice Support,GRANTS & EX GRATIA PAYMENTS,People's Services,Supported Living,A56088
London Borough of Sutton,20/07/2023,50380681,672.74,Choice Support,GRANTS & EX GRATIA PAYMENTS,People's Services,Supported Living,A56088
London Borough of Sutton,20/07/2023,50380684,613.49,Choice Support,GRANTS & EX GRATIA PAYMENTS,People's Services,Supported Living,A56088
London Borough of Sutton,20/07/2023,50380684,"4,878.25",Choice Support,GRANTS & EX GRATIA PAYMENTS,People's Services,Supported Living,A56088
London Borough of Sutton,20/07/2023,50380684,"1,127.78",Choice Support,GRANTS & EX GRATIA PAYMENTS,People's Services,Supported Living,A56088
London Borough of Sutton,20/07/2023,50380685,"4,910.40",Choice Support,GRANTS & EX GRATIA PAYMENTS,People's Services,Supported Living,A56088
London Borough of Sutton,20/07/2023,50380685,529.17,Choice Support,GRANTS & EX GRATIA PAYMENTS,People's Services,Supported Living,A56088
London Borough of Sutton,20/07/2023,50380685,"2,104.46",Choice Support,GRANTS & EX GRATIA PAYMENTS,People's Services,Supported Living,A56088
London Borough of Sutton,20/07/2023,50380688,"1,219.58",Choice Support,GRANTS & EX GRATIA PAYMENTS,People's Services,Supported Living,A56088
London Borough of Sutton,20/07/2023,50380688,"3,215.23",Choice Support,GRANTS & EX GRATIA PAYMENTS,People's Services,Supported Living,A56088
London Borough of Sutton,20/07/2023,50380688,"1,127.78",Choice Support,GRANTS & EX GRATIA PAYMENTS,People's Services,Supported Living,A56088
London Borough of Sutton,20/07/2023,50380696,613.49,Choice Support,GRANTS & EX GRATIA PAYMENTS,People's Services,Supported Living,A56088
London Borough of Sutton,20/07/2023,50380696,"4,804.34",Choice Support,GRANTS & EX GRATIA PAYMENTS,People's Services,Supported Living,A56088
London Borough of Sutton,20/07/2023,50380696,"1,127.78",Choice Support,GRANTS & EX GRATIA PAYMENTS,People's Services,Supported Living,A56088
London Borough of Sutton,20/07/2023,50380698,"2,372.03",Choice Support,GRANTS & EX GRATIA PAYMENTS,People's Services,Supported Living,A56088
London Borough of Sutton,20/07/2023,50380698,494.18,Choice Support,GRANTS & EX GRATIA PAYMENTS,People's Services,Supported Living,A56088
London Borough of Sutton,20/07/2023,50380698,"1,678.16",Choice Support,GRANTS & EX GRATIA PAYMENTS,People's Services,Supported Living,A56088
London Borough of Sutton,20/07/2023,50380698,672.74,Choice Support,GRANTS & EX GRATIA PAYMENTS,People's Services,Supported Living,A56088
London Borough of Sutton,20/07/2023,50380709,"1,219.58",Choice Support,GRANTS & EX GRATIA PAYMENTS,People's Services,Supported Living,A56088
London Borough of Sutton,20/07/2023,50380709,"3,399.99",Choice Support,GRANTS & EX GRATIA PAYMENTS,People's Services,Supported Living,A56088
London Borough of Sutton,20/07/2023,50380709,"1,127.78",Choice Support,GRANTS & EX GRATIA PAYMENTS,People's Services,Supported Living,A56088
London Borough of Sutton,20/07/2023,50380713,"1,820.14",Choice Support,GRANTS & EX GRATIA PAYMENTS,People's Services,Supported Living,A56088
London Borough of Sutton,20/07/2023,50380713,494.18,Choice Support,GRANTS & EX GRATIA PAYMENTS,People's Services,Supported Living,A56088
London Borough of Sutton,20/07/2023,50380713,"2,475.39",Choice Support,GRANTS & EX GRATIA PAYMENTS,People's Services,Supported Living,A56088
London Borough of Sutton,20/07/2023,50380713,122.32,Choice Support,GRANTS & EX GRATIA PAYMENTS,People's Services,Supported Living,A56088
London Borough of Sutton,11/07/2023,50374303,"11,963.52",Christchurch Fledgelings Pre-School,ACADEMIC INSTNS - OTHER,People's Services,Payment - Nursery Funding,A51056
London Borough of Sutton,11/07/2023,50374304,"1,216.80",Christchurch Fledgelings Pre-School,ACADEMIC INSTNS - OTHER,People's Services,Payment - Nursery Funding,A51056
London Borough of Sutton,09/07/2023,50376671,"3,995.03",Christchurch Fledgelings Pre-School,ACADEMIC INSTNS - OTHER,People's Services,Top-up individual funding,A60033
London Borough of Sutton,05/07/2023,20053172,"48,077.95",Chroma Vision Limited,AGRICULTURAL & ESTATE SERVICES,Environment Housing and Neighbourhoods,Other Capital Expenditure,C20002
London Borough of Sutton,06/07/2023,50373470,"2,400.00",Barrow Hedges Primary School Academy,SCHOOL FUNDS,People's Services,Payments to Schools,A51013
London Borough of Sutton,11/07/2023,50374733,"20,521.35",Barrow Hedges Primary School Academy,SCHOOL FUNDS,People's Services,Place Funding,A56110
London Borough of Sutton,06/07/2023,20053287,"5,500.00",City Of Westminster,CENTRAL & LOCAL GOVERNMENT,People's Services,Fees,A44040
London Borough of Sutton,30/06/2023,20053135,"3,073.68",City Sprint UK (Excel) Ltd,DELIVERY AND COURIER SERVICES,Health and Wellbeing,Hire of Transport - Non Staff,A32000
London Borough of Sutton,30/06/2023,20053146,982.76,City Sprint UK (Excel) Ltd,DELIVERY AND COURIER SERVICES,Resources,Printing,A43010
London Borough of Sutton,30/04/2023,20053613,"2,827.13",City Sprint UK (Excel) Ltd,DELIVERY AND COURIER SERVICES,Health and Wellbeing,Hire of Transport - Non Staff,A32000
London Borough of Sutton,01/07/2023,20052836,"38,197.60",Cityglen Ltd,ACCOMMODATION BED & BREAKFAST,Environment Housing and Neighbourhoods,Bed & Breakfast,A56000
London Borough of Sutton,25/07/2023,20053606,"3,550.00",CJA Property Consulting Limited,OFFICE SERVICES,Resources,Professional Fees,A44066
London Borough of Sutton,07/07/2023,50375335,697.92,Claremont Care Svs Ltd,SOCIAL SERVICES RESIDENTIAL,People's Services,Nursing Care - Ext Provider,A56025
London Borough of Sutton,07/07/2023,50375335,-89.65,Claremont Care Svs Ltd,SOCIAL SERVICES RESIDENTIAL,People's Services,Nursing Care - 3rd party top up payment,A56023
London Borough of Sutton,07/07/2023,50375346,"6,487.64",Claremont Care Svs Ltd,SOCIAL SERVICES RESIDENTIAL,People's Services,Nursing Care - Ext Provider,A56025
London Borough of Sutton,07/07/2023,50375346,-750.40,Claremont Care Svs Ltd,SOCIAL SERVICES RESIDENTIAL,People's Services,Nursing Care - 3rd party top up payment,A56023
London Borough of Sutton,07/07/2023,50375494,"4,525.36",Claremont Care Svs Ltd,SOCIAL SERVICES RESIDENTIAL,People's Services,Nursing Care - Ext Provider,A56025
London Borough of Sutton,07/07/2023,50375494,-750.40,Claremont Care Svs Ltd,SOCIAL SERVICES RESIDENTIAL,People's Services,Nursing Care - 3rd party top up payment,A56023
London Borough of Sutton,07/07/2023,50375553,"4,096.12",Claremont Care Svs Ltd,SOCIAL SERVICES RESIDENTIAL,People's Services,Nursing Care - Ext Provider,A56025
London Borough of Sutton,07/07/2023,50375553,-878.84,Claremont Care Svs Ltd,SOCIAL SERVICES RESIDENTIAL,People's Services,Nursing Care - 3rd party top up payment,A56023
London Borough of Sutton,07/07/2023,50375670,"6,236.76",Claremont Care Svs Ltd,SOCIAL SERVICES RESIDENTIAL,People's Services,Nursing Care Short Term,A56026
London Borough of Sutton,07/07/2023,50375670,-836.76,Claremont Care Svs Ltd,SOCIAL SERVICES RESIDENTIAL,People's Services,Nursing Care - 3rd party top up payment,A56023
London Borough of Sutton,07/07/2023,50375674,"-11,424.00",Claremont Care Svs Ltd,SOCIAL SERVICES RESIDENTIAL,People's Services,Nursing Care - 3rd party top up payment,A56023
London Borough of Sutton,07/07/2023,50375674,"14,613.88",Claremont Care Svs Ltd,SOCIAL SERVICES RESIDENTIAL,People's Services,Nursing Care - Ext Provider,A56025
London Borough of Sutton,07/07/2023,50375675,"1,917.09",Claremont Care Svs Ltd,SOCIAL SERVICES RESIDENTIAL,People's Services,Nursing Care - Ext Provider,A56025
London Borough of Sutton,07/07/2023,50375675,-262.74,Claremont Care Svs Ltd,SOCIAL SERVICES RESIDENTIAL,People's Services,Nursing Care - 3rd party top up payment,A56023
London Borough of Sutton,07/07/2023,50375686,"6,236.76",Claremont Care Svs Ltd,SOCIAL SERVICES RESIDENTIAL,People's Services,Nursing Care - Ext Provider,A56025
London Borough of Sutton,07/07/2023,50375686,-836.76,Claremont Care Svs Ltd,SOCIAL SERVICES RESIDENTIAL,People's Services,Nursing Care - 3rd party top up payment,A56023
London Borough of Sutton,07/07/2023,50375706,-878.84,Claremont Care Svs Ltd,SOCIAL SERVICES RESIDENTIAL,People's Services,Nursing Care - 3rd party top up payment,A56023
London Borough of Sutton,07/07/2023,50375706,"7,838.84",Claremont Care Svs Ltd,SOCIAL SERVICES RESIDENTIAL,People's Services,Nursing Care Short Term,A56026
London Borough of Sutton,07/07/2023,50375207,-735.68,Bondcare (London) Ltd,SOCIAL SERVICES RESIDENTIAL,People's Services,Nursing Care - 3rd party top up payment,A56023
London Borough of Sutton,07/07/2023,50375207,"3,720.16",Bondcare (London) Ltd,SOCIAL SERVICES RESIDENTIAL,People's Services,Nursing Care - Ext Provider,A56025
London Borough of Sutton,12/07/2023,50378929,759.45,Classroom Teachers Ltd,ACADEMIC INSTNS - OTHER,People's Services,Independent School Fees,A56002
London Borough of Sutton,12/07/2023,50378930,759.45,Classroom Teachers Ltd,ACADEMIC INSTNS - OTHER,People's Services,Independent School Fees,A56002
London Borough of Sutton,12/07/2023,50378931,759.45,Classroom Teachers Ltd,ACADEMIC INSTNS - OTHER,People's Services,Independent School Fees,A56002
London Borough of Sutton,12/07/2023,50378932,759.45,Classroom Teachers Ltd,ACADEMIC INSTNS - OTHER,People's Services,Independent School Fees,A56002
London Borough of Sutton,12/07/2023,50378933,759.45,Classroom Teachers Ltd,ACADEMIC INSTNS - OTHER,People's Services,Independent School Fees,A56002
London Borough of Sutton,19/07/2023,50382142,759.45,Classroom Teachers Ltd,ACADEMIC INSTNS - OTHER,People's Services,Independent School Fees,A56002
London Borough of Sutton,10/07/2023,50376539,"2,495.77",Clear Thinking Care Limited,SOCIAL SERVICES RESIDENTIAL,People's Services,Supported Living,A56088
London Borough of Sutton,17/07/2023,50378887,"2,495.77",Clear Thinking Care Limited,SOCIAL SERVICES RESIDENTIAL,People's Services,Supported Living,A56088
London Borough of Sutton,24/07/2023,50382647,"2,495.77",Clear Thinking Care Limited,SOCIAL SERVICES RESIDENTIAL,People's Services,Supported Living,A56088
London Borough of Sutton,20/07/2023,50380605,"28,385.56",CLIA CARE LTD,SOCIAL SERVICES RESIDENTIAL,People's Services,Supported Living,A56088
London Borough of Sutton,20/07/2023,50380605,"-19,920.64",CLIA CARE LTD,SOCIAL SERVICES RESIDENTIAL,People's Services,Nursing Care - 3rd party top up payment,A56023
London Borough of Sutton,20/07/2023,50380656,"14,068.78",CLIA CARE LTD,SOCIAL SERVICES RESIDENTIAL,People's Services,Supported Living,A56088
London Borough of Sutton,20/07/2023,50380656,"-7,034.38",CLIA CARE LTD,SOCIAL SERVICES RESIDENTIAL,People's Services,Nursing Care - 3rd party top up payment,A56023
London Borough of Sutton,20/07/2023,50380694,"1,097.00",CLIA CARE LTD,SOCIAL SERVICES RESIDENTIAL,People's Services,Supported Living,A56088
London Borough of Sutton,20/07/2023,50380694,731.60,CLIA CARE LTD,SOCIAL SERVICES RESIDENTIAL,People's Services,Supported Living,A56088
London Borough of Sutton,20/07/2023,50380694,"3,886.47",CLIA CARE LTD,SOCIAL SERVICES RESIDENTIAL,People's Services,Supported Living,A56088
London Borough of Sutton,20/07/2023,50380694,"2,859.75",CLIA CARE LTD,SOCIAL SERVICES RESIDENTIAL,People's Services,One to One Care,A56108
London Borough of Sutton,20/07/2023,50380694,"-4,287.43",CLIA CARE LTD,SOCIAL SERVICES RESIDENTIAL,People's Services,Nursing Care - 3rd party top up payment,A56023
London Borough of Sutton,20/07/2023,50380714,"20,429.39",CLIA CARE LTD,SOCIAL SERVICES RESIDENTIAL,People's Services,Supported Living,A56088
London Borough of Sutton,20/07/2023,50380714,"-10,214.69",CLIA CARE LTD,SOCIAL SERVICES RESIDENTIAL,People's Services,Nursing Care - 3rd party top up payment,A56023
London Borough of Sutton,21/07/2023,20054623,"3,168.00",Clouds End Services Ltd,SUNDRY SUPPLIER - EDUCATION,People's Services,Client Care/Assistance,A61011
London Borough of Sutton,02/07/2023,50373907,834.50,Clovecare Ltd,SOCIAL SERVICES RESIDENTIAL,People's Services,Home Care Services,A56019
London Borough of Sutton,09/07/2023,50377088,834.49,Clovecare Ltd,SOCIAL SERVICES RESIDENTIAL,People's Services,Home Care Services,A56019
London Borough of Sutton,16/07/2023,50382409,834.50,Clovecare Ltd,SOCIAL SERVICES RESIDENTIAL,People's Services,Home Care Services,A56019
London Borough of Sutton,23/07/2023,50382989,882.52,Clovecare Ltd,SOCIAL SERVICES RESIDENTIAL,People's Services,Home Care Services,A56019
London Borough of Sutton,23/07/2023,50382989,884.65,Clovecare Ltd,SOCIAL SERVICES RESIDENTIAL,People's Services,Home Care Services,A56019
London Borough of Sutton,23/07/2023,50382998,834.51,Clovecare Ltd,SOCIAL SERVICES RESIDENTIAL,People's Services,Home Care Services,A56019
London Borough of Sutton,23/07/2023,50383085,587.50,Clovecare Ltd,SOCIAL SERVICES RESIDENTIAL,People's Services,Home Care Services,A56019
London Borough of Sutton,07/07/2023,50375226,"4,234.16",Coast Care Homes Ltd,SOCIAL SERVICES RESIDENTIAL,People's Services,Residential Care - Ext Provider,A56114
London Borough of Sutton,07/07/2023,50375295,"12,960.16",Cognithan Ltd,SOCIAL SERVICES RESIDENTIAL,People's Services,Residential Care - Ext Provider,A56114
London Borough of Sutton,02/07/2023,20052854,"151,477.17",Cognus Ltd,LEGAL & PROFESSIONAL SERVICES,People's Services,Consultancy Services,A56007
London Borough of Sutton,02/07/2023,20052877,"15,769.42",Cognus Ltd,LEGAL & PROFESSIONAL SERVICES,People's Services,Consultancy Services,A56007
London Borough of Sutton,02/07/2023,20052932,"15,769.42",Cognus Ltd,LEGAL & PROFESSIONAL SERVICES,People's Services,Consultancy Services,A56007
London Borough of Sutton,02/07/2023,20052933,"148,062.50",Cognus Ltd,LEGAL & PROFESSIONAL SERVICES,People's Services,Special Educational Needs,A51015
London Borough of Sutton,02/07/2023,20052934,"231,686.53",Cognus Ltd,LEGAL & PROFESSIONAL SERVICES,People's Services,Consultancy Services,A56007
London Borough of Sutton,05/07/2023,20053069,"-133,895.33",Cognus Ltd,LEGAL & PROFESSIONAL SERVICES,People's Services,Special Educational Needs,A51015
London Borough of Sutton,05/07/2023,20053070,"133,895.33",Cognus Ltd,LEGAL & PROFESSIONAL SERVICES,People's Services,Special Educational Needs,A51015
London Borough of Sutton,05/07/2023,20053071,"-133,895.33",Cognus Ltd,LEGAL & PROFESSIONAL SERVICES,People's Services,Special Educational Needs,A51015
London Borough of Sutton,05/07/2023,20053072,"133,895.33",Cognus Ltd,LEGAL & PROFESSIONAL SERVICES,People's Services,Special Educational Needs,A51015
London Borough of Sutton,05/07/2023,20053073,"-150,275.00",Cognus Ltd,LEGAL & PROFESSIONAL SERVICES,People's Services,Consultancy Services,A56007
London Borough of Sutton,05/07/2023,20053074,"150,275.00",Cognus Ltd,LEGAL & PROFESSIONAL SERVICES,People's Services,Consultancy Services,A56007
London Borough of Sutton,05/07/2023,20053075,"-14,404.17",Cognus Ltd,LEGAL & PROFESSIONAL SERVICES,People's Services,Consultancy Services,A56007
London Borough of Sutton,05/07/2023,20053076,"14,404.17",Cognus Ltd,LEGAL & PROFESSIONAL SERVICES,People's Services,Consultancy Services,A56007
London Borough of Sutton,28/06/2023,20054584,"2,500.00",Cognus Ltd,LEGAL & PROFESSIONAL SERVICES,Health and Wellbeing,Professional Fees,A44066
London Borough of Sutton,02/07/2023,20054603,"148,062.50",Cognus Ltd,LEGAL & PROFESSIONAL SERVICES,People's Services,Special Educational Needs,A51015
London Borough of Sutton,02/05/2023,20054604,"42,533.33",Cognus Ltd,LEGAL & PROFESSIONAL SERVICES,People's Services,Consultancy Services,A56007
London Borough of Sutton,07/07/2023,50375277,"11,981.04",Coleg Elidyr Camphill Communities,CHILDREN'S SERVICES - RESIDENTIAL,People's Services,Interim Placements - Ext Provider,A56102
London Borough of Sutton,11/07/2023,50374306,"16,214.40",Collingwood School Ltd,GRANTS & EX GRATIA PAYMENTS,People's Services,Payment - Nursery Funding,A51056
London Borough of Sutton,30/06/2023,50372425,"2,843.10",Comfort Care Services UK Ltd,SOCIAL SERVICES - DIRECT PAYMENTS,People's Services,Supported Living,A56088
London Borough of Sutton,12/07/2023,20053692,"301,875.00",Community Action Sutton,GRANTS & EX GRATIA PAYMENTS,Resources,Provider Contract Payments,A44290
London Borough of Sutton,30/06/2023,20053710,"56,753.00",Community Action Sutton,GRANTS & EX GRATIA PAYMENTS,Environment Housing and Neighbourhoods,Payments to Voluntary Organisations,A54005
London Borough of Sutton,26/07/2023,20054742,"39,551.00",Community Action Sutton,GRANTS & EX GRATIA PAYMENTS,Resources,Provider Contract Payments,A44290
London Borough of Sutton,26/07/2023,20054743,"24,000.00",Community Action Sutton,GRANTS & EX GRATIA PAYMENTS,Resources,Provider Contract Payments,A44290
London Borough of Sutton,01/06/2023,50375022,"3,956.40",Compass Fostering London Ltd,CHILDREN'S SERVICES - FOSTERING & ADOPTION SERVICES,People's Services,Foster Parents Support,A44110
London Borough of Sutton,01/06/2023,50375032,"3,521.70",Compass Fostering London Ltd,CHILDREN'S SERVICES - FOSTERING & ADOPTION SERVICES,People's Services,Foster Parents Support,A44110
London Borough of Sutton,01/06/2023,50375095,"3,632.10",Compass Fostering London Ltd,CHILDREN'S SERVICES - FOSTERING & ADOPTION SERVICES,People's Services,Foster Parents Support,A44110
London Borough of Sutton,01/06/2023,50375036,"4,499.70",Compass Fostering South Ltd,CHILDREN'S SERVICES - FOSTERING & ADOPTION SERVICES,People's Services,Foster Parents Support,A44110
London Borough of Sutton,07/06/2023,50375046,"4,028.57",Connect Fostering Services Ltd,CHILDREN'S SERVICES - FOSTERING & ADOPTION SERVICES,People's Services,Foster Parents Support,A44110
London Borough of Sutton,07/06/2023,50375060,"3,750.00",Connect Fostering Services Ltd,CHILDREN'S SERVICES - FOSTERING & ADOPTION SERVICES,People's Services,Foster Parents Support,A44110
London Borough of Sutton,11/07/2023,50374377,"53,317.43",Co-operative Childcare,ACADEMIC INSTNS - OTHER,People's Services,Payment - Nursery Funding,A51056
London Borough of Sutton,11/07/2023,50374378,"3,143.40",Co-operative Childcare,ACADEMIC INSTNS - OTHER,People's Services,Payment - Nursery Funding,A51056
London Borough of Sutton,11/07/2023,50374538,828.00,Co-operative Childcare,ACADEMIC INSTNS - OTHER,People's Services,Disability Access Fund,A56093
London Borough of Sutton,11/07/2023,50374307,"5,065.20",Co-operative Childcare,ACADEMIC INSTNS - OTHER,People's Services,Payment - Nursery Funding,A51056
London Borough of Sutton,11/07/2023,50374308,"3,650.40",Co-operative Childcare,ACADEMIC INSTNS - OTHER,People's Services,Payment - Nursery Funding,A51056
London Borough of Sutton,30/06/2023,20053458,"7,426.56",CPC Project Services LLP,CONSTRUCTION INDUSTRY,HRA,External Fees and Consultants,C20000
London Borough of Sutton,01/07/2023,20053091,"154,067.08",Cranstoun,SOCIAL SERVICES - OTHER,Health and Wellbeing,Provider Contract Payments,A44290
London Borough of Sutton,07/07/2023,50375271,"7,584.16",Cream 1 Ltd,SOCIAL SERVICES RESIDENTIAL,People's Services,Residential Care - Ext Provider,A56114
London Borough of Sutton,07/07/2023,50375271,"5,560.52",Cream 1 Ltd,SOCIAL SERVICES RESIDENTIAL,People's Services,One to One Care,A56108
London Borough of Sutton,05/06/2023,50375037,"6,732.86",Credo Care Limited,CHILDREN'S SERVICE - OTHER,People's Services,Foster Parents Support,A44110
London Borough of Sutton,28/06/2023,50373485,"9,166.68",Cricket Green School,GRANTS & EX GRATIA PAYMENTS,People's Services,Top-up Funding,A51016
London Borough of Sutton,07/07/2023,50375375,"6,028.52",CRNH Ltd,SOCIAL SERVICES RESIDENTIAL,People's Services,Nursing Care - Ext Provider,A56025
London Borough of Sutton,07/07/2023,50375375,-836.76,CRNH Ltd,SOCIAL SERVICES RESIDENTIAL,People's Services,Nursing Care - 3rd party top up payment,A56023
London Borough of Sutton,07/07/2023,50375386,"4,096.12",CRNH Ltd,SOCIAL SERVICES RESIDENTIAL,People's Services,Nursing Care - Ext Provider,A56025
London Borough of Sutton,07/07/2023,50375386,-878.84,CRNH Ltd,SOCIAL SERVICES RESIDENTIAL,People's Services,Nursing Care - 3rd party top up payment,A56023
London Borough of Sutton,07/07/2023,50375389,"4,096.12",CRNH Ltd,SOCIAL SERVICES RESIDENTIAL,People's Services,Nursing Care - Ext Provider,A56025
London Borough of Sutton,07/07/2023,50375389,-878.84,CRNH Ltd,SOCIAL SERVICES RESIDENTIAL,People's Services,Nursing Care - 3rd party top up payment,A56023
London Borough of Sutton,07/07/2023,50375504,"4,096.12",CRNH Ltd,SOCIAL SERVICES RESIDENTIAL,People's Services,Nursing Care - Ext Provider,A56025
London Borough of Sutton,07/07/2023,50375504,-878.84,CRNH Ltd,SOCIAL SERVICES RESIDENTIAL,People's Services,Nursing Care - 3rd party top up payment,A56023
London Borough of Sutton,07/07/2023,50375529,"5,400.00",CRNH Ltd,SOCIAL SERVICES RESIDENTIAL,People's Services,Nursing Care - Ext Provider,A56025
London Borough of Sutton,07/07/2023,50375529,-836.76,CRNH Ltd,SOCIAL SERVICES RESIDENTIAL,People's Services,Nursing Care - 3rd party top up payment,A56023
London Borough of Sutton,07/07/2023,50375547,-836.76,CRNH Ltd,SOCIAL SERVICES RESIDENTIAL,People's Services,Nursing Care - 3rd party top up payment,A56023
London Borough of Sutton,07/07/2023,50375547,"46,300.00",CRNH Ltd,SOCIAL SERVICES RESIDENTIAL,People's Services,Nursing Care Short Term,A56026
London Borough of Sutton,07/07/2023,50375610,"4,096.12",CRNH Ltd,SOCIAL SERVICES RESIDENTIAL,People's Services,Nursing Care - Ext Provider,A56025
London Borough of Sutton,07/07/2023,50375610,-878.84,CRNH Ltd,SOCIAL SERVICES RESIDENTIAL,People's Services,Nursing Care - 3rd party top up payment,A56023
London Borough of Sutton,07/07/2023,50375704,"-3,735.07",CRNH Ltd,SOCIAL SERVICES RESIDENTIAL,People's Services,Nursing Care - 3rd party top up payment,A56023
London Borough of Sutton,07/07/2023,50375704,"19,380.00",CRNH Ltd,SOCIAL SERVICES RESIDENTIAL,People's Services,Nursing Care Short Term,A56026
London Borough of Sutton,07/07/2023,50375705,-836.76,CRNH Ltd,SOCIAL SERVICES RESIDENTIAL,People's Services,Nursing Care - 3rd party top up payment,A56023
London Borough of Sutton,07/07/2023,50375705,"5,400.00",CRNH Ltd,SOCIAL SERVICES RESIDENTIAL,People's Services,Nursing Care Short Term,A56026
London Borough of Sutton,07/07/2023,50375716,"4,096.12",CRNH Ltd,SOCIAL SERVICES RESIDENTIAL,People's Services,Nursing Care - Ext Provider,A56025
London Borough of Sutton,07/07/2023,50375716,-878.84,CRNH Ltd,SOCIAL SERVICES RESIDENTIAL,People's Services,Nursing Care - 3rd party top up payment,A56023
London Borough of Sutton,30/06/2023,20054493,"23,430.00",Cromwood Limited,ACCOMMODATION BED & BREAKFAST,Environment Housing and Neighbourhoods,Bed & Breakfast,A56000
London Borough of Sutton,31/05/2023,20054509,"22,320.00",Cromwood Limited,ACCOMMODATION BED & BREAKFAST,Environment Housing and Neighbourhoods,Bed & Breakfast,A56000
London Borough of Sutton,07/07/2023,50375391,"3,821.24",Cross Care Services Ltd,SOCIAL SERVICES RESIDENTIAL,People's Services,Nursing Care Short Term,A56026
London Borough of Sutton,07/07/2023,50375430,"4,096.12",Cross Care Services Ltd,SOCIAL SERVICES RESIDENTIAL,People's Services,Nursing Care - Ext Provider,A56025
London Borough of Sutton,07/07/2023,50375430,-878.84,Cross Care Services Ltd,SOCIAL SERVICES RESIDENTIAL,People's Services,Nursing Care - 3rd party top up payment,A56023
London Borough of Sutton,07/07/2023,50375439,-836.76,Cross Care Services Ltd,SOCIAL SERVICES RESIDENTIAL,People's Services,Nursing Care - 3rd party top up payment,A56023
London Borough of Sutton,07/07/2023,50375439,"3,821.24",Cross Care Services Ltd,SOCIAL SERVICES RESIDENTIAL,People's Services,Nursing Care Short Term,A56026
London Borough of Sutton,07/07/2023,50375482,"4,096.12",Cross Care Services Ltd,SOCIAL SERVICES RESIDENTIAL,People's Services,Nursing Care - Ext Provider,A56025
London Borough of Sutton,07/07/2023,50375482,-878.84,Cross Care Services Ltd,SOCIAL SERVICES RESIDENTIAL,People's Services,Nursing Care - 3rd party top up payment,A56023
London Borough of Sutton,07/07/2023,50375520,"4,096.12",Cross Care Services Ltd,SOCIAL SERVICES RESIDENTIAL,People's Services,Nursing Care - Ext Provider,A56025
London Borough of Sutton,07/07/2023,50375520,-878.84,Cross Care Services Ltd,SOCIAL SERVICES RESIDENTIAL,People's Services,Nursing Care - 3rd party top up payment,A56023
London Borough of Sutton,07/07/2023,50375586,"4,096.12",Cross Care Services Ltd,SOCIAL SERVICES RESIDENTIAL,People's Services,Nursing Care - Ext Provider,A56025
London Borough of Sutton,07/07/2023,50375629,-878.84,Cross Care Services Ltd,SOCIAL SERVICES RESIDENTIAL,People's Services,Nursing Care - 3rd party top up payment,A56023
London Borough of Sutton,07/07/2023,50375629,"4,096.12",Cross Care Services Ltd,SOCIAL SERVICES RESIDENTIAL,People's Services,Nursing Care - Ext Provider,A56025
London Borough of Sutton,07/07/2023,50375653,"10,094.01",Cross Care Services Ltd,SOCIAL SERVICES RESIDENTIAL,People's Services,Nursing Care - Ext Provider,A56025
London Borough of Sutton,07/07/2023,50375653,"-1,093.06",Cross Care Services Ltd,SOCIAL SERVICES RESIDENTIAL,People's Services,Nursing Care - 3rd party top up payment,A56023
London Borough of Sutton,07/07/2023,50375694,"4,096.12",Cross Care Services Ltd,SOCIAL SERVICES RESIDENTIAL,People's Services,Nursing Care - Ext Provider,A56025
London Borough of Sutton,07/07/2023,50375694,-878.84,Cross Care Services Ltd,SOCIAL SERVICES RESIDENTIAL,People's Services,Nursing Care - 3rd party top up payment,A56023
London Borough of Sutton,12/07/2023,50378939,510.46,Croydon College,ACADEMIC INSTNS - OTHER,People's Services,Top-up Funding,A51016
London Borough of Sutton,12/07/2023,50378940,"1,179.56",Croydon College,ACADEMIC INSTNS - OTHER,People's Services,Top-up Funding,A51016
London Borough of Sutton,12/07/2023,50378941,"1,102.35",Croydon College,ACADEMIC INSTNS - OTHER,People's Services,Top-up Funding,A51016
London Borough of Sutton,29/03/2023,20047714,"4,250.90",London Borough of Croydon,CENTRAL & LOCAL GOVERNMENT,People's Services,Payments to Other Local Authorities,A51005
London Borough of Sutton,23/05/2023,20052175,"322,771.69",London Borough of Croydon,CENTRAL & LOCAL GOVERNMENT,Environment Housing and Neighbourhoods,Gate Fee Tonnage,A56072
London Borough of Sutton,15/06/2023,20052250,"301,340.38",London Borough of Croydon,CENTRAL & LOCAL GOVERNMENT,Environment Housing and Neighbourhoods,Gate Fee Tonnage,A56072
London Borough of Sutton,15/06/2023,20052309,"58,062.81",London Borough of Croydon,CENTRAL & LOCAL GOVERNMENT,Environment Housing and Neighbourhoods,Civic Amenity,A56052
London Borough of Sutton,30/06/2023,20052966,"5,170.00",Croydon Court Ltd,ACCOMMODATION BED & BREAKFAST,Environment Housing and Neighbourhoods,Bed & Breakfast,A56000
London Borough of Sutton,30/06/2023,20052967,"1,270.50",Croydon Court Ltd,ACCOMMODATION BED & BREAKFAST,People's Services,Temporary Residential Accommodation,A44140
London Borough of Sutton,11/07/2023,50374374,608.40,REDACTED - PERSONAL DATA,GRANTS & EX GRATIA PAYMENTS,People's Services,Payment - Nursery Funding,A51056
London Borough of Sutton,07/07/2023,50375200,"8,118.44",CSS Ltd,SOCIAL SERVICES RESIDENTIAL,People's Services,Residential Care - Ext Provider,A56114
London Borough of Sutton,07/07/2023,50375803,683.76,CSS Ltd,SOCIAL SERVICES RESIDENTIAL,People's Services,Day Care Services,A56021
London Borough of Sutton,07/07/2023,50376140,683.76,CSS Ltd,SOCIAL SERVICES RESIDENTIAL,People's Services,Day Care Services,A56021
London Borough of Sutton,30/06/2023,20052927,"3,018.00",Cubiquity Limited,OFFICE SERVICES,Resources,Printing,A43010
London Borough of Sutton,11/07/2023,50374552,"179,114.27",Culvers House Primary School,SCHOOL FUNDS,People's Services,Payments to Schools,A51013
London Borough of Sutton,11/07/2023,50374623,"15,778.00",Culvers House Primary School,SCHOOL FUNDS,People's Services,Payment - Universal Infant Free School Meals,A51025
London Borough of Sutton,11/07/2023,50374647,"22,013.00",Culvers House Primary School,SCHOOL FUNDS,People's Services,Payment - Universal Infant Free School Meals,A51025
London Borough of Sutton,11/07/2023,50374658,"5,002.50",Culvers House Primary School,SCHOOL FUNDS,People's Services,Payment - Covid 19 Recovery Premium,A51039
London Borough of Sutton,11/07/2023,50374696,"49,470.00",Culvers House Primary School,SCHOOL FUNDS,People's Services,Payment - Deprivation Pupil Premium,A51030
London Borough of Sutton,11/07/2023,50374718,"1,265.00",Culvers House Primary School,SCHOOL FUNDS,People's Services,Payment - Post-LAC Pupil Premium,A51032
London Borough of Sutton,11/07/2023,50374740,"9,880.65",Culvers House Primary School,SCHOOL FUNDS,People's Services,Place Funding,A56110
London Borough of Sutton,11/07/2023,50375937,781.20,Culvers House Primary School,SCHOOL FUNDS,People's Services,Early Years Pupil Premium,A60031
London Borough of Sutton,11/07/2023,50375959,667.80,Culvers House Primary School,SCHOOL FUNDS,People's Services,Other payments to schools,A51023
London Borough of Sutton,07/07/2023,50375213,"4,800.00",Curado Limited,GRANTS & EX GRATIA PAYMENTS,People's Services,Interim Placements - Ext Provider,A56102
London Borough of Sutton,07/07/2023,50375303,"6,400.00",Curado Limited,GRANTS & EX GRATIA PAYMENTS,People's Services,Residential Care - Ext Provider,A56114
London Borough of Sutton,20/07/2023,50380635,"1,992.86",Curado Limited,GRANTS & EX GRATIA PAYMENTS,People's Services,Supported Living,A56088
London Borough of Sutton,29/06/2023,20052778,"12,605.00",Cygnet IT Services CIC,BUSINESS & COMPUTER SYSTEMS,Development Growth and Regeneration,External Fees and Consultants,C20000
London Borough of Sutton,07/07/2023,50375252,"6,827.40",Cygnet Learning Disabilities Midlands Ltd,SOCIAL SERVICES RESIDENTIAL,People's Services,Residential Care - Ext Provider,A56114
London Borough of Sutton,07/07/2023,50375252,"5,134.60",Cygnet Learning Disabilities Midlands Ltd,SOCIAL SERVICES RESIDENTIAL,People's Services,Residential Care - Client Cont ( Net Paymt ),A56113
London Borough of Sutton,11/07/2023,20053171,805.00,REDACTED - PERSONAL DATA,GRANTS & EX GRATIA PAYMENTS,Environment Housing and Neighbourhoods,Temporary Protection - Homeless Persons,A62028
London Borough of Sutton,01/05/2023,20053500,650.00,Bluebear Childminding,CHILDREN'S SERVICES - DAY CARE,People's Services,Childrens Day Care,A56022
London Borough of Sutton,01/04/2023,20053501,"1,087.50",Bluebear Childminding,CHILDREN'S SERVICES - DAY CARE,People's Services,Childrens Day Care,A56022
London Borough of Sutton,03/07/2023,20053022,"1,270.50",Dariba Design Limited,CONSULTING ARCHITECTS ENGINEER,Environment Housing and Neighbourhoods,Grants Given For Capital Purposes,C20004
London Borough of Sutton,03/07/2023,20053023,960.00,Dariba Design Limited,CONSULTING ARCHITECTS ENGINEER,Environment Housing and Neighbourhoods,Grants Given For Capital Purposes,C20004
London Borough of Sutton,04/07/2023,20053522,"6,252.24",Darwin Group Ltd,CONSTRUCTION INDUSTRY,People's Services,Payments to Contractors,C14000
London Borough of Sutton,01/07/2023,20053143,785.73,Angel Lettings,ACCOMMODATION BED & BREAKFAST,Environment Housing and Neighbourhoods,Temporary Protection - Homeless Persons,A62028
London Borough of Sutton,01/07/2023,20053144,989.43,Dreamlettings,ACCOMMODATION BED & BREAKFAST,Environment Housing and Neighbourhoods,Temporary Protection - Homeless Persons,A62028
London Borough of Sutton,25/07/2023,50380590,"1,225.20",Worth Primary,SCHOOL FUNDS,People's Services,Payments to Schools,A51013
London Borough of Sutton,20/07/2023,50380773,582.63,REDACTED - PERSONAL DATA,CARE LEAVERS,People's Services,C.C.A Travel & Subsistance,A61010
London Borough of Sutton,30/06/2023,20052809,"1,950.00",Dellhome Limited,ACCOMMODATION BED & BREAKFAST,Environment Housing and Neighbourhoods,Bed & Breakfast,A56000
London Borough of Sutton,30/06/2023,20052810,"1,800.00",Dellhome Limited,ACCOMMODATION BED & BREAKFAST,Environment Housing and Neighbourhoods,Bed & Breakfast,A56000
London Borough of Sutton,30/06/2023,20052811,"2,400.00",Dellhome Limited,ACCOMMODATION BED & BREAKFAST,Environment Housing and Neighbourhoods,Bed & Breakfast,A56000
London Borough of Sutton,30/06/2023,20052812,"2,100.00",Dellhome Limited,ACCOMMODATION BED & BREAKFAST,Environment Housing and Neighbourhoods,Bed & Breakfast,A56000
London Borough of Sutton,30/06/2023,20052813,"1,350.00",Dellhome Limited,ACCOMMODATION BED & BREAKFAST,Environment Housing and Neighbourhoods,Bed & Breakfast,A56000
London Borough of Sutton,30/06/2023,20052814,540.00,Dellhome Limited,ACCOMMODATION BED & BREAKFAST,Environment Housing and Neighbourhoods,Bed & Breakfast,A56000
London Borough of Sutton,30/06/2023,20052815,675.00,Dellhome Limited,ACCOMMODATION BED & BREAKFAST,Environment Housing and Neighbourhoods,Bed & Breakfast,A56000
London Borough of Sutton,30/06/2023,20052818,"1,350.00",Dellhome Limited,ACCOMMODATION BED & BREAKFAST,Environment Housing and Neighbourhoods,Bed & Breakfast,A56000
London Borough of Sutton,02/07/2023,20052955,"37,710.00",Delta Wise Limited,ACCOMMODATION BED & BREAKFAST,Environment Housing and Neighbourhoods,Bed & Breakfast,A56000
London Borough of Sutton,06/07/2023,20053184,-659.93,Delta Wise Limited,ACCOMMODATION BED & BREAKFAST,Resources,Fees And Charges (VATable),A92310
London Borough of Sutton,13/07/2023,20053812,"1,950.00",Denhan Property Services,ACCOMMODATION BED & BREAKFAST,Environment Housing and Neighbourhoods,Bed & Breakfast,A56000
London Borough of Sutton,13/07/2023,20053813,"1,110.00",Denhan Property Services,ACCOMMODATION BED & BREAKFAST,Environment Housing and Neighbourhoods,Bed & Breakfast,A56000
London Borough of Sutton,13/07/2023,20053815,"1,867.50",Denhan Property Services,ACCOMMODATION BED & BREAKFAST,Environment Housing and Neighbourhoods,Bed & Breakfast,A56000
London Borough of Sutton,13/07/2023,20053816,"2,010.00",Denhan Property Services,ACCOMMODATION BED & BREAKFAST,Environment Housing and Neighbourhoods,Bed & Breakfast,A56000
London Borough of Sutton,13/07/2023,20053817,"1,080.00",Denhan Property Services,ACCOMMODATION BED & BREAKFAST,Environment Housing and Neighbourhoods,Bed & Breakfast,A56000
London Borough of Sutton,13/07/2023,20053818,576.00,Denhan Property Services,ACCOMMODATION BED & BREAKFAST,Environment Housing and Neighbourhoods,Bed & Breakfast,A56000
London Borough of Sutton,13/07/2023,20053819,"1,560.00",Denhan Property Services,ACCOMMODATION BED & BREAKFAST,Environment Housing and Neighbourhoods,Bed & Breakfast,A56000
London Borough of Sutton,07/07/2023,50375145,"3,505.00",Denville Hall 2012,SOCIAL SERVICES RESIDENTIAL,People's Services,Residential Care - Ext Provider,A56114
London Borough of Sutton,07/07/2023,50375208,"3,175.04",Devaglade Trading Limited ,SOCIAL SERVICES RESIDENTIAL,People's Services,Residential Care - Ext Provider,A56114
London Borough of Sutton,11/07/2023,50374545,"262,600.44",Devonshire Primary School,SCHOOL FUNDS,People's Services,Payments to Schools,A51013
London Borough of Sutton,11/07/2023,50374617,"40,944.00",Devonshire Primary School,SCHOOL FUNDS,People's Services,Payment - Universal Infant Free School Meals,A51025
London Borough of Sutton,11/07/2023,50374634,"48,792.00",Devonshire Primary School,SCHOOL FUNDS,People's Services,Payment - Universal Infant Free School Meals,A51025
London Borough of Sutton,11/07/2023,50374651,"6,996.25",Devonshire Primary School,SCHOOL FUNDS,People's Services,Payment - Covid 19 Recovery Premium,A51039
London Borough of Sutton,11/07/2023,50374689,"69,476.25",Devonshire Primary School,SCHOOL FUNDS,People's Services,Payment - Deprivation Pupil Premium,A51030
London Borough of Sutton,11/07/2023,50374714,"1,265.00",Devonshire Primary School,SCHOOL FUNDS,People's Services,Payment - Post-LAC Pupil Premium,A51032
London Borough of Sutton,11/07/2023,50374741,"13,671.00",Devonshire Primary School,SCHOOL FUNDS,People's Services,Place Funding,A56110
London Borough of Sutton,11/07/2023,50375938,669.60,Devonshire Primary School,SCHOOL FUNDS,People's Services,Early Years Pupil Premium,A60031
London Borough of Sutton,11/07/2023,50375960,572.40,Devonshire Primary School,SCHOOL FUNDS,People's Services,Other payments to schools,A51023
London Borough of Sutton,28/07/2023,50383147,"1,516.79",Devonshire Primary School,SCHOOL FUNDS,Non-Service Cost Centres,Recharge-Teaching Staff,A10600
London Borough of Sutton,26/06/2023,50378354,"5,670.28",Direct Care And Support Services,ACCOMMODATION - OTHER,People's Services,Supported Living,A56088
London Borough of Sutton,26/06/2023,50378354,"1,307.32",Direct Care And Support Services,ACCOMMODATION - OTHER,People's Services,Supported Living,A56088
London Borough of Sutton,19/07/2023,50381544,"2,324.00",Direct Care And Support Services,ACCOMMODATION - OTHER,People's Services,Supported Living,A56088
London Borough of Sutton,19/07/2023,50381544,697.20,Direct Care And Support Services,ACCOMMODATION - OTHER,People's Services,Supported Living,A56088
London Borough of Sutton,19/07/2023,50381544,"1,307.32",Direct Care And Support Services,ACCOMMODATION - OTHER,People's Services,Supported Living,A56088
London Borough of Sutton,19/07/2023,50381545,"2,324.00",Direct Care And Support Services,ACCOMMODATION - OTHER,People's Services,Supported Living,A56088
London Borough of Sutton,19/07/2023,50381545,697.20,Direct Care And Support Services,ACCOMMODATION - OTHER,People's Services,Supported Living,A56088
London Borough of Sutton,19/07/2023,50381545,"1,307.32",Direct Care And Support Services,ACCOMMODATION - OTHER,People's Services,Supported Living,A56088
London Borough of Sutton,19/07/2023,50381546,"2,324.00",Direct Care And Support Services,ACCOMMODATION - OTHER,People's Services,Supported Living,A56088
London Borough of Sutton,19/07/2023,50381546,697.20,Direct Care And Support Services,ACCOMMODATION - OTHER,People's Services,Supported Living,A56088
London Borough of Sutton,19/07/2023,50381546,"1,307.32",Direct Care And Support Services,ACCOMMODATION - OTHER,People's Services,Supported Living,A56088
London Borough of Sutton,19/07/2023,50381547,"2,324.00",Direct Care And Support Services,ACCOMMODATION - OTHER,People's Services,Supported Living,A56088
London Borough of Sutton,19/07/2023,50381547,697.20,Direct Care And Support Services,ACCOMMODATION - OTHER,People's Services,Supported Living,A56088
London Borough of Sutton,19/07/2023,50381547,"1,307.32",Direct Care And Support Services,ACCOMMODATION - OTHER,People's Services,Supported Living,A56088
London Borough of Sutton,19/07/2023,50381548,314.35,Direct Care And Support Services,ACCOMMODATION - OTHER,People's Services,Supported Living,A56088
London Borough of Sutton,19/07/2023,50381548,601.15,Direct Care And Support Services,ACCOMMODATION - OTHER,People's Services,Supported Living,A56088
London Borough of Sutton,19/07/2023,50381548,"1,400.70",Direct Care And Support Services,ACCOMMODATION - OTHER,People's Services,Supported Living,A56088
London Borough of Sutton,19/07/2023,50381549,581.25,Direct Care And Support Services,ACCOMMODATION - OTHER,People's Services,Supported Living,A56088
London Borough of Sutton,19/07/2023,50381549,521.01,Direct Care And Support Services,ACCOMMODATION - OTHER,People's Services,Supported Living,A56088
London Borough of Sutton,19/07/2023,50381549,"1,213.94",Direct Care And Support Services,ACCOMMODATION - OTHER,People's Services,Supported Living,A56088
London Borough of Sutton,19/07/2023,50381550,447.80,Direct Care And Support Services,ACCOMMODATION - OTHER,People's Services,Supported Living,A56088
London Borough of Sutton,19/07/2023,50381550,561.08,Direct Care And Support Services,ACCOMMODATION - OTHER,People's Services,Supported Living,A56088
London Borough of Sutton,19/07/2023,50381550,"1,307.32",Direct Care And Support Services,ACCOMMODATION - OTHER,People's Services,Supported Living,A56088
London Borough of Sutton,19/07/2023,50381551,447.80,Direct Care And Support Services,ACCOMMODATION - OTHER,People's Services,Supported Living,A56088
London Borough of Sutton,19/07/2023,50381551,561.08,Direct Care And Support Services,ACCOMMODATION - OTHER,People's Services,Supported Living,A56088
London Borough of Sutton,19/07/2023,50381551,"1,307.32",Direct Care And Support Services,ACCOMMODATION - OTHER,People's Services,Supported Living,A56088
London Borough of Sutton,19/07/2023,50381552,447.80,Direct Care And Support Services,ACCOMMODATION - OTHER,People's Services,Supported Living,A56088
London Borough of Sutton,19/07/2023,50381552,561.08,Direct Care And Support Services,ACCOMMODATION - OTHER,People's Services,Supported Living,A56088
London Borough of Sutton,19/07/2023,50381552,"1,307.32",Direct Care And Support Services,ACCOMMODATION - OTHER,People's Services,Supported Living,A56088
London Borough of Sutton,19/07/2023,50381553,"2,279.52",Direct Care And Support Services,ACCOMMODATION - OTHER,People's Services,Supported Living,A56088
London Borough of Sutton,19/07/2023,50381553,"1,307.32",Direct Care And Support Services,ACCOMMODATION - OTHER,People's Services,Supported Living,A56088
London Borough of Sutton,19/07/2023,50381553,"2,169.28",Direct Care And Support Services,ACCOMMODATION - OTHER,People's Services,Supported Living,A56088
London Borough of Sutton,17/07/2023,50381562,"7,092.85",Direct Care And Support Services,ACCOMMODATION - OTHER,People's Services,Supported Living,A56088
London Borough of Sutton,17/07/2023,50381562,"1,307.32",Direct Care And Support Services,ACCOMMODATION - OTHER,People's Services,Supported Living,A56088
London Borough of Sutton,17/07/2023,50381564,"2,324.00",Direct Care And Support Services,ACCOMMODATION - OTHER,People's Services,One to One Care,A56108
London Borough of Sutton,17/07/2023,50381564,"1,680.00",Direct Care And Support Services,ACCOMMODATION - OTHER,People's Services,Supported Living,A56088
London Borough of Sutton,17/07/2023,50381564,697.20,Direct Care And Support Services,ACCOMMODATION - OTHER,People's Services,Supported Living,A56088
London Borough of Sutton,19/07/2023,50381573,"2,324.00",Direct Care And Support Services,ACCOMMODATION - OTHER,People's Services,Supported Living,A56088
London Borough of Sutton,19/07/2023,50381573,697.20,Direct Care And Support Services,ACCOMMODATION - OTHER,People's Services,Supported Living,A56088
London Borough of Sutton,19/07/2023,50381573,"1,307.32",Direct Care And Support Services,ACCOMMODATION - OTHER,People's Services,Supported Living,A56088
London Borough of Sutton,19/07/2023,50381574,"2,279.52",Direct Care And Support Services,ACCOMMODATION - OTHER,People's Services,Supported Living,A56088
London Borough of Sutton,19/07/2023,50381574,"1,307.32",Direct Care And Support Services,ACCOMMODATION - OTHER,People's Services,Supported Living,A56088
London Borough of Sutton,19/07/2023,50381574,"2,169.28",Direct Care And Support Services,ACCOMMODATION - OTHER,People's Services,Supported Living,A56088
London Borough of Sutton,19/07/2023,50381575,"2,279.52",Direct Care And Support Services,ACCOMMODATION - OTHER,People's Services,Supported Living,A56088
London Borough of Sutton,19/07/2023,50381575,"1,307.32",Direct Care And Support Services,ACCOMMODATION - OTHER,People's Services,Supported Living,A56088
London Borough of Sutton,19/07/2023,50381575,"2,169.28",Direct Care And Support Services,ACCOMMODATION - OTHER,People's Services,Supported Living,A56088
London Borough of Sutton,19/07/2023,50381576,"2,324.00",Direct Care And Support Services,ACCOMMODATION - OTHER,People's Services,Supported Living,A56088
London Borough of Sutton,19/07/2023,50381576,697.20,Direct Care And Support Services,ACCOMMODATION - OTHER,People's Services,Supported Living,A56088
London Borough of Sutton,19/07/2023,50381576,"1,307.32",Direct Care And Support Services,ACCOMMODATION - OTHER,People's Services,Supported Living,A56088
London Borough of Sutton,17/07/2023,50381601,"3,535.81",Direct Care And Support Services,ACCOMMODATION - OTHER,People's Services,Supported Living,A56088
London Borough of Sutton,17/07/2023,50381601,990.68,Direct Care And Support Services,ACCOMMODATION - OTHER,People's Services,Supported Living,A56088
London Borough of Sutton,17/07/2023,50381601,"1,307.32",Direct Care And Support Services,ACCOMMODATION - OTHER,People's Services,Supported Living,A56088
London Borough of Sutton,27/06/2023,20053377,938.34,REDACTED - PERSONAL DATA,PLS LANDLORDS,Environment Housing and Neighbourhoods,Temporary Protection - Homeless Persons,A62028
London Borough of Sutton,11/07/2023,50374315,"1,262.25",REDACTED - PERSONAL DATA,GRANTS & EX GRATIA PAYMENTS,People's Services,Payment - Nursery Funding,A51056
London Borough of Sutton,11/07/2023,50374316,"3,346.20",REDACTED - PERSONAL DATA,GRANTS & EX GRATIA PAYMENTS,People's Services,Payment - Nursery Funding,A51056
London Borough of Sutton,11/07/2023,50374547,"203,667.51",Dorchester Primary School,GRANTS & EX GRATIA PAYMENTS,People's Services,Payments to Schools,A51013
London Borough of Sutton,11/07/2023,50374619,"16,293.00",Dorchester Primary School,GRANTS & EX GRATIA PAYMENTS,People's Services,Payment - Universal Infant Free School Meals,A51025
London Borough of Sutton,11/07/2023,50374636,"37,295.00",Dorchester Primary School,GRANTS & EX GRATIA PAYMENTS,People's Services,Payment - Universal Infant Free School Meals,A51025
London Borough of Sutton,11/07/2023,50374653,"3,552.50",Dorchester Primary School,GRANTS & EX GRATIA PAYMENTS,People's Services,Payment - Covid 19 Recovery Premium,A51039
London Borough of Sutton,11/07/2023,50374691,"35,647.50",Dorchester Primary School,GRANTS & EX GRATIA PAYMENTS,People's Services,Payment - Deprivation Pupil Premium,A51030
London Borough of Sutton,11/07/2023,50374742,"14,023.80",Dorchester Primary School,GRANTS & EX GRATIA PAYMENTS,People's Services,Place Funding,A56110
London Borough of Sutton,06/07/2023,50376663,"4,130.37",Dorchester Primary School,GRANTS & EX GRATIA PAYMENTS,People's Services,Top-up Funding,A51016
London Borough of Sutton,31/05/2023,50382140,994.11,DOTS FOR CHILDREN LTD,CHILDREN'S SERVICES - SEN SERVICES,People's Services,Special Educational Needs,A51015
London Borough of Sutton,05/07/2023,50375076,267.85,Dreamfo Housing Ltd,CHILDREN'S SERVICE - OTHER,People's Services,Approved Lodgings,A61000
London Borough of Sutton,05/07/2023,50375076,"3,214.25",Dreamfo Housing Ltd,CHILDREN'S SERVICE - OTHER,People's Services,Approved Lodgings,A61000
London Borough of Sutton,04/07/2023,20053068,821.97,DSI Billing Services Ltd,OFFICE SERVICES,Resources,Postage & Couriers,A45015
London Borough of Sutton,04/07/2023,20053068,821.96,DSI Billing Services Ltd,OFFICE SERVICES,Resources,Postage & Couriers,A45015
London Borough of Sutton,05/07/2023,20053153,364.79,DSI Billing Services Ltd,OFFICE SERVICES,Resources,Postage & Couriers,A45015
London Borough of Sutton,05/07/2023,20053153,364.79,DSI Billing Services Ltd,OFFICE SERVICES,Resources,Postage & Couriers,A45015
London Borough of Sutton,01/06/2023,50375063,267.85,Dunfield & Mead Ltd,CHILDREN'S SERVICES - RESIDENTIAL,People's Services,Approved Lodgings,A61000
London Borough of Sutton,01/06/2023,50375063,"3,535.71",Dunfield & Mead Ltd,CHILDREN'S SERVICES - RESIDENTIAL,People's Services,Approved Lodgings,A61000
London Borough of Sutton,01/06/2023,50375124,267.85,Dunfield & Mead Ltd,CHILDREN'S SERVICES - RESIDENTIAL,People's Services,Accommodation - Supported Living,A62001
London Borough of Sutton,01/06/2023,50375124,"4,178.57",Dunfield & Mead Ltd,CHILDREN'S SERVICES - RESIDENTIAL,People's Services,Accommodation - Supported Living,A62001
London Borough of Sutton,30/06/2023,20052968,"5,020.50",Dunheved Hotel Ltd,ACCOMMODATION BED & BREAKFAST,Environment Housing and Neighbourhoods,Bed & Breakfast,A56000
London Borough of Sutton,07/07/2023,50375138,"3,016.00",Dunheved Lodge,SOCIAL SERVICES RESIDENTIAL,People's Services,One to One Care,A56108
London Borough of Sutton,07/07/2023,50375138,"3,187.44",Dunheved Lodge,SOCIAL SERVICES RESIDENTIAL,People's Services,Residential Care - Ext Provider,A56114
London Borough of Sutton,04/06/2023,50372606,780.00,DWT Windows & Doors,CONSTRUCTION INDUSTRY,HRA,Payments to Contractors,C14000
London Borough of Sutton,15/05/2023,50372607,"1,050.00",DWT Windows & Doors,CONSTRUCTION INDUSTRY,HRA,Payments to Contractors,C14000
London Borough of Sutton,15/06/2023,50372608,"1,830.00",DWT Windows & Doors,CONSTRUCTION INDUSTRY,HRA,Payments to Contractors,C14000
London Borough of Sutton,15/05/2023,50372609,"1,050.00",DWT Windows & Doors,CONSTRUCTION INDUSTRY,HRA,Payments to Contractors,C14000
London Borough of Sutton,15/05/2023,50372610,"1,050.00",DWT Windows & Doors,CONSTRUCTION INDUSTRY,HRA,Payments to Contractors,C14000
London Borough of Sutton,15/05/2023,50372611,880.00,DWT Windows & Doors,CONSTRUCTION INDUSTRY,HRA,Payments to Contractors,C14000
London Borough of Sutton,15/05/2023,50372612,"1,050.00",DWT Windows & Doors,CONSTRUCTION INDUSTRY,HRA,Payments to Contractors,C14000
London Borough of Sutton,15/05/2023,50372613,780.00,DWT Windows & Doors,CONSTRUCTION INDUSTRY,HRA,Payments to Contractors,C14000
London Borough of Sutton,04/06/2023,50372614,"3,460.00",DWT Windows & Doors,CONSTRUCTION INDUSTRY,HRA,Payments to Contractors,C14000
London Borough of Sutton,04/06/2023,50372615,"1,050.00",DWT Windows & Doors,CONSTRUCTION INDUSTRY,HRA,Payments to Contractors,C14000
London Borough of Sutton,04/06/2023,50372616,"1,050.00",DWT Windows & Doors,CONSTRUCTION INDUSTRY,HRA,Payments to Contractors,C14000
London Borough of Sutton,04/06/2023,50372617,"1,050.00",DWT Windows & Doors,CONSTRUCTION INDUSTRY,HRA,Payments to Contractors,C14000
London Borough of Sutton,04/06/2023,50372618,"1,050.00",DWT Windows & Doors,CONSTRUCTION INDUSTRY,HRA,Payments to Contractors,C14000
London Borough of Sutton,04/06/2023,50372619,"1,050.00",DWT Windows & Doors,CONSTRUCTION INDUSTRY,HRA,Payments to Contractors,C14000
London Borough of Sutton,04/06/2023,50372620,"1,050.00",DWT Windows & Doors,CONSTRUCTION INDUSTRY,HRA,Payments to Contractors,C14000
London Borough of Sutton,04/06/2023,50372621,"1,050.00",DWT Windows & Doors,CONSTRUCTION INDUSTRY,HRA,Payments to Contractors,C14000
London Borough of Sutton,04/06/2023,50372622,"1,050.00",DWT Windows & Doors,CONSTRUCTION INDUSTRY,HRA,Payments to Contractors,C14000
London Borough of Sutton,05/06/2023,50372623,"1,050.00",DWT Windows & Doors,CONSTRUCTION INDUSTRY,HRA,Payments to Contractors,C14000
London Borough of Sutton,06/06/2023,50372624,"2,340.00",DWT Windows & Doors,CONSTRUCTION INDUSTRY,HRA,Payments to Contractors,C14000
London Borough of Sutton,01/07/2023,50372631,780.00,DWT Windows & Doors,CONSTRUCTION INDUSTRY,HRA,Payments to Contractors,C14000
London Borough of Sutton,08/06/2023,50372632,"1,680.00",DWT Windows & Doors,CONSTRUCTION INDUSTRY,HRA,Payments to Contractors,C14000
London Borough of Sutton,10/06/2023,50372633,"1,460.00",DWT Windows & Doors,CONSTRUCTION INDUSTRY,HRA,Payments to Contractors,C14000
London Borough of Sutton,12/06/2023,50372634,"1,050.00",DWT Windows & Doors,CONSTRUCTION INDUSTRY,HRA,Payments to Contractors,C14000
London Borough of Sutton,19/06/2023,50372635,"1,050.00",DWT Windows & Doors,CONSTRUCTION INDUSTRY,HRA,Payments to Contractors,C14000
London Borough of Sutton,19/06/2023,50372636,"1,050.00",DWT Windows & Doors,CONSTRUCTION INDUSTRY,HRA,Payments to Contractors,C14000
London Borough of Sutton,19/06/2023,50372637,"1,050.00",DWT Windows & Doors,CONSTRUCTION INDUSTRY,HRA,Payments to Contractors,C14000
London Borough of Sutton,19/06/2023,50372638,"1,830.00",DWT Windows & Doors,CONSTRUCTION INDUSTRY,HRA,Payments to Contractors,C14000
London Borough of Sutton,19/06/2023,50372639,"1,840.00",DWT Windows & Doors,CONSTRUCTION INDUSTRY,HRA,Payments to Contractors,C14000
London Borough of Sutton,01/07/2023,50372640,"1,050.00",DWT Windows & Doors,CONSTRUCTION INDUSTRY,HRA,Payments to Contractors,C14000
London Borough of Sutton,01/07/2023,50372641,"1,680.00",DWT Windows & Doors,CONSTRUCTION INDUSTRY,HRA,Payments to Contractors,C14000
London Borough of Sutton,13/07/2023,50378209,"1,050.00",DWT Windows & Doors,CONSTRUCTION INDUSTRY,HRA,Payments to Contractors,C14000
London Borough of Sutton,13/07/2023,50378210,"1,050.00",DWT Windows & Doors,CONSTRUCTION INDUSTRY,HRA,Payments to Contractors,C14000
London Borough of Sutton,13/07/2023,50378211,"1,050.00",DWT Windows & Doors,CONSTRUCTION INDUSTRY,HRA,Payments to Contractors,C14000
London Borough of Sutton,13/07/2023,50378212,"1,050.00",DWT Windows & Doors,CONSTRUCTION INDUSTRY,HRA,Payments to Contractors,C14000
London Borough of Sutton,13/07/2023,50378213,"1,050.00",DWT Windows & Doors,CONSTRUCTION INDUSTRY,HRA,Payments to Contractors,C14000
London Borough of Sutton,13/07/2023,50378214,"1,050.00",DWT Windows & Doors,CONSTRUCTION INDUSTRY,HRA,Payments to Contractors,C14000
London Borough of Sutton,20/07/2023,50381785,780.00,DWT Windows & Doors,CONSTRUCTION INDUSTRY,HRA,Payments to Contractors,C14000
London Borough of Sutton,20/07/2023,50381790,"1,050.00",DWT Windows & Doors,CONSTRUCTION INDUSTRY,HRA,Payments to Contractors,C14000
London Borough of Sutton,20/07/2023,50381791,"1,050.00",DWT Windows & Doors,CONSTRUCTION INDUSTRY,HRA,Payments to Contractors,C14000
London Borough of Sutton,20/07/2023,50381792,"1,830.00",DWT Windows & Doors,CONSTRUCTION INDUSTRY,HRA,Payments to Contractors,C14000
London Borough of Sutton,20/06/2023,20052493,"4,926.78",Dynamic Care Ltd,SOCIAL SERVICES RESIDENTIAL,People's Services,Approved Lodgings,A61000
London Borough of Sutton,30/06/2023,50372392,"4,232.14",Dynamic Care Ltd,SOCIAL SERVICES RESIDENTIAL,People's Services,Approved Lodgings,A61000
London Borough of Sutton,30/06/2023,50375008,"4,232.13",Dynamic Care Ltd,SOCIAL SERVICES RESIDENTIAL,People's Services,Approved Lodgings,A61000
London Borough of Sutton,30/06/2023,50375069,267.85,Dynamic Care Ltd,SOCIAL SERVICES RESIDENTIAL,People's Services,Approved Lodgings,A61000
London Borough of Sutton,30/06/2023,50375069,"5,035.71",Dynamic Care Ltd,SOCIAL SERVICES RESIDENTIAL,People's Services,Accommodation - Supported Living,A62001
London Borough of Sutton,30/06/2023,20052797,"1,050.00",E Homes And Shelters,ACCOMMODATION BED & BREAKFAST,People's Services,Approved Lodgings,A61000
London Borough of Sutton,30/06/2023,20052833,"22,430.00",E Homes And Shelters,ACCOMMODATION BED & BREAKFAST,Environment Housing and Neighbourhoods,Bed & Breakfast,A56000
London Borough of Sutton,19/06/2023,20054618,727.32,E Pollard & Sons Limited,SUNDRY SUPPLIER - ASC,Health and Wellbeing,Equipment And Materials Purchase,A40000
London Borough of Sutton,26/06/2023,20054619,783.94,E Pollard & Sons Limited,SUNDRY SUPPLIER - ASC,Health and Wellbeing,Equipment And Materials Purchase,A40000
London Borough of Sutton,12/07/2023,50378934,"5,869.53",East Surrey College,GRANTS & EX GRATIA PAYMENTS,People's Services,Top-up Funding,A51016
London Borough of Sutton,05/07/2023,50373515,"2,750.00",East Surrey Tutors Limited,CHILDREN'S SERVICES - SEN SERVICES,People's Services,Independent School Fees,A56002
London Borough of Sutton,07/07/2023,50375325,-878.84,Eastcroft Nursing Home,SOCIAL SERVICES RESIDENTIAL,People's Services,Nursing Care - 3rd party top up payment,A56023
London Borough of Sutton,07/07/2023,50375325,"4,096.12",Eastcroft Nursing Home,SOCIAL SERVICES RESIDENTIAL,People's Services,Nursing Care - Ext Provider,A56025
London Borough of Sutton,07/07/2023,50375332,"3,821.24",Eastcroft Nursing Home,SOCIAL SERVICES RESIDENTIAL,People's Services,Respite Care,A56116
London Borough of Sutton,07/07/2023,50375332,-836.76,Eastcroft Nursing Home,SOCIAL SERVICES RESIDENTIAL,People's Services,Nursing Care - 3rd party top up payment,A56023
London Borough of Sutton,07/07/2023,50375393,-836.76,Eastcroft Nursing Home,SOCIAL SERVICES RESIDENTIAL,People's Services,Nursing Care - 3rd party top up payment,A56023
London Borough of Sutton,07/07/2023,50375393,"3,821.24",Eastcroft Nursing Home,SOCIAL SERVICES RESIDENTIAL,People's Services,Nursing Care Short Term,A56026
London Borough of Sutton,07/07/2023,50375460,"4,096.12",Eastcroft Nursing Home,SOCIAL SERVICES RESIDENTIAL,People's Services,Nursing Care - Ext Provider,A56025
London Borough of Sutton,07/07/2023,50375460,-878.84,Eastcroft Nursing Home,SOCIAL SERVICES RESIDENTIAL,People's Services,Nursing Care - 3rd party top up payment,A56023
London Borough of Sutton,07/07/2023,50375521,532.94,Eastcroft Nursing Home,SOCIAL SERVICES RESIDENTIAL,People's Services,Nursing Care Short Term,A56026
London Borough of Sutton,07/07/2023,50375549,"3,821.24",Eastcroft Nursing Home,SOCIAL SERVICES RESIDENTIAL,People's Services,Nursing Care Short Term,A56026
London Borough of Sutton,07/07/2023,50375600,574.29,Eastcroft Nursing Home,SOCIAL SERVICES RESIDENTIAL,People's Services,Nursing Care Short Term,A56026
London Borough of Sutton,05/06/2023,20051409,"-1,077.65",EDF Energy ,UTILITIES,HRA,Electricity,A21000
London Borough of Sutton,30/05/2023,20052389,"1,932.68",EDF Energy ,UTILITIES,HRA,Electricity,A21000
London Borough of Sutton,02/06/2023,20052715,"7,871.01",EDF Energy ,UTILITIES,Resources,Electricity,A21000
London Borough of Sutton,17/06/2023,20052768,741.61,EDF Energy ,UTILITIES,HRA,Electricity,A21000
London Borough of Sutton,03/07/2023,20053543,928.20,EDF Energy ,UTILITIES,Environment Housing and Neighbourhoods,Electricity,A21000
London Borough of Sutton,26/06/2023,20053553,-484.04,EDF Energy ,UTILITIES,HRA,Electricity,A21000
London Borough of Sutton,03/07/2023,20053909,501.07,EDF Energy ,UTILITIES,Resources,Electricity,A21000
London Borough of Sutton,03/07/2023,20053981,"1,523.10",EDF Energy ,UTILITIES,HRA,Electricity,A21000
London Borough of Sutton,03/07/2023,20053981,-761.00,EDF Energy ,UTILITIES,HRA,Electricity,A21000
London Borough of Sutton,05/07/2023,20054740,"1,670.85",EDF Energy ,UTILITIES,HRA,Electricity,A21000
London Borough of Sutton,08/07/2023,20053314,875.00,Edge Training and Consultancy Limited,CONFERENCES,People's Services,Staff Development And Training,A15022
London Borough of Sutton,24/06/2023,20052995,420.92,EE Airtime,TELECOMS,Resources,Mobile Phones,A45030
London Borough of Sutton,24/11/2022,20052996,"2,426.00",EE Airtime,TELECOMS,People's Services,Telephones,A45020
London Borough of Sutton,24/09/2022,20052997,"2,443.46",EE Airtime,TELECOMS,People's Services,Telephones,A45020
London Borough of Sutton,24/10/2022,20052998,"2,435.01",EE Airtime,TELECOMS,People's Services,Telephones,A45020
London Borough of Sutton,11/07/2023,50374296,"1,514.70",REDACTED - PERSONAL DATA,GRANTS & EX GRATIA PAYMENTS,People's Services,Payment - Nursery Funding,A51056
London Borough of Sutton,26/06/2023,20052529,"1,316.00",Elite Guarding (UK) Ltd,OFFICE SERVICES,HRA,Payments to Contractors,C14000
London Borough of Sutton,26/06/2023,20052529,"1,316.00",Elite Guarding (UK) Ltd,OFFICE SERVICES,HRA,Payments to Contractors,C14000
London Borough of Sutton,03/07/2023,20052874,"2,632.00",Elite Guarding (UK) Ltd,OFFICE SERVICES,HRA,Payments to Contractors,C14000
London Borough of Sutton,07/07/2023,50375260,"9,101.84",Elysium Healthcare Ltd,CHILDREN'S SERVICES - FOSTERING & ADOPTION SERVICES,People's Services,Residential Care - Ext Provider,A56114
London Borough of Sutton,07/07/2023,50375248,"7,668.40",Elysium Supported Living Limited,SOCIAL SERVICES RESIDENTIAL,People's Services,Residential Care - Ext Provider,A56114
London Borough of Sutton,07/07/2023,50375232,"6,608.00",Emas Ltd,SOCIAL SERVICES RESIDENTIAL,People's Services,Interim Placements - Ext Provider,A56102
London Borough of Sutton,11/07/2023,50374399,"2,373.03",REDACTED - PERSONAL DATA,SOCIAL SERVICES - DIRECT PAYMENTS,People's Services,Payment - Nursery Funding,A51056
London Borough of Sutton,04/07/2023,20053092,800.01,Emorsgate Seeds,AGRICULTURAL & ESTATE SERVICES,Environment Housing and Neighbourhoods,Nature Conservation,A56104
London Borough of Sutton,30/06/2023,50382154,"29,875.00",EMPOWER KNOWLEDGE LIMITED,CHILDREN'S SERVICES - SEN SERVICES,People's Services,Independent School Fees,A56002
London Borough of Sutton,26/06/2023,20052602,"113,040.00",Epsom & Ewell Borough Council,CENTRAL & LOCAL GOVERNMENT,Environment Housing and Neighbourhoods,Nonsuch Management Committee,A50003
London Borough of Sutton,05/07/2023,20053288,"7,841.63",Epsom & St Helier Nhs Trust,OFFICE SERVICES,Health and Wellbeing,Provider Contract Payments,A44290
London Borough of Sutton,20/07/2023,20054376,"77,106.09",Epsom & St Helier Nhs Trust,OFFICE SERVICES,Health and Wellbeing,Provider Contract Payments,A44290
London Borough of Sutton,11/07/2023,50374475,"20,785.05",Epsom & St Helier Nhs Trust,OFFICE SERVICES,People's Services,Payment - Nursery Funding,A51056
London Borough of Sutton,07/07/2023,50375170,"4,276.00",Equinox Care,SOCIAL SERVICES RESIDENTIAL,People's Services,Interim Placements - Ext Provider,A56102
London Borough of Sutton,25/06/2023,50372864,797.90,Escoben Care Services Ltd,SOCIAL SERVICES RESIDENTIAL,People's Services,Home Care Services,A56019
London Borough of Sutton,25/06/2023,50372962,506.95,Escoben Care Services Ltd,SOCIAL SERVICES RESIDENTIAL,People's Services,Home Care Services,A56019
London Borough of Sutton,25/06/2023,50372992,18.00,Escoben Care Services Ltd,SOCIAL SERVICES RESIDENTIAL,People's Services,Home Care Services,A56019
London Borough of Sutton,25/06/2023,50372992,631.97,Escoben Care Services Ltd,SOCIAL SERVICES RESIDENTIAL,People's Services,Home Care Services,A56019
London Borough of Sutton,25/06/2023,50373086,"1,143.00",Escoben Care Services Ltd,SOCIAL SERVICES RESIDENTIAL,People's Services,Home Care Services,A56019
London Borough of Sutton,02/07/2023,50376180,797.90,Escoben Care Services Ltd,SOCIAL SERVICES RESIDENTIAL,People's Services,Home Care Services,A56019
London Borough of Sutton,02/07/2023,50376203,506.95,Escoben Care Services Ltd,SOCIAL SERVICES RESIDENTIAL,People's Services,Home Care Services,A56019
London Borough of Sutton,02/07/2023,50376264,18.00,Escoben Care Services Ltd,SOCIAL SERVICES RESIDENTIAL,People's Services,Home Care Services,A56019
London Borough of Sutton,02/07/2023,50376264,631.97,Escoben Care Services Ltd,SOCIAL SERVICES RESIDENTIAL,People's Services,Home Care Services,A56019
London Borough of Sutton,02/07/2023,50376283,"1,143.00",Escoben Care Services Ltd,SOCIAL SERVICES RESIDENTIAL,People's Services,Home Care Services,A56019
London Borough of Sutton,02/07/2023,50376289,72.00,Escoben Care Services Ltd,SOCIAL SERVICES RESIDENTIAL,People's Services,Home Care Services,A56019
London Borough of Sutton,02/07/2023,50376289,569.93,Escoben Care Services Ltd,SOCIAL SERVICES RESIDENTIAL,People's Services,Home Care Services,A56019
London Borough of Sutton,09/07/2023,50378600,18.00,Escoben Care Services Ltd,SOCIAL SERVICES RESIDENTIAL,People's Services,Home Care Services,A56019
London Borough of Sutton,09/07/2023,50378600,631.97,Escoben Care Services Ltd,SOCIAL SERVICES RESIDENTIAL,People's Services,Home Care Services,A56019
London Borough of Sutton,09/07/2023,50378627,797.90,Escoben Care Services Ltd,SOCIAL SERVICES RESIDENTIAL,People's Services,Home Care Services,A56019
London Borough of Sutton,09/07/2023,50378684,"1,143.00",Escoben Care Services Ltd,SOCIAL SERVICES RESIDENTIAL,People's Services,Home Care Services,A56019
London Borough of Sutton,09/07/2023,50378690,108.00,Escoben Care Services Ltd,SOCIAL SERVICES RESIDENTIAL,People's Services,Home Care Services,A56019
London Borough of Sutton,09/07/2023,50378690,797.90,Escoben Care Services Ltd,SOCIAL SERVICES RESIDENTIAL,People's Services,Home Care Services,A56019
London Borough of Sutton,20/07/2023,50381577,641.50,Escoben Care Services Ltd,SOCIAL SERVICES RESIDENTIAL,People's Services,Home Care Services,A56019
London Borough of Sutton,16/07/2023,50382238,797.90,Escoben Care Services Ltd,SOCIAL SERVICES RESIDENTIAL,People's Services,Home Care Services,A56019
London Borough of Sutton,16/07/2023,50382258,18.00,Escoben Care Services Ltd,SOCIAL SERVICES RESIDENTIAL,People's Services,Home Care Services,A56019
London Borough of Sutton,16/07/2023,50382258,631.97,Escoben Care Services Ltd,SOCIAL SERVICES RESIDENTIAL,People's Services,Home Care Services,A56019
London Borough of Sutton,16/07/2023,50382303,"1,143.00",Escoben Care Services Ltd,SOCIAL SERVICES RESIDENTIAL,People's Services,Home Care Services,A56019
London Borough of Sutton,16/07/2023,50382305,108.00,Escoben Care Services Ltd,SOCIAL SERVICES RESIDENTIAL,People's Services,Home Care Services,A56019
London Borough of Sutton,16/07/2023,50382305,797.90,Escoben Care Services Ltd,SOCIAL SERVICES RESIDENTIAL,People's Services,Home Care Services,A56019
London Borough of Sutton,14/06/2023,50375039,"24,600.00",Esland North Ltd - Oracle Care,CHILDREN'S SERVICES - RESIDENTIAL,People's Services,Residential Care-Children,A56115
London Borough of Sutton,05/06/2023,50375023,"13,897.16",Ethelbert Specialist Homes Ltd,CHILDREN'S SERVICES - RESIDENTIAL,People's Services,Residential Care-Children,A56115
London Borough of Sutton,05/06/2023,50375024,"4,080.56",Ethelbert Specialist Homes Ltd,CHILDREN'S SERVICES - RESIDENTIAL,People's Services,Foster Parents Support,A44110
London Borough of Sutton,05/06/2023,50375033,"4,080.56",Ethelbert Specialist Homes Ltd,CHILDREN'S SERVICES - RESIDENTIAL,People's Services,Foster Parents Support,A44110
London Borough of Sutton,05/06/2023,50375034,"4,205.49",Ethelbert Specialist Homes Ltd,CHILDREN'S SERVICES - RESIDENTIAL,People's Services,Foster Parents Support,A44110
London Borough of Sutton,20/06/2023,20053024,"2,535.00",Evolve AMS UK Limited,CONSTRUCTION INDUSTRY,Environment Housing and Neighbourhoods,Grants Given For Capital Purposes,C20004
London Borough of Sutton,21/07/2023,20054457,"1,000.00",Oakington Manor Primary School,SCHOOL FUNDS,Health and Wellbeing,Fees,A44040
London Borough of Sutton,25/06/2023,50372865,288.75,Exodus Health Care Services Ltd,SOCIAL SERVICES RESIDENTIAL,People's Services,Home Care Services,A56019
London Borough of Sutton,25/06/2023,50372865,551.25,Exodus Health Care Services Ltd,SOCIAL SERVICES RESIDENTIAL,People's Services,Home Care Services,A56019
London Borough of Sutton,25/06/2023,50372874,551.25,Exodus Health Care Services Ltd,SOCIAL SERVICES RESIDENTIAL,People's Services,Home Care Services,A56019
London Borough of Sutton,25/06/2023,50372901,612.50,Exodus Health Care Services Ltd,SOCIAL SERVICES RESIDENTIAL,People's Services,Home Care Services,A56019
London Borough of Sutton,25/06/2023,50372923,717.50,Exodus Health Care Services Ltd,SOCIAL SERVICES RESIDENTIAL,People's Services,Home Care Services,A56019
London Borough of Sutton,25/06/2023,50372957,17.52,Exodus Health Care Services Ltd,SOCIAL SERVICES RESIDENTIAL,People's Services,Home Care Services,A56019
London Borough of Sutton,25/06/2023,50372957,489.98,Exodus Health Care Services Ltd,SOCIAL SERVICES RESIDENTIAL,People's Services,Home Care Services,A56019
London Borough of Sutton,25/06/2023,50372960,612.50,Exodus Health Care Services Ltd,SOCIAL SERVICES RESIDENTIAL,People's Services,Home Care Services,A56019
London Borough of Sutton,25/06/2023,50372996,551.25,Exodus Health Care Services Ltd,SOCIAL SERVICES RESIDENTIAL,People's Services,Home Care Services,A56019
London Borough of Sutton,25/06/2023,50372998,533.75,Exodus Health Care Services Ltd,SOCIAL SERVICES RESIDENTIAL,People's Services,Home Care Services,A56019
London Borough of Sutton,25/06/2023,50373040,691.25,Exodus Health Care Services Ltd,SOCIAL SERVICES RESIDENTIAL,People's Services,Home Care Services,A56019
London Borough of Sutton,25/06/2023,50373040,105.00,Exodus Health Care Services Ltd,SOCIAL SERVICES RESIDENTIAL,People's Services,Home Care Services,A56019
London Borough of Sutton,25/06/2023,50373042,551.25,Exodus Health Care Services Ltd,SOCIAL SERVICES RESIDENTIAL,People's Services,Home Care Services,A56019
London Borough of Sutton,25/06/2023,50373044,551.25,Exodus Health Care Services Ltd,SOCIAL SERVICES RESIDENTIAL,People's Services,Home Care Services,A56019
London Borough of Sutton,25/06/2023,50373071,91.98,Exodus Health Care Services Ltd,SOCIAL SERVICES RESIDENTIAL,People's Services,Home Care Services,A56019
London Borough of Sutton,25/06/2023,50373071,551.15,Exodus Health Care Services Ltd,SOCIAL SERVICES RESIDENTIAL,People's Services,Home Care Services,A56019
